Workbook

Sheet Title

Sheet Dashboard
C2: POWER (Pen-size Optimization Workbook for Experimental Research design)
B4: INPUTS | M4: Simulation Settings | R4: Outputs
C6: Statistical Settings / Assumptions | F6: Feed Consumption Data | N6: # Simulations | O6: 100 | S6: Single Run
C7: Population Mean | D7: 2475.28 | F7: Age (Days) | G7: Cumulative Consumption | N7: Treated Group Mean | O7: =D7 -> 2475.28 | S7: Treatment #1 (Control)
C8: Population Standard Deviation | D8: 156.38 | S8: Estimated Mean | T8: 2450.118505
C9: CV | D9: =D8/D7*100 -> 6.317669112 | F9: 0 | G9: 0 | S9: Estimated Standard Deviation | T9: 34.74488747
C10: Type I Error | D10: 0.05 | F10: 7 | G10: 140
C11: Type II Error | D11: 0.8 | F11: 14 | G11: 431 | S11: Treatment #2 (Treated)
F12: 21 | G12: 984 | S12: Estimated Mean | T12: 2474.977732
C13: Experimental Settings | F13: 28 | G13: 1815 | S13: Estimated Standard Deviation | T13: 42.12134554
C14: Number of Birds / Pen | D14: 15 | F14: 35 | G14: 2871
C15: Replications | D15: 5 | F15: 42 | G15: 4055 | S15: P-value (t-test) | T15: 0.3384589986
F16: 49 | G16: 5271 | S16: 5% LSD | T16: 56.3100992
C17: Operational Cost Settings | S17: Estimated Mean Difference | T17: =ABS(T8-T12) -> 24.8592267
C18: Birds (/ft2) | D18: 1
C19: Chick Cost ($/Chick) | D19: 0.3 | S19: Multiple Runs
C20: House & Utilities ($/ft2/Year) | D20: 0 | S20: Hypothesis Rejection Rate (%) | T20: ='Simulation (Multiple runs)'!$F$2 -> 5
C21: Feeding Time (Min/Week/Pen) | D21: 10 | F21: Feed Planning
C22: Observation Time (Min/Week/Pen) | D22: 14 | G22: Starter | H22: Grower | I22: Finisher | J22: Withdrawal | S22: Measure of Profit & Cost
C23: Weighings (Times/Trial) | D23: 4 | F23: Day (Start) | G23: 0 | H23: 17 | I23: 25 | J23: 32 | S23: Detectable Difference | T23: =SQRT(2*(D8)^2/(D14*D15))*(TINV(D10,D15-1)+TINV(2*(1-D11),D15-1)) -> 94.9305508
C24: Weighing Time (Min/Pen) | D24: 5 | F24: Day (End) | G24: 17 | H24: 25 | I24: 32 | J24: 40
C25: Labor Cost ($/Hr) | D25: 10 | F25: $/ton | G25: 450 | H25: 425 | I25: 400 | J25: 350 | S25: Total Estimated Cost ($) / Treatment | T25: =Cost_Estimation!E28 -> 261.7410776

Sheet Simulation (Single run)
B1: Control | H1: Treated
B2: Rep. 1 | C2: Rep. 2 | D2: Rep. 3 | E2: Rep. 4 | F2: Rep. 5 | H2: Rep. 1 | I2: Rep. 2 | J2: Rep. 3 | K2: Rep. 4 | L2: Rep. 5
A3: Bird #1 | B3: 2559.791433 | C3: 2624.369814 | D3: 2439.72597 | E3: 2480.665979 | F3: 2249.003577 | H3: 2488.397131 | I3: 2621.189877 | J3: 2440.808623 | K3: 2460.747782 | L3: 2279.636119
A4: Bird #2 | B4: 2506.659545 | C4: 2510.52687 | D4: 2563.068478 | E4: 2416.487095 | F4: 2407.217302 | H4: 2388.54174 | I4: 2819.301062 | J4: 2404.844359 | K4: 2437.615257 | L4: 2297.83514
A5: Bird #3 | B5: 2394.149115 | C5: 2685.879612 | D5: 2528.493704 | E5: 2379.321323 | F5: 1929.463542 | H5: 2593.276329 | I5: 2358.118896 | J5: 2347.843949 | K5: 2226.185333 | L5: 2489.723287
A6: Bird #4 | B6: 2131.74562 | C6: 2555.096859 | D6: 2335.682257 | E6: 2366.754305 | F6: 2538.526138 | H6: 2586.095886 | I6: 2796.455713 | J6: 2508.19708 | K6: 2793.523781 | L6: 2492.568036
A7: Bird #5 | B7: 2615.17199 | C7: 2366.797284 | D7: 2256.304108 | E7: 2233.340193 | F7: 2622.900672 | H7: 2561.379112 | I7: 2488.573786 | J7: 2458.774783 | K7: 2431.718867 | L7: 2257.529162
A8: Bird #6 | B8: 2210.73386 | C8: 2280.419851 | D8: 2680.905538 | E8: 2421.307364 | F8: 2339.099029 | H8: 2441.316855 | I8: 2982.871026 | J8: 2375.332414 | K8: 2471.318454 | L8: 2547.943895
A9: Bird #7 | B9: 2646.072501 | C9: 2546.750627 | D9: 2598.807403 | E9: 2316.954117 | F9: 2457.29049 | H9: 2601.648791 | I9: 2138.771043 | J9: 2427.057984 | K9: 2465.26149 | L9: 2417.978096
A10: Bird #8 | B10: 2424.84712 | C10: 2504.927693 | D10: 2388.588633 | E10: 2373.352754 | F10: 2313.189857 | H10: 2752.669268 | I10: 2274.917504 | J10: 2694.351778 | K10: 2526.658565 | L10: 2559.269453
A11: Bird #9 | B11: 2652.497989 | C11: 2277.535157 | D11: 2527.89745 | E11: 2491.80164 | F11: 2704.65958 | H11: 2227.078065 | I11: 2606.270618 | J11: 2526.199618 | K11: 2317.371819 | L11: 2487.134245
A12: Bird #10 | B12: 2731.83234 | C12: 2386.208607 | D12: 2447.083825 | E12: 2716.523507 | F12: 2265.266881 | H12: 2420.900815 | I12: 2211.218551 | J12: 2273.051985 | K12: 2537.440543 | L12: 2584.592276
A13: Bird #11 | B13: 2485.034411 | C13: 2391.36689 | D13: 2499.301028 | E13: 2477.666257 | F13: 2436.406743 | H13: 2589.338544 | I13: 2428.334066 | J13: 2554.815591 | K13: 2431.792213 | L13: 2460.312444
A14: Bird #12 | B14: 2223.229291 | C14: 2393.710424 | D14: 2688.583662 | E14: 2281.273743 | F14: 2472.208833 | H14: 2511.853074 | I14: 2730.359863 | J14: 2627.496792 | K14: 2598.156787 | L14: 2347.880093
A15: Bird #13 | B15: 2462.998251 | C15: 2795.896144 | D15: 2162.168948 | E15: 2459.432655 | F15: 2406.372334 | H15: 2392.44798 | I15: 2436.217623 | J15: 2492.310371 | K15: 2582.578827 | L15: 2270.727959
A16: Bird #14 | B16: 2524.159855 | C16: 2383.334997 | D16: 2691.041037 | E16: 2513.319603 | F16: 2510.780038 | H16: 2534.61757 | I16: 2320.050191 | J16: 2447.802568 | K16: 2626.188311 | L16: 2325.989431
A17: Bird #15 | B17: 2376.495457 | C17: 2321.569817 | D17: 2547.522484 | E17: 2149.994561 | F17: 2703.323814 | H17: 2383.829419 | I17: 2534.098056 | J17: 2476.241911 | K17: 2349.371765 | L17: 2273.012191
A19: Average | B19: 2463.027919 | C19: 2468.29271 | D19: 2490.344968 | E19: 2405.213006 | F19: 2423.713922 | H19: 2498.226039 | I19: 2516.449858 | J19: 2470.341987 | K19: 2483.728653 | L19: 2406.142122
A20: Std. | B20: 174.2104072 | C20: 152.3140271 | D20: 155.9170946 | E20: 133.9933905 | F20: 196.5871026 | H20: 126.8111744 | I20: 242.8320325 | J20: 106.1393066 | K20: 137.4429317 | L20: 118.0765921
A21: CV | B21: 7.073017967 | C21: 6.170825141 | D21: 6.260863317 | E21: 5.570957341 | F21: 8.110986237 | H21: 5.076048863 | I21: 9.649786255 | J21: 4.296543035 | K21: 5.533733788 | L21: 4.907299158
A23: Total Aver. | B23: 2450.118505 | H23: 2474.977732
A24: Total Std. | B24: 34.74488747 | H24: 42.12134554
A25: Total CV | B25: 1.41809008 | H25: 1.70188786
A27: P-Value | B27: 0.3384589986

Sheet Simulation (Multiple runs)
B2: Pr(Reject Null Hypothesis) = | E2: 5 | F2: =E2/Dashboard!$O$6*100 -> 5 | G2: % | M2: # If the population mean of treated group is | N2: =Dashboard!$O$7 -> 2475.28
B3: Null Hypothesis : | E3: Treated = Control
B6: Replications
A7: Experiment Simulations | B7: Controlled | J7: Treated
B8: 1 | C8: 2 | D8: 3 | E8: 4 | F8: 5 | G8: Aver. | H8: Std. | J8: 1 | K8: 2 | L8: 3 | M8: 4 | N8: 5 | O8: Aver. | P8: Std. | R8: Difference | S8: t-Value | T8: P-Value | U8: < 0.05
A9: Exp. #1 | B9: 2427.717656 | C9: 2485.549972 | D9: 2465.483203 | E9: 2456.348699 | F9: 2455.259369 | G9: 2458.07178 | H9: 20.87002454 | J9: 2469.478275 | K9: 2521.122594 | L9: 2457.517003 | M9: 2482.140761 | N9: 2480.348543 | O9: 2482.121435 | P9: 23.92415879 | R9: 24.04965554 | S9: 1.693870172 | T9: 0.1287413752 | U9: 0
A10: Exp. #2 | B10: 2549.555782 | C10: 2506.658277 | D10: 2530.36908 | E10: 2502.412507 | F10: 2453.881376 | G10: 2508.575404 | H10: 36.0119739 | J10: 2429.182078 | K10: 2430.175578 | L10: 2430.675816 | M10: 2445.008789 | N10: 2439.292671 | O10: 2434.866986 | P10: 6.970226798 | R10: -73.70841772 | S10: -4.493336071 | T10: 0.002019815061 | U10: 1
A11: Exp. #3 | B11: 2517.883735 | C11: 2488.982813 | D11: 2449.923979 | E11: 2508.964855 | F11: 2500.670878 | G11: 2493.285252 | H11: 26.47731952 | J11: 2488.884791 | K11: 2472.699889 | L11: 2447.082108 | M11: 2442.552664 | N11: 2476.275247 | O11: 2465.49894 | P11: 19.87832878 | R11: -27.78631219 | S11: -1.876600063 | T11: 0.09741354811 | U11: 0
A12: Exp. #4 | B12: 2477.051073 | C12: 2482.362279 | D12: 2514.771929 | E12: 2458.713637 | F12: 2443.10125 | G12: 2475.200034 | H12: 27.03142707 | J12: 2474.246364 | K12: 2438.555041 | L12: 2433.807218 | M12: 2472.619759 | N12: 2396.365397 | O12: 2443.118756 | P12: 32.14282959 | R12: -32.08127845 | S12: -1.708066084 | T12: 0.1260044632 | U12: 0
A13: Exp. #5 | B13: 2499.366139 | C13: 2438.656962 | D13: 2518.728704 | E13: 2429.207375 | F13: 2487.046709 | G13: 2474.601178 | H13: 38.94873886 | J13: 2555.632974 | K13: 2459.02718 | L13: 2453.891376 | M13: 2407.963997 | N13: 2453.266913 | O13: 2465.956488 | P13: 54.22086482 | R13: -8.644690032 | S13: -0.2895460663 | T13: 0.779525863 | U13: 0
A14: Exp. #6 | B14: 2495.663598 | C14: 2531.832099 | D14: 2472.58604 | E14: 2547.564863 | F14: 2453.730891 | G14: 2500.275498 | H14: 39.32708732 | J14: 2452.732261 | K14: 2468.674766 | L14: 2562.202189 | M14: 2520.335792 | N14: 2510.057616 | O14: 2502.800525 | P14: 43.47443813 | R14: 2.525026595 | S14: 0.09631269238 | T14: 0.9256412601 | U14: 0
A15: Exp. #7 | B15: 2398.946216 | C15: 2425.156104 | D15: 2449.026827 | E15: 2468.807822 | F15: 2512.304908 | G15: 2450.848376 | H15: 43.17607009 | J15: 2478.980323 | K15: 2489.283667 | L15: 2492.039792 | M15: 2442.063037 | N15: 2517.327072 | O15: 2483.938778 | P15: 27.32735084 | R15: 33.09040247 | S15: 1.44806208 | T15: 0.1856294931 | U15: 0
A16: Exp. #8 | B16: 2467.633622 | C16: 2463.640359 | D16: 2457.227456 | E16: 2543.084105 | F16: 2510.237469 | G16: 2488.364602 | H16: 37.02441735 | J16: 2467.6425 | K16: 2465.220186 | L16: 2471.636922 | M16: 2454.754632 | N16: 2438.468553 | O16: 2459.544559 | P16: 13.33375475 | R16: -28.82004376 | S16: -1.637610076 | T16: 0.1401379564 | U16: 0
A17: Exp. #9 | B17: 2514.159141 | C17: 2492.570121 | D17: 2464.68893 | E17: 2557.73822 | F17: 2472.96689 | G17: 2500.42466 | H17: 37.30330257 | J17: 2432.38919 | K17: 2503.722459 | L17: 2495.959486 | M17: 2460.534199 | N17: 2500.569763 | O17: 2478.635019 | P17: 31.1326445 | R17: -21.78964097 | S17: -1.002784258 | T17: 0.3453278346 | U17: 0
A18: Exp. #10 | B18: 2500.420334 | C18: 2519.459825 | D18: 2485.658775 | E18: 2486.751527 | F18: 2427.975363 | G18: 2484.053165 | H18: 34.1909888 | J18: 2448.983983 | K18: 2443.17811 | L18: 2453.495294 | M18: 2568.32838 | N18: 2469.879251 | O18: 2476.773004 | P18: 52.13590199 | R18: -7.280160974 | S18: -0.2611012089 | T18: 0.8006102699 | U18: 0
A19: Exp. #11 | B19: 2468.064965 | C19: 2556.02744 | D19: 2455.277177 | E19: 2394.884763 | F19: 2476.180803 | G19: 2470.08703 | H19: 57.66647536 | J19: 2497.930325 | K19: 2473.32067 | L19: 2445.1251 | M19: 2478.425326 | N19: 2457.666673 | O19: 2470.493619 | P19: 20.19758238 | R19: 0.4065890582 | S19: 0.0148795734 | T19: 0.9884926448 | U19: 0
A20: Exp. #12 | B20: 2438.153773 | C20: 2492.852107 | D20: 2451.134953 | E20: 2529.945021 | F20: 2452.722065 | G20: 2472.961584 | H20: 37.88261061 | J20: 2527.296953 | K20: 2502.298987 | L20: 2461.839233 | M20: 2459.363629 | N20: 2494.606589 | O20: 2489.081078 | P20: 28.68336772 | R20: 16.11949474 | S20: 0.7585618931 | T20: 0.4698704097 | U20: 0
A21: Exp. #13 | B21: 2435.839691 | C21: 2490.802101 | D21: 2477.270947 | E21: 2462.185434 | F21: 2495.222329 | G21: 2472.2641 | H21: 24.10458139 | J21: 2459.709055 | K21: 2524.936171 | L21: 2474.278593 | M21: 2492.406811 | N21: 2553.783971 | O21: 2501.02292 | P21: 38.24886875 | R21: 28.75881996 | S21: 1.422377571 | T21: 0.1927143277 | U21: 0
A22: Exp. #14 | B22: 2434.594666 | C22: 2552.280978 | D22: 2458.720323 | E22: 2518.019502 | F22: 2453.197605 | G22: 2483.362615 | H22: 49.61432215 | J22: 2471.648378 | K22: 2498.437606 | L22: 2439.269186 | M22: 2479.412852 | N22: 2462.5403 | O22: 2470.261664 | P22: 21.79279752 | R22: -13.10095047 | S22: -0.5405953276 | T22: 0.6035076465 | U22: 0
A23: Exp. #15 | B23: 2436.751794 | C23: 2464.711368 | D23: 2480.364647 | E23: 2494.378374 | F23: 2491.634626 | G23: 2473.568162 | H23: 23.66189982 | J23: 2522.210186 | K23: 2379.597608 | L23: 2506.149953 | M23: 2519.908132 | N23: 2498.570073 | O23: 2485.28719 | P23: 59.88300032 | R23: 11.71902868 | S23: 0.4069765102 | T23: 0.6946965283 | U23: 0
A24: Exp. #16 | B24: 2500.367445 | C24: 2506.758888 | D24: 2470.41286 | E24: 2488.020306 | F24: 2459.149196 | G24: 2484.941739 | H24: 19.99850985 | J24: 2433.865071 | K24: 2511.535824 | L24: 2519.536238 | M24: 2457.718511 | N24: 2504.759779 | O24: 2485.483085 | P24: 37.56742036 | R24: 0.5413455944 | S24: 0.02844266156 | T24: 0.9780058374 | U24: 0
A25: Exp. #17 | B25: 2523.160746 | C25: 2475.350613 | D25: 2483.118159 | E25: 2468.117756 | F25: 2462.250451 | G25: 2482.399545 | H25: 24.0916729 | J25: 2481.209631 | K25: 2489.849378 | L25: 2537.383294 | M25: 2464.835105 | N25: 2432.809654 | O25: 2481.217413 | P25: 38.2125902 | R25: -1.18213233 | S25: -0.05851551231 | T25: 0.9547732516 | U25: 0
A26: Exp. #18 | B26: 2497.584732 | C26: 2457.208173 | D26: 2471.599896 | E26: 2538.078275 | F26: 2397.091975 | G26: 2472.31261 | H26: 52.08310365 | J26: 2432.911901 | K26: 2422.28191 | L26: 2414.627103 | M26: 2487.869428 | N26: 2442.447484 | O26: 2440.027565 | P26: 28.74640987 | R26: -32.28504491 | S26: -1.213516713 | T26: 0.2595416908 | U26: 0
A27: Exp. #19 | B27: 2465.130743 | C27: 2516.479539 | D27: 2450.064162 | E27: 2488.896143 | F27: 2491.989292 | G27: 2482.511976 | H27: 25.68725507 | J27: 2436.193589 | K27: 2504.802893 | L27: 2534.752671 | M27: 2471.997111 | N27: 2487.520704 | O27: 2487.053394 | P27: 36.75559653 | R27: 4.541417821 | S27: 0.2264597676 | T27: 0.8265229579 | U27: 0
A28: Exp. #20 | B28: 2483.254886 | C28: 2509.407521 | D28: 2524.836801 | E28: 2550.407802 | F28: 2440.515288 | G28: 2501.68446 | H28: 41.98498952 | J28: 2507.655208 | K28: 2539.508614 | L28: 2485.162049 | M28: 2452.819573 | N28: 2495.174883 | O28: 2496.064065 | P28: 31.66825734 | R28: -5.620394395 | S28: -0.2389767816 | T28: 0.8171318851 | U28: 0
A29: Exp. #21 | B29: 2488.041638 | C29: 2499.413156 | D29: 2479.926909 | E29: 2438.672485 | F29: 2397.700663 | G29: 2460.75097 | H29: 42.04183188 | J29: 2474.19588 | K29: 2486.21368 | L29: 2498.790505 | M29: 2420.724931 | N29: 2516.129159 | O29: 2479.210831 | P29: 36.19777878 | R29: 18.45986072 | S29: 0.7440353847 | T29: 0.4781368889 | U29: 0
A30: Exp. #22 | B30: 2506.363162 | C30: 2491.199051 | D30: 2548.379384 | E30: 2490.533035 | F30: 2370.877145 | G30: 2481.470356 | H30: 66.1515453 | J30: 2409.797232 | K30: 2491.315294 | L30: 2533.964533 | M30: 2526.50449 | N30: 2473.327584 | O30: 2486.981827 | P30: 49.82994715 | R30: 5.511471252 | S30: 0.1488060354 | T30: 0.8853893525 | U30: 0
A31: Exp. #23 | B31: 2484.340856 | C31: 2453.252818 | D31: 2568.96085 | E31: 2530.139375 | F31: 2483.492863 | G31: 2504.037352 | H31: 45.51228699 | J31: 2520.362076 | K31: 2514.206423 | L31: 2417.844931 | M31: 2533.475441 | N31: 2512.203938 | O31: 2499.618562 | P31: 46.46155843 | R31: -4.418790556 | S31: -0.1519203464 | T31: 0.8830111466 | U31: 0
A32: Exp. #24 | B32: 2412.405998 | C32: 2494.47638 | D32: 2402.489993 | E32: 2472.509813 | F32: 2450.39187 | G32: 2446.454811 | H32: 39.02775149 | J32: 2482.763996 | K32: 2469.639897 | L32: 2524.862979 | M32: 2531.313685 | N32: 2511.145535 | O32: 2503.945219 | P32: 26.75784668 | R32: 57.49040756 | S32: 2.716683308 | T32: 0.02638377748 | U32: 1
A33: Exp. #25 | B33: 2483.589896 | C33: 2420.747623 | D33: 2479.504544 | E33: 2429.69069 | F33: 2410.447452 | G33: 2444.796041 | H33: 34.26356257 | J33: 2423.266239 | K33: 2488.75597 | L33: 2491.096368 | M33: 2480.890595 | N33: 2511.913399 | O33: 2479.184514 | P33: 33.29583012 | R33: 34.38847356 | S33: 1.609468983 | T33: 0.1461800766 | U33: 0
A34: Exp. #26 | B34: 2471.142121 | C34: 2457.906328 | D34: 2475.998199 | E34: 2437.561408 | F34: 2504.254154 | G34: 2469.372442 | H34: 24.53150996 | J34: 2447.802059 | K34: 2504.084105 | L34: 2540.318114 | M34: 2515.243668 | N34: 2502.01987 | O34: 2501.893563 | P34: 33.8577045 | R34: 32.521121 | S34: 1.739252002 | T34: 0.1201809235 | U34: 0
A35: Exp. #27 | B35: 2546.500848 | C35: 2526.303362 | D35: 2538.14748 | E35: 2423.810666 | F35: 2509.4466 | G35: 2508.841791 | H35: 49.52926525 | J35: 2455.177757 | K35: 2443.96486 | L35: 2468.793646 | M35: 2467.995816 | N35: 2514.487817 | O35: 2470.083979 | P35: 26.84273659 | R35: -38.75781216 | S35: -1.53837653 | T35: 0.1625161454 | U35: 0
A36: Exp. #28 | B36: 2453.737841 | C36: 2431.213697 | D36: 2468.32496 | E36: 2487.782119 | F36: 2477.726144 | G36: 2463.756952 | H36: 22.09445457 | J36: 2521.551838 | K36: 2439.257166 | L36: 2556.878664 | M36: 2474.932501 | N36: 2418.831468 | O36: 2482.290327 | P36: 57.09182001 | R36: 18.53337526 | S36: 0.6769561536 | T36: 0.5175260494 | U36: 0
A37: Exp. #29 | B37: 2489.371969 | C37: 2472.931266 | D37: 2481.463302 | E37: 2462.417801 | F37: 2430.751152 | G37: 2467.387098 | H37: 22.79856545 | J37: 2424.931913 | K37: 2499.042297 | L37: 2523.975504 | M37: 2452.570036 | N37: 2424.848767 | O37: 2465.073703 | P37: 44.74661438 | R37: -2.313394744 | S37: -0.1030052287 | T37: 0.9204940945 | U37: 0
A38: Exp. #30 | B38: 2488.270367 | C38: 2505.262334 | D38: 2461.451788 | E38: 2435.345635 | F38: 2402.339508 | G38: 2458.533927 | H38: 41.14554495 | J38: 2520.691299 | K38: 2506.297561 | L38: 2527.783134 | M38: 2513.73556 | N38: 2510.694321 | O38: 2515.840375 | P38: 8.487319427 | R38: 57.30644847 | S38: 3.050122733 | T38: 0.0158180875 | U38: 1
A39: Exp. #31 | B39: 2454.491795 | C39: 2411.678175 | D39: 2494.090465 | E39: 2457.644543 | F39: 2516.931947 | G39: 2466.967385 | H39: 40.40906877 | J39: 2485.479487 | K39: 2457.224845 | L39: 2452.763557 | M39: 2442.459293 | N39: 2448.139628 | O39: 2457.213362 | P39: 16.7241586 | R39: -9.754023094 | S39: -0.4987211714 | T39: 0.6313975233 | U39: 0
A40: Exp. #32 | B40: 2468.935449 | C40: 2444.703194 | D40: 2425.500531 | E40: 2495.99777 | F40: 2509.355865 | G40: 2468.898562 | H40: 34.78493467 | J40: 2452.548562 | K40: 2410.369607 | L40: 2470.840999 | M40: 2386.085603 | N40: 2511.470799 | O40: 2446.263114 | P40: 49.51085302 | R40: -22.63544796 | S40: -0.8364798324 | T40: 0.4271625395 | U40: 0
A41: Exp. #33 | B41: 2485.644962 | C41: 2472.232659 | D41: 2452.428115 | E41: 2403.953083 | F41: 2466.579577 | G41: 2456.167679 | H41: 31.52677368 | J41: 2466.038614 | K41: 2448.017378 | L41: 2468.213465 | M41: 2459.570303 | N41: 2489.522728 | O41: 2466.272497 | P41: 15.18686977 | R41: 10.1048182 | S41: 0.6456842551 | T41: 0.5365599652 | U41: 0
A42: Exp. #34 | B42: 2422.012933 | C42: 2475.354281 | D42: 2436.006186 | E42: 2444.768392 | F42: 2440.38264 | G42: 2443.704886 | H42: 19.64474065 | J42: 2464.560909 | K42: 2432.043573 | L42: 2520.385546 | M42: 2423.060446 | N42: 2445.784786 | O42: 2457.167052 | P42: 38.64988 | R42: 13.46216565 | S42: 0.6943082166 | T42: 0.5071469322 | U42: 0
A43: Exp. #35 | B43: 2442.950468 | C43: 2482.166629 | D43: 2449.266914 | E43: 2467.28311 | F43: 2607.815371 | G43: 2489.896498 | H43: 67.69540189 | J43: 2552.363905 | K43: 2476.205563 | L43: 2468.27157 | M43: 2541.285275 | N43: 2557.444543 | O43: 2519.114171 | P43: 43.27943761 | R43: 29.2176727 | S43: 0.8131232073 | T43: 0.4396740841 | U43: 0
A44: Exp. #36 | B44: 2548.619549 | C44: 2430.41036 | D44: 2459.504999 | E44: 2465.63006 | F44: 2525.905604 | G44: 2486.014114 | H44: 49.29703779 | J44: 2436.618289 | K44: 2553.024002 | L44: 2443.041989 | M44: 2308.580221 | N44: 2506.335935 | O44: 2449.520087 | P44: 92.21383964 | R44: -36.49402695 | S44: -0.7804146176 | T44: 0.4576140447 | U44: 0
A45: Exp. #37 | B45: 2462.105774 | C45: 2484.768427 | D45: 2491.724815 | E45: 2492.162307 | F45: 2452.416286 | G45: 2476.635522 | H45: 18.2523759 | J45: 2554.602434 | K45: 2445.942087 | L45: 2466.428622 | M45: 2422.980722 | N45: 2486.775331 | O45: 2475.345839 | P45: 50.24550711 | R45: -1.289682763 | S45: -0.05394547294 | T45: 0.9583014283 | U45: 0
A46: Exp. #38 | B46: 2492.41411 | C46: 2496.285301 | D46: 2518.679272 | E46: 2466.549333 | F46: 2502.245746 | G46: 2495.234752 | H46: 18.91238025 | J46: 2479.734527 | K46: 2428.759357 | L46: 2462.390158 | M46: 2486.640606 | N46: 2446.422496 | O46: 2460.789429 | P46: 23.78075245 | R46: -34.44532362 | S46: -2.534935009 | T46: 0.03498557069 | U46: 1
A47: Exp. #39 | B47: 2454.97421 | C47: 2436.219212 | D47: 2411.283008 | E47: 2481.214327 | F47: 2543.890796 | G47: 2465.516311 | H47: 50.7437057 | J47: 2484.61548 | K47: 2499.766671 | L47: 2429.861876 | M47: 2412.88843 | N47: 2511.022846 | O47: 2467.631061 | P47: 43.66715544 | R47: 2.114750027 | S47: 0.07063509149 | T47: 0.9454220113 | U47: 0
A48: Exp. #40 | B48: 2446.970499 | C48: 2434.234704 | D48: 2495.630926 | E48: 2511.374554 | F48: 2426.925275 | G48: 2463.027192 | H48: 38.04814091 | J48: 2485.728824 | K48: 2515.837297 | L48: 2463.864915 | M48: 2514.2007 | N48: 2412.02433 | O48: 2478.331213 | P48: 42.87752215 | R48: 15.30402153 | S48: 0.5969629054 | T48: 0.5670387525 | U48: 0
A49: Exp. #41 | B49: 2453.021723 | C49: 2531.217556 | D49: 2482.487936 | E49: 2411.195616 | F49: 2478.768301 | G49: 2471.338226 | H49: 43.92517525 | J49: 2500.519232 | K49: 2455.096305 | L49: 2442.425672 | M49: 2511.695073 | N49: 2492.988064 | O49: 2480.544869 | P49: 30.10334744 | R49: 9.206642708 | S49: 0.3865995242 | T49: 0.7091325909 | U49: 0
A50: Exp. #42 | B50: 2463.08891 | C50: 2509.911749 | D50: 2431.722855 | E50: 2456.323537 | F50: 2446.086721 | G50: 2461.426754 | H50: 29.5687275 | J50: 2429.628079 | K50: 2476.983374 | L50: 2460.845343 | M50: 2392.690427 | N50: 2451.535101 | O50: 2442.336465 | P50: 32.61071117 | R50: -19.09028937 | S50: -0.9697205728 | T50: 0.3605862794 | U50: 0
A51: Exp. #43 | B51: 2459.688867 | C51: 2492.75246 | D51: 2475.969959 | E51: 2417.317537 | F51: 2489.227741 | G51: 2466.991313 | H51: 30.65746753 | J51: 2456.108885 | K51: 2495.634751 | L51: 2440.710893 | M51: 2488.278321 | N51: 2507.26684 | O51: 2477.599938 | P51: 28.02710508 | R51: 10.60862518 | S51: 0.5710831479 | T51: 0.5836254548 | U51: 0
A52: Exp. #44 | B52: 2546.763802 | C52: 2483.999607 | D52: 2490.892454 | E52: 2441.054724 | F52: 2510.045454 | G52: 2494.551208 | H52: 38.57727052 | J52: 2481.674013 | K52: 2524.61447 | L52: 2445.764038 | M52: 2400.784343 | N52: 2463.394708 | O52: 2463.246314 | P52: 45.5872253 | R52: -31.3048941 | S52: -1.172147215 | T52: 0.274859193 | U52: 0
A53: Exp. #45 | B53: 2448.228574 | C53: 2468.426241 | D53: 2507.321182 | E53: 2436.900996 | F53: 2408.76342 | G53: 2453.928083 | H53: 36.8214355 | J53: 2481.334282 | K53: 2450.378288 | L53: 2567.98691 | M53: 2478.5319 | N53: 2504.852154 | O53: 2496.616707 | P53: 44.32869461 | R53: 42.68862445 | S53: 1.656427567 | T53: 0.1362264919 | U53: 0
A54: Exp. #46 | B54: 2475.579206 | C54: 2485.614551 | D54: 2473.679755 | E54: 2412.167576 | F54: 2493.253377 | G54: 2468.058893 | H54: 32.22945749 | J54: 2456.964609 | K54: 2440.232831 | L54: 2479.026968 | M54: 2463.431657 | N54: 2469.324211 | O54: 2461.796055 | P54: 14.53072784 | R54: -6.262837795 | S54: -0.3961156579 | T54: 0.7023748726 | U54: 0
A55: Exp. #47 | B55: 2468.201846 | C55: 2478.861795 | D55: 2534.109675 | E55: 2428.967243 | F55: 2502.171155 | G55: 2482.462343 | H55: 39.15972297 | J55: 2523.427176 | K55: 2436.47056 | L55: 2418.424067 | M55: 2518.078836 | N55: 2501.000794 | O55: 2479.480287 | P55: 48.63642627 | R55: -2.982055954 | S55: -0.1067886165 | T55: 0.917586074 | U55: 0
A56: Exp. #48 | B56: 2505.572599 | C56: 2536.000415 | D56: 2452.358473 | E56: 2566.804955 | F56: 2426.349728 | G56: 2497.417234 | H56: 57.98859794 | J56: 2394.255754 | K56: 2483.294509 | L56: 2474.5564 | M56: 2515.086009 | N56: 2433.061608 | O56: 2460.050856 | P56: 47.00255663 | R56: -37.36637776 | S56: -1.119344194 | T56: 0.2954724391 | U56: 0
A57: Exp. #49 | B57: 2460.237 | C57: 2437.251448 | D57: 2516.800567 | E57: 2433.29654 | F57: 2443.750531 | G57: 2458.267217 | H57: 34.30001651 | J57: 2533.764069 | K57: 2479.386687 | L57: 2438.543532 | M57: 2487.488573 | N57: 2530.014502 | O57: 2493.839473 | P57: 39.40007647 | R57: 35.57225536 | S57: 1.522670738 | T57: 0.1663405009 | U57: 0
A58: Exp. #50 | B58: 2541.212559 | C58: 2464.949235 | D58: 2477.400363 | E58: 2507.071344 | F58: 2458.815618 | G58: 2489.889824 | H58: 34.17913714 | J58: 2506.246414 | K58: 2443.486632 | L58: 2481.986501 | M58: 2496.257412 | N58: 2456.227071 | O58: 2476.840806 | P58: 26.48395553 | R58: -13.04901786 | S58: -0.6748184243 | T58: 0.5188137887 | U58: 0
A59: Exp. #51 | B59: 2509.732228 | C59: 2450.847181 | D59: 2471.183421 | E59: 2452.284232 | F59: 2488.436052 | G59: 2474.496623 | H59: 24.99759631 | J59: 2476.582851 | K59: 2511.0423 | L59: 2508.923847 | M59: 2458.364748 | N59: 2403.900328 | O59: 2471.762815 | P59: 43.96555011 | R59: -2.733807734 | S59: -0.1208691542 | T59: 0.9067753287 | U59: 0
A60: Exp. #52 | B60: 2503.728124 | C60: 2519.758234 | D60: 2455.588883 | E60: 2408.40607 | F60: 2458.969895 | G60: 2469.290241 | H60: 43.97188051 | J60: 2572.942986 | K60: 2514.83024 | L60: 2378.419127 | M60: 2472.955932 | N60: 2482.484927 | O60: 2484.326643 | P60: 70.94436651 | R60: 15.03640134 | S60: 0.4028260582 | T60: 0.6976264284 | U60: 0
A61: Exp. #53 | B61: 2545.641501 | C61: 2504.07032 | D61: 2451.139183 | E61: 2492.72494 | F61: 2468.653434 | G61: 2492.445876 | H61: 36.18460738 | J61: 2384.299805 | K61: 2399.100699 | L61: 2506.545294 | M61: 2485.300473 | N61: 2467.066498 | O61: 2448.462554 | P61: 53.92169056 | R61: -43.98332198 | S61: -1.514529339 | T61: 0.1683545743 | U61: 0
A62: Exp. #54 | B62: 2453.543354 | C62: 2395.689305 | D62: 2525.959775 | E62: 2477.147815 | F62: 2483.495178 | G62: 2467.167085 | H62: 47.742751 | J62: 2409.187034 | K62: 2410.444417 | L62: 2388.605422 | M62: 2449.366748 | N62: 2402.648318 | O62: 2412.050388 | P62: 22.59067286 | R62: -55.11669784 | S62: -2.333397661 | T62: 0.04790691507 | U62: 1
A63: Exp. #55 | B63: 2494.23119 | C63: 2464.84269 | D63: 2474.051062 | E63: 2511.860866 | F63: 2480.419334 | G63: 2485.081028 | H63: 18.39746622 | J63: 2537.307437 | K63: 2541.023792 | L63: 2437.029347 | M63: 2472.519435 | N63: 2524.510785 | O63: 2502.478159 | P63: 45.73115225 | R63: 17.39713076 | S63: 0.7891815342 | T63: 0.4527578082 | U63: 0
A64: Exp. #56 | B64: 2362.184508 | C64: 2531.930721 | D64: 2530.430681 | E64: 2534.691288 | F64: 2463.72189 | G64: 2484.591818 | H64: 74.61774843 | J64: 2470.474627 | K64: 2448.839428 | L64: 2503.924509 | M64: 2492.220541 | N64: 2392.703964 | O64: 2461.632614 | P64: 43.92388647 | R64: -22.95920371 | S64: -0.5929180929 | T64: 0.5696132463 | U64: 0
A65: Exp. #57 | B65: 2491.664227 | C65: 2452.378672 | D65: 2480.726929 | E65: 2450.354715 | F65: 2434.748104 | G65: 2461.974529 | H65: 23.46012266 | J65: 2415.176394 | K65: 2479.238578 | L65: 2451.678918 | M65: 2455.858682 | N65: 2468.281016 | O65: 2454.046718 | P65: 24.27466161 | R65: -7.927811848 | S65: -0.5251158797 | T65: 0.6137404692 | U65: 0
A66: Exp. #58 | B66: 2508.117827 | C66: 2406.718399 | D66: 2500.190108 | E66: 2509.799265 | F66: 2485.362892 | G66: 2482.037698 | H66: 43.19849952 | J66: 2456.899514 | K66: 2501.118822 | L66: 2484.009101 | M66: 2517.093624 | N66: 2459.140508 | O66: 2483.652314 | P66: 26.17283123 | R66: 1.614615592 | S66: 0.07148057968 | T66: 0.9447699664 | U66: 0
A67: Exp. #59 | B67: 2490.712263 | C67: 2469.792097 | D67: 2405.798204 | E67: 2446.372126 | F67: 2453.226742 | G67: 2453.180286 | H67: 31.52783098 | J67: 2471.34169 | K67: 2550.418171 | L67: 2477.821686 | M67: 2417.910079 | N67: 2479.151038 | O67: 2479.328533 | P67: 47.14884661 | R67: 26.14824638 | S67: 1.030862721 | T67: 0.3327605987 | U67: 0
A68: Exp. #60 | B68: 2440.461284 | C68: 2487.681079 | D68: 2494.128451 | E68: 2460.483199 | F68: 2480.395571 | G68: 2472.629917 | H68: 21.9738113 | J68: 2455.735605 | K68: 2483.489493 | L68: 2457.466195 | M68: 2502.115189 | N68: 2492.995085 | O68: 2478.360313 | P68: 20.93573946 | R68: 5.730396547 | S68: 0.422185836 | T68: 0.6840068139 | U68: 0
A69: Exp. #61 | B69: 2437.561482 | C69: 2502.770684 | D69: 2445.907845 | E69: 2462.144709 | F69: 2444.836854 | G69: 2458.644315 | H69: 26.25232723 | J69: 2445.410065 | K69: 2418.976113 | L69: 2433.728846 | M69: 2520.461016 | N69: 2413.626292 | O69: 2446.440467 | P69: 43.22253339 | R69: -12.20384833 | S69: -0.539616032 | T69: 0.6041522941 | U69: 0
A70: Exp. #62 | B70: 2508.33672 | C70: 2492.79029 | D70: 2465.004479 | E70: 2479.548298 | F70: 2421.461549 | G70: 2473.428267 | H70: 33.17545341 | J70: 2452.192193 | K70: 2475.906408 | L70: 2386.48376 | M70: 2402.798009 | N70: 2484.664042 | O70: 2440.408883 | P70: 43.81762354 | R70: -33.01938456 | S70: -1.343407406 | T70: 0.2159996871 | U70: 0
A71: Exp. #63 | B71: 2519.223313 | C71: 2391.887374 | D71: 2412.014288 | E71: 2498.93483 | F71: 2516.433349 | G71: 2467.698631 | H71: 60.93779307 | J71: 2426.761138 | K71: 2474.991591 | L71: 2517.442552 | M71: 2452.262972 | N71: 2407.694062 | O71: 2455.830463 | P71: 42.83125047 | R71: -11.86816772 | S71: -0.3562896166 | T71: 0.730837353 | U71: 0
A72: Exp. #64 | B72: 2385.795198 | C72: 2431.570854 | D72: 2530.644394 | E72: 2428.83061 | F72: 2500.842855 | G72: 2455.536782 | H72: 58.83295747 | J72: 2442.900428 | K72: 2431.736873 | L72: 2544.980145 | M72: 2447.811351 | N72: 2493.050576 | O72: 2472.095875 | P72: 46.96322378 | R72: 16.5590923 | S72: 0.4918698909 | T72: 0.6360228868 | U72: 0
A73: Exp. #65 | B73: 2493.365616 | C73: 2525.249463 | D73: 2470.447101 | E73: 2395.407978 | F73: 2500.466527 | G73: 2476.987337 | H73: 49.61531967 | J73: 2471.555035 | K73: 2524.669335 | L73: 2430.490006 | M73: 2481.640309 | N73: 2444.097417 | O73: 2470.49042 | P73: 36.59724006 | R73: -6.49691654 | S73: -0.235635754 | T73: 0.8196355377 | U73: 0
A74: Exp. #66 | B74: 2422.689908 | C74: 2421.889159 | D74: 2424.384972 | E74: 2465.63029 | F74: 2474.322493 | G74: 2441.783364 | H74: 25.93508373 | J74: 2509.717095 | K74: 2510.86828 | L74: 2403.182509 | M74: 2449.36869 | N74: 2495.795343 | O74: 2473.786383 | P74: 46.72153734 | R74: 32.00301923 | S74: 1.339160232 | T74: 0.217318193 | U74: 0
A75: Exp. #67 | B75: 2430.970047 | C75: 2515.781496 | D75: 2484.613846 | E75: 2509.994164 | F75: 2448.25539 | G75: 2477.922989 | H75: 37.38763003 | J75: 2465.311606 | K75: 2451.27374 | L75: 2477.139943 | M75: 2550.390299 | N75: 2484.328865 | O75: 2485.688891 | P75: 38.27807043 | R75: 7.765902067 | S75: 0.3245359279 | T75: 0.7538557276 | U75: 0
A76: Exp. #68 | B76: 2520.154491 | C76: 2467.3358 | D76: 2423.679938 | E76: 2495.220394 | F76: 2461.151665 | G76: 2473.508458 | H76: 36.4723664 | J76: 2483.538645 | K76: 2512.755461 | L76: 2458.197869 | M76: 2474.995214 | N76: 2500.609949 | O76: 2486.019428 | P76: 21.38589188 | R76: 12.51096998 | S76: 0.6616709078 | T76: 0.5267770875 | U76: 0
A77: Exp. #69 | B77: 2445.305948 | C77: 2485.442862 | D77: 2536.511015 | E77: 2494.901022 | F77: 2550.686997 | G77: 2502.569569 | H77: 42.1264812 | J77: 2507.528459 | K77: 2437.984116 | L77: 2500.73552 | M77: 2497.198802 | N77: 2483.362616 | O77: 2485.361903 | P77: 27.91266896 | R77: -17.20766635 | S77: -0.7614075004 | T77: 0.4682622019 | U77: 0
A78: Exp. #70 | B78: 2470.667289 | C78: 2486.038433 | D78: 2507.634382 | E78: 2510.707827 | F78: 2456.911224 | G78: 2486.391831 | H78: 23.23255219 | J78: 2443.050837 | K78: 2470.573073 | L78: 2480.188583 | M78: 2414.583811 | N78: 2507.701342 | O78: 2463.219529 | P78: 35.6821534 | R78: -23.17230203 | S78: -1.216911981 | T78: 0.2583164663 | U78: 0
A79: Exp. #71 | B79: 2438.438133 | C79: 2466.284485 | D79: 2484.806149 | E79: 2495.061854 | F79: 2486.304873 | G79: 2474.179099 | H79: 22.55991797 | J79: 2556.313823 | K79: 2485.855189 | L79: 2458.2169 | M79: 2551.620558 | N79: 2534.275941 | O79: 2517.256482 | P79: 43.20804624 | R79: 43.07738347 | S79: 1.976157687 | T79: 0.08354398359 | U79: 0
A80: Exp. #72 | B80: 2492.224403 | C80: 2506.988305 | D80: 2562.739332 | E80: 2529.876691 | F80: 2423.805259 | G80: 2503.126798 | H80: 51.70805297 | J80: 2437.909804 | K80: 2445.583404 | L80: 2503.500435 | M80: 2486.573595 | N80: 2437.773047 | O80: 2462.268057 | P80: 30.6699193 | R80: -40.85874126 | S80: -1.51968606 | T80: 0.1670763467 | U80: 0
A81: Exp. #73 | B81: 2493.725623 | C81: 2486.675445 | D81: 2470.257628 | E81: 2470.979514 | F81: 2507.877995 | G81: 2485.903241 | H81: 15.90737734 | J81: 2465.911442 | K81: 2484.824829 | L81: 2431.83831 | M81: 2451.88466 | N81: 2488.223329 | O81: 2464.536514 | P81: 23.4723951 | R81: -21.36672674 | S81: -1.684982977 | T81: 0.1304827473 | U81: 0
A82: Exp. #74 | B82: 2450.763396 | C82: 2508.479489 | D82: 2468.811647 | E82: 2402.455928 | F82: 2493.980047 | G82: 2464.898101 | H82: 41.41022698 | J82: 2422.882496 | K82: 2478.505001 | L82: 2502.635116 | M82: 2474.273918 | N82: 2484.639617 | O82: 2472.58723 | P82: 29.81845485 | R82: 7.689128576 | S82: 0.3369349348 | T82: 0.7448348992 | U82: 0
A83: Exp. #75 | B83: 2489.580874 | C83: 2457.021927 | D83: 2507.095485 | E83: 2495.961911 | F83: 2495.694735 | G83: 2489.070986 | H83: 18.99765541 | J83: 2414.090373 | K83: 2448.819354 | L83: 2506.468203 | M83: 2486.032498 | N83: 2460.980363 | O83: 2463.278158 | P83: 35.41509254 | R83: -25.79282821 | S83: -1.435089289 | T83: 0.1891787142 | U83: 0
A84: Exp. #76 | B84: 2504.520277 | C84: 2495.927816 | D84: 2441.823829 | E84: 2504.220855 | F84: 2445.598722 | G84: 2478.4183 | H84: 31.89807275 | J84: 2495.371952 | K84: 2521.953753 | L84: 2412.720794 | M84: 2434.844661 | N84: 2384.780946 | O84: 2449.934421 | P84: 57.24701659 | R84: -28.48387834 | S84: -0.9718904307 | T84: 0.3595696045 | U84: 0
A85: Exp. #77 | B85: 2446.700771 | C85: 2448.883535 | D85: 2566.299833 | E85: 2504.85321 | F85: 2429.712168 | G85: 2479.289903 | H85: 56.27779549 | J85: 2513.776292 | K85: 2461.017743 | L85: 2459.099795 | M85: 2502.477798 | N85: 2468.283265 | O85: 2480.930979 | P85: 25.37805249 | R85: 1.641075326 | S85: 0.05944024727 | T85: 0.9540594611 | U85: 0
A86: Exp. #78 | B86: 2586.907599 | C86: 2590.239225 | D86: 2442.456172 | E86: 2467.880829 | F86: 2497.424251 | G86: 2516.981615 | H86: 68.19776405 | J86: 2526.553598 | K86: 2427.84176 | L86: 2484.053453 | M86: 2519.852622 | N86: 2484.205215 | O86: 2488.50133 | P86: 39.20683072 | R86: -28.48028559 | S86: -0.8095623615 | T86: 0.4416034717 | U86: 0
A87: Exp. #79 | B87: 2477.867385 | C87: 2477.890825 | D87: 2493.96907 | E87: 2449.021757 | F87: 2443.904535 | G87: 2468.530714 | H87: 21.26583617 | J87: 2471.152839 | K87: 2407.736158 | L87: 2462.409446 | M87: 2445.146609 | N87: 2503.943335 | O87: 2458.077678 | P87: 35.3371749 | R87: -10.45303669 | S87: -0.5667368918 | T87: 0.5864374136 | U87: 0
A88: Exp. #80 | B88: 2485.454317 | C88: 2477.035845 | D88: 2519.899381 | E88: 2497.070306 | F88: 2468.525363 | G88: 2489.597042 | H88: 19.95647082 | J88: 2477.185576 | K88: 2442.305314 | L88: 2478.647943 | M88: 2437.950296 | N88: 2486.823999 | O88: 2464.582626 | P88: 22.67656154 | R88: -25.01441622 | S88: -1.851663179 | T88: 0.1012179458 | U88: 0
A89: Exp. #81 | B89: 2472.452629 | C89: 2507.945184 | D89: 2364.906319 | E89: 2531.252835 | F89: 2432.87881 | G89: 2461.887155 | H89: 65.74826158 | J89: 2460.800861 | K89: 2364.290716 | L89: 2416.037735 | M89: 2453.469289 | N89: 2458.45738 | O89: 2430.611196 | P89: 41.29197892 | R89: -31.27595887 | S89: -0.9007701907 | T89: 0.3940184046 | U89: 0
A90: Exp. #82 | B90: 2447.06854 | C90: 2524.239022 | D90: 2471.612982 | E90: 2462.033666 | F90: 2460.960048 | G90: 2473.182852 | H90: 29.85320582 | J90: 2461.913158 | K90: 2529.756234 | L90: 2522.196061 | M90: 2462.20629 | N90: 2441.882971 | O90: 2483.590943 | P90: 39.64963412 | R90: 10.408091 | S90: 0.4689178646 | T90: 0.6516413311 | U90: 0
A91: Exp. #83 | B91: 2504.2358 | C91: 2459.204496 | D91: 2455.517331 | E91: 2443.043228 | F91: 2549.746719 | G91: 2482.349515 | H91: 44.22113418 | J91: 2460.921287 | K91: 2477.669157 | L91: 2421.711629 | M91: 2422.208263 | N91: 2532.53685 | O91: 2463.009437 | P91: 45.89001436 | R91: -19.34007755 | S91: -0.678586503 | T91: 0.5165452805 | U91: 0
A92: Exp. #84 | B92: 2491.50981 | C92: 2466.793839 | D92: 2526.442136 | E92: 2398.21195 | F92: 2471.894228 | G92: 2470.970393 | H92: 46.93365009 | J92: 2557.85357 | K92: 2509.376492 | L92: 2409.827382 | M92: 2540.762169 | N92: 2463.187647 | O92: 2496.201452 | P92: 60.23000499 | R92: 25.23105937 | S92: 0.7388742468 | T92: 0.4810966847 | U92: 0
A93: Exp. #85 | B93: 2445.575145 | C93: 2510.66557 | D93: 2514.583486 | E93: 2478.976423 | F93: 2446.984617 | G93: 2479.357048 | H93: 33.20565318 | J93: 2458.977576 | K93: 2429.841519 | L93: 2470.423239 | M93: 2492.637901 | N93: 2422.269143 | O93: 2454.829876 | P93: 29.04488974 | R93: -24.52717265 | S93: -1.243186858 | T93: 0.2489962842 | U93: 0
A94: Exp. #86 | B94: 2410.69745 | C94: 2433.295895 | D94: 2485.812797 | E94: 2409.671692 | F94: 2524.250447 | G94: 2452.745656 | H94: 50.51752681 | J94: 2508.779006 | K94: 2439.059387 | L94: 2532.195615 | M94: 2467.315495 | N94: 2511.327043 | O94: 2491.735309 | P94: 37.69098065 | R94: 38.98965281 | S94: 1.38323281 | T94: 0.203968196 | U94: 0
A95: Exp. #87 | B95: 2492.924867 | C95: 2354.680815 | D95: 2408.947907 | E95: 2470.675898 | F95: 2419.355389 | G95: 2429.316975 | H95: 54.40866899 | J95: 2489.79188 | K95: 2472.987533 | L95: 2440.146353 | M95: 2516.567697 | N95: 2484.666494 | O95: 2480.831991 | P95: 27.78884821 | R95: 51.51501626 | S95: 1.885461101 | T95: 0.09609480223 | U95: 0
A96: Exp. #88 | B96: 2449.451588 | C96: 2484.27371 | D96: 2501.270957 | E96: 2446.809409 | F96: 2465.917647 | G96: 2469.544662 | H96: 23.22327071 | J96: 2490.629373 | K96: 2477.860919 | L96: 2516.185674 | M96: 2478.405296 | N96: 2495.953994 | O96: 2491.807051 | P96: 15.70830167 | R96: 22.26238928 | S96: 1.775521254 | T96: 0.1137247507 | U96: 0
A97: Exp. #89 | B97: 2437.79852 | C97: 2408.558815 | D97: 2505.469066 | E97: 2461.972522 | F97: 2494.079736 | G97: 2461.575732 | H97: 39.87305409 | J97: 2458.058561 | K97: 2475.046071 | L97: 2454.316556 | M97: 2491.669519 | N97: 2449.460307 | O97: 2465.710202 | P97: 17.41742267 | R97: 4.13447062 | S97: 0.2124729077 | T97: 0.8370519913 | U97: 0
A98: Exp. #90 | B98: 2454.278951 | C98: 2384.102931 | D98: 2445.057894 | E98: 2482.486085 | F98: 2416.723728 | G98: 2436.529918 | H98: 37.55195737 | J98: 2452.566732 | K98: 2489.855548 | L98: 2438.996659 | M98: 2514.224943 | N98: 2400.153269 | O98: 2459.15943 | P98: 44.45838066 | R98: 22.62951241 | S98: 0.8695048722 | T98: 0.4098992391 | U98: 0
A99: Exp. #91 | B99: 2453.2404 | C99: 2484.979724 | D99: 2415.67649 | E99: 2488.208323 | F99: 2471.563 | G99: 2462.733588 | H99: 29.69133843 | J99: 2512.150444 | K99: 2416.493052 | L99: 2457.548714 | M99: 2461.845561 | N99: 2469.331588 | O99: 2463.473872 | P99: 34.09060657 | R99: 0.7402842722 | S99: 0.03661593828 | T99: 0.971688422 | U99: 0
A100: Exp. #92 | B100: 2565.041054 | C100: 2422.23402 | D100: 2523.173649 | E100: 2412.4963 | F100: 2443.027284 | G100: 2473.194461 | H100: 67.31457444 | J100: 2471.623228 | K100: 2521.359487 | L100: 2435.908844 | M100: 2450.202554 | N100: 2492.045039 | O100: 2474.22783 | P100: 33.87915478 | R100: 1.033369111 | S100: 0.0306621545 | T100: 0.9762901293 | U100: 0
A101: Exp. #93 | B101: 2454.605697 | C101: 2485.45599 | D101: 2407.068369 | E101: 2575.262904 | F101: 2468.993605 | G101: 2478.277313 | H101: 61.59339347 | J101: 2456.768039 | K101: 2517.613936 | L101: 2462.816655 | M101: 2475.407327 | N101: 2479.965266 | O101: 2478.514245 | P101: 23.76897172 | R101: 0.2369317009 | S101: 0.008024706925 | T101: 0.9937937823 | U101: 0
A102: Exp. #94 | B102: 2468.177431 | C102: 2531.472898 | D102: 2416.93012 | E102: 2481.482393 | F102: 2501.606228 | G102: 2479.933814 | H102: 42.5324784 | J102: 2447.637448 | K102: 2474.218709 | L102: 2506.896307 | M102: 2427.625812 | N102: 2511.85694 | O102: 2473.647043 | P102: 36.60699825 | R102: -6.286770737 | S102: -0.2505073655 | T102: 0.8085085805 | U102: 0
A103: Exp. #95 | B103: 2421.907287 | C103: 2468.86817 | D103: 2463.115119 | E103: 2477.218016 | F103: 2465.992945 | G103: 2459.420307 | H103: 21.6223174 | J103: 2438.674017 | K103: 2464.798266 | L103: 2522.877944 | M103: 2500.248954 | N103: 2497.338586 | O103: 2484.787553 | P103: 33.06618746 | R103: 25.367246 | S103: 1.435724625 | T103: 0.1890035101 | U103: 0
A104: Exp. #96 | B104: 2472.500545 | C104: 2447.482028 | D104: 2551.654113 | E104: 2462.915573 | F104: 2384.149708 | G104: 2463.740393 | H104: 60.01094533 | J104: 2431.581605 | K104: 2454.061261 | L104: 2500.470846 | M104: 2384.29517 | N104: 2493.096698 | O104: 2452.701116 | P104: 47.54210592 | R104: -11.03927752 | S104: -0.3224176783 | T104: 0.7554009249 | U104: 0
A105: Exp. #97 | B105: 2422.052592 | C105: 2574.622489 | D105: 2478.628916 | E105: 2439.086481 | F105: 2540.464212 | G105: 2490.970938 | H105: 65.27102534 | J105: 2429.421284 | K105: 2432.978902 | L105: 2472.752267 | M105: 2469.834421 | N105: 2471.184936 | O105: 2455.234362 | P105: 22.00045459 | R105: -35.73657582 | S105: -1.160140648 | T105: 0.2794407139 | U105: 0
A106: Exp. #98 | B106: 2476.109758 | C106: 2516.931042 | D106: 2477.098202 | E106: 2462.736056 | F106: 2485.097785 | G106: 2483.594569 | H106: 20.29090216 | J106: 2456.667728 | K106: 2499.387952 | L106: 2467.571878 | M106: 2530.237486 | N106: 2531.531931 | O106: 2497.079395 | P106: 34.62499842 | R106: 13.48482654 | S106: 0.7513373963 | T106: 0.4739697436 | U106: 0
A107: Exp. #99 | B107: 2504.166979 | C107: 2532.654908 | D107: 2433.196832 | E107: 2503.088209 | F107: 2427.78867 | G107: 2480.179119 | H107: 46.92026928 | J107: 2474.298718 | K107: 2468.71774 | L107: 2446.970455 | M107: 2454.351196 | N107: 2467.513722 | O107: 2462.370366 | P107: 11.29704809 | R107: -17.80875338 | S107: -0.8251277524 | T107: 0.4332123436 | U107: 0
A108: Exp. #100 | B108: 2434.440484 | C108: 2540.986943 | D108: 2497.090757 | E108: 2435.404455 | F108: 2468.36019 | G108: 2475.256566 | H108: 44.99699326 | J108: 2444.360427 | K108: 2462.756027 | L108: 2517.393532 | M108: 2435.4369 | N108: 2499.849121 | O108: 2471.959201 | P108: 35.43443 | R108: -3.297364636 | S108: -0.1287340188 | T108: 0.9007456822 | U108: 0

Sheet Cost_Estimation
B1: EXPEIMENTAL COSTS PLANNING SPREADSHEET
C2: Enter coefficients for the equation: Consumption = b0 + b1 x Age + b2 x Age2 + b3 x Age3
E4: b0 | F4: =INDEX(LINEST(Dashboard!G9:G16,Dashboard!F9:F16^{1,2,3}),1,4) -> 29.22727273
B5: DON’T OVERWRITE THIS SHEET | E5: b1 | F5: =INDEX(LINEST(Dashboard!G9:G16,Dashboard!F9:F16^{1,2,3}),1,3) -> -14.75566893
B6: VALUES COME FROM THE DASHBOARD | E6: b2 | F6: =INDEX(LINEST(Dashboard!G9:G16,Dashboard!F9:F16^{1,2,3}),1,2) -> 3.30638749
E7: b3 | F7: =INDEX(LINEST(Dashboard!G9:G16,Dashboard!F9:F16^{1,2,3}),1) -> -0.01657242984
B9: FEED COSTS | C9: Starter | D9: Grower | E9: Finisher | F9: Withdrawal | G9: Total
B10: Age at Start (Days) | C10: =Dashboard!G23 -> 0 | D10: =Dashboard!H23 -> 17 | E10: =Dashboard!I23 -> 25 | F10: =Dashboard!J23 -> 32
B11: Age at End (Days) | C11: =Dashboard!G24 -> 17 | D11: =Dashboard!H24 -> 25 | E11: =Dashboard!I24 -> 32 | F11: =Dashboard!J24 -> 40
B12: Consumption (Kg) | C12: =(($F4+$F$5*C11+$F$6*C11*C11+$F$7*C11*C11*C11)-($F$4+$F$5*C10+$F$6*C10*C10+$F$7*C10*C10*C10))/1000 -> 0.623279265 | D12: =(($F4+$F$5*D11+$F$6*D11*D11+$F$7*D11*D11*D11)-($F$4+$F$5*D10+$F$6*D10*D10+$F$7*D10*D10*D10))/1000 -> 0.8153769768 | E12: =(($F4+$F$5*E11+$F$6*E11*E11+$F$7*E11*E11*E11)-($F$4+$F$5*E10+$F$6*E10*E10+$F$7*E10*E10*E10))/1000 -> 0.9318577613 | F12: =(($F4+$F$5*F11+$F$6*F11*F11+$F$7*F11*F11*F11)-($F$4+$F$5*F10+$F$6*F10*F10+$F$7*F10*F10*F10))/1000 -> 1.268843714
B13: $/ton (1000 Kg) | C13: =Dashboard!G25 -> 450 | D13: =Dashboard!H25 -> 425 | E13: =Dashboard!I25 -> 400 | F13: =Dashboard!J25 -> 350
B14: Feed Cost per bird | C14: =C12*C13/1000 -> 0.2804756692 | D14: =D12*D13/1000 -> 0.3465352151 | E14: =E12*E13/1000 -> 0.3727431045 | F14: =F12*F13/1000 -> 0.4440952999
B15: TOTAL | G15: =SUM(C14:F14) -> 1.443849289
B17: Birds | C17: /Ft2 | E17: =Dashboard!D18 -> 1
B18: Chick Cost | C18: $/Chick | E18: =Dashboard!D19 -> 0.3 | H18: Per Treatment
B19: House & Utilities | C19: $/Ft2/Year | E19: =Dashboard!D20 -> 0 | G19: =E26*E27 -> 75 | H19: Total Chicks
B20: Feeding Time | C20: Minutes/week/pen | E20: =Dashboard!D21 -> 10 | G20: =G19*E18 -> 22.5 | H20: Total Chick Cost
B21: Observation Time | C21: Minutes/week/pen | E21: =Dashboard!D22 -> 14 | G21: =G19*G15 -> 108.2886967 | H21: Total Feed Cost
B22: Weighings | C22: Times/Trial | E22: =Dashboard!D23 -> 4 | G22: =MAX(C10:F11)/7 -> 5.714285714 | H22: Weeks of Age
B23: Weighing Time | C23: Minutes/pen | E23: =Dashboard!D24 -> 5 | G23: =E20*G22*E27 -> 285.7142857 | H23: Minutes of Feeding Labor
B24: Labor Cost | C24: $/Hour | E24: =Dashboard!D25 -> 10 | G24: =E22*E23*E27 -> 100 | H24: Minutes of Weighing Labor
G25: =E21*E27*G22 -> 400 | H25: Minutes of Observing Labor
B26: Birds per pen | E26: =Dashboard!D14 -> 15 | G26: =SUM(G23:G25) -> 785.7142857 | H26: Total Minutes of Labor
B27: Pens per treatment | E27: =Dashboard!D15 -> 5 | G27: =G26/60*E24 -> 130.952381 | H27: Total Labor Cost
B28: Total Cost per treatment | E28: =G20+G21+G27+G28 -> 261.7410776 | G28: =((G19*E17*E19)*G22/52)*3 -> 0 | H28: Total Housing Cost (Asummes 2x floor space outside pens)

Sheet TC_vs_DD
B2: Reps | C2: Birds | D2: Total Birds | E2: TC | F2: DD | P2: Reps | Q2: Birds | R2: Total Birds | S2: TC | T2: DD
B3: 2 | C3: 60 | D3: =B3*C3 -> 120 | E3: =D3*Dashboard!$D$19+D3*Cost_Estimation!$G$15+(Cost_Estimation!$G$22*Cost_Estimation!$E$20*Cost_Estimation!$E$27+Cost_Estimation!$E$23*Cost_Estimation!$E$22*Cost_Estimation!$E$27+Cost_Estimation!$G$22*Cost_Estimation!$E$21*Cost_Estimation!$E$27)/60*Cost_Estimation!$E$24 + D3*Cost_Estimation!$G$22*Cost_Estimation!$E$17*Cost_Estimation!$E$19/52*3 -> 340.2142956 | F3: =SQRT(2*(Dashboard!$D$8)^2/(C3*B3))*(TINV(Dashboard!$D$10,B3-1)+TINV(2*(1-Dashboard!$D$11),B3-1)) -> 284.3073032 | P3: 2 | Q3: 5 | R3: =P3*Q3 -> 10 | S3: =R3*Dashboard!$D$19+R3*Cost_Estimation!$G$15+(Cost_Estimation!$G$22*Cost_Estimation!$E$20*Cost_Estimation!$E$27+Cost_Estimation!$E$23*Cost_Estimation!$E$22*Cost_Estimation!$E$27+Cost_Estimation!$G$22*Cost_Estimation!$E$21*Cost_Estimation!$E$27)/60*Cost_Estimation!$E$24 + R3*Cost_Estimation!$G$22*Cost_Estimation!$E$17*Cost_Estimation!$E$19/52*3 -> 148.3908738 | T3: =SQRT(2*(Dashboard!$D$8)^2/(Q3*P3))*(TINV(Dashboard!$D$10,P3-1)+TINV(2*(1-Dashboard!$D$11),P3-1)) -> 984.8693884
B4: 2 | C4: 120 | D4: =B4*C4 -> 240 | E4: =D4*Dashboard!$D$19+D4*Cost_Estimation!$G$15+(Cost_Estimation!$G$22*Cost_Estimation!$E$20*Cost_Estimation!$E$27+Cost_Estimation!$E$23*Cost_Estimation!$E$22*Cost_Estimation!$E$27+Cost_Estimation!$G$22*Cost_Estimation!$E$21*Cost_Estimation!$E$27)/60*Cost_Estimation!$E$24 + D4*Cost_Estimation!$G$22*Cost_Estimation!$E$17*Cost_Estimation!$E$19/52*3 -> 549.4762103 | F4: =SQRT(2*(Dashboard!$D$8)^2/(C4*B4))*(TINV(Dashboard!$D$10,B4-1)+TINV(2*(1-Dashboard!$D$11),B4-1)) -> 201.0356221 | P4: 2 | Q4: 10 | R4: =P4*Q4 -> 20 | S4: =R4*Dashboard!$D$19+R4*Cost_Estimation!$G$15+(Cost_Estimation!$G$22*Cost_Estimation!$E$20*Cost_Estimation!$E$27+Cost_Estimation!$E$23*Cost_Estimation!$E$22*Cost_Estimation!$E$27+Cost_Estimation!$G$22*Cost_Estimation!$E$21*Cost_Estimation!$E$27)/60*Cost_Estimation!$E$24 + R4*Cost_Estimation!$G$22*Cost_Estimation!$E$17*Cost_Estimation!$E$19/52*3 -> 165.8293667 | T4: =SQRT(2*(Dashboard!$D$8)^2/(Q4*P4))*(TINV(Dashboard!$D$10,P4-1)+TINV(2*(1-Dashboard!$D$11),P4-1)) -> 696.4078231
B5: 2 | C5: 180 | D5: 360 | E5: =D5*Dashboard!$D$19+D5*Cost_Estimation!$G$15+(Cost_Estimation!$G$22*Cost_Estimation!$E$20*Cost_Estimation!$E$27+Cost_Estimation!$E$23*Cost_Estimation!$E$22*Cost_Estimation!$E$27+Cost_Estimation!$G$22*Cost_Estimation!$E$21*Cost_Estimation!$E$27)/60*Cost_Estimation!$E$24 + D5*Cost_Estimation!$G$22*Cost_Estimation!$E$17*Cost_Estimation!$E$19/52*3 -> 758.7381249 | F5: =SQRT(2*(Dashboard!$D$8)^2/(C5*B5))*(TINV(Dashboard!$D$10,B5-1)+TINV(2*(1-Dashboard!$D$11),B5-1)) -> 164.1448981 | P5: 2 | Q5: 15 | R5: 30 | S5: =R5*Dashboard!$D$19+R5*Cost_Estimation!$G$15+(Cost_Estimation!$G$22*Cost_Estimation!$E$20*Cost_Estimation!$E$27+Cost_Estimation!$E$23*Cost_Estimation!$E$22*Cost_Estimation!$E$27+Cost_Estimation!$G$22*Cost_Estimation!$E$21*Cost_Estimation!$E$27)/60*Cost_Estimation!$E$24 + R5*Cost_Estimation!$G$22*Cost_Estimation!$E$17*Cost_Estimation!$E$19/52*3 -> 183.2678596 | T5: =SQRT(2*(Dashboard!$D$8)^2/(Q5*P5))*(TINV(Dashboard!$D$10,P5-1)+TINV(2*(1-Dashboard!$D$11),P5-1)) -> 568.6146065
B6: 2 | C6: 240 | D6: 480 | E6: =D6*Dashboard!$D$19+D6*Cost_Estimation!$G$15+(Cost_Estimation!$G$22*Cost_Estimation!$E$20*Cost_Estimation!$E$27+Cost_Estimation!$E$23*Cost_Estimation!$E$22*Cost_Estimation!$E$27+Cost_Estimation!$G$22*Cost_Estimation!$E$21*Cost_Estimation!$E$27)/60*Cost_Estimation!$E$24 + D6*Cost_Estimation!$G$22*Cost_Estimation!$E$17*Cost_Estimation!$E$19/52*3 -> 968.0000396 | F6: =SQRT(2*(Dashboard!$D$8)^2/(C6*B6))*(TINV(Dashboard!$D$10,B6-1)+TINV(2*(1-Dashboard!$D$11),B6-1)) -> 142.1536516 | P6: 2 | Q6: 20 | R6: 40 | S6: =R6*Dashboard!$D$19+R6*Cost_Estimation!$G$15+(Cost_Estimation!$G$22*Cost_Estimation!$E$20*Cost_Estimation!$E$27+Cost_Estimation!$E$23*Cost_Estimation!$E$22*Cost_Estimation!$E$27+Cost_Estimation!$G$22*Cost_Estimation!$E$21*Cost_Estimation!$E$27)/60*Cost_Estimation!$E$24 + R6*Cost_Estimation!$G$22*Cost_Estimation!$E$17*Cost_Estimation!$E$19/52*3 -> 200.7063525 | T6: =SQRT(2*(Dashboard!$D$8)^2/(Q6*P6))*(TINV(Dashboard!$D$10,P6-1)+TINV(2*(1-Dashboard!$D$11),P6-1)) -> 492.4346942
B7: 2 | C7: 300 | D7: 600 | E7: =D7*Dashboard!$D$19+D7*Cost_Estimation!$G$15+(Cost_Estimation!$G$22*Cost_Estimation!$E$20*Cost_Estimation!$E$27+Cost_Estimation!$E$23*Cost_Estimation!$E$22*Cost_Estimation!$E$27+Cost_Estimation!$G$22*Cost_Estimation!$E$21*Cost_Estimation!$E$27)/60*Cost_Estimation!$E$24 + D7*Cost_Estimation!$G$22*Cost_Estimation!$E$17*Cost_Estimation!$E$19/52*3 -> 1177.261954 | F7: =SQRT(2*(Dashboard!$D$8)^2/(C7*B7))*(TINV(Dashboard!$D$10,B7-1)+TINV(2*(1-Dashboard!$D$11),B7-1)) -> 127.1460913 | P7: 2 | Q7: 25 | R7: 50 | S7: =R7*Dashboard!$D$19+R7*Cost_Estimation!$G$15+(Cost_Estimation!$G$22*Cost_Estimation!$E$20*Cost_Estimation!$E$27+Cost_Estimation!$E$23*Cost_Estimation!$E$22*Cost_Estimation!$E$27+Cost_Estimation!$G$22*Cost_Estimation!$E$21*Cost_Estimation!$E$27)/60*Cost_Estimation!$E$24 + R7*Cost_Estimation!$G$22*Cost_Estimation!$E$17*Cost_Estimation!$E$19/52*3 -> 218.1448454 | T7: =SQRT(2*(Dashboard!$D$8)^2/(Q7*P7))*(TINV(Dashboard!$D$10,P7-1)+TINV(2*(1-Dashboard!$D$11),P7-1)) -> 440.4469803
B8: 2 | C8: 360 | D8: 720 | E8: =D8*Dashboard!$D$19+D8*Cost_Estimation!$G$15+(Cost_Estimation!$G$22*Cost_Estimation!$E$20*Cost_Estimation!$E$27+Cost_Estimation!$E$23*Cost_Estimation!$E$22*Cost_Estimation!$E$27+Cost_Estimation!$G$22*Cost_Estimation!$E$21*Cost_Estimation!$E$27)/60*Cost_Estimation!$E$24 + D8*Cost_Estimation!$G$22*Cost_Estimation!$E$17*Cost_Estimation!$E$19/52*3 -> 1386.523869 | F8: =SQRT(2*(Dashboard!$D$8)^2/(C8*B8))*(TINV(Dashboard!$D$10,B8-1)+TINV(2*(1-Dashboard!$D$11),B8-1)) -> 116.0679705 | P8: 2 | Q8: 30 | R8: 60 | S8: =R8*Dashboard!$D$19+R8*Cost_Estimation!$G$15+(Cost_Estimation!$G$22*Cost_Estimation!$E$20*Cost_Estimation!$E$27+Cost_Estimation!$E$23*Cost_Estimation!$E$22*Cost_Estimation!$E$27+Cost_Estimation!$G$22*Cost_Estimation!$E$21*Cost_Estimation!$E$27)/60*Cost_Estimation!$E$24 + R8*Cost_Estimation!$G$22*Cost_Estimation!$E$17*Cost_Estimation!$E$19/52*3 -> 235.5833383 | T8: =SQRT(2*(Dashboard!$D$8)^2/(Q8*P8))*(TINV(Dashboard!$D$10,P8-1)+TINV(2*(1-Dashboard!$D$11),P8-1)) -> 402.0712441
B9: 2 | C9: 420 | D9: 840 | E9: =D9*Dashboard!$D$19+D9*Cost_Estimation!$G$15+(Cost_Estimation!$G$22*Cost_Estimation!$E$20*Cost_Estimation!$E$27+Cost_Estimation!$E$23*Cost_Estimation!$E$22*Cost_Estimation!$E$27+Cost_Estimation!$G$22*Cost_Estimation!$E$21*Cost_Estimation!$E$27)/60*Cost_Estimation!$E$24 + D9*Cost_Estimation!$G$22*Cost_Estimation!$E$17*Cost_Estimation!$E$19/52*3 -> 1595.785784 | F9: =SQRT(2*(Dashboard!$D$8)^2/(C9*B9))*(TINV(Dashboard!$D$10,B9-1)+TINV(2*(1-Dashboard!$D$11),B9-1)) -> 107.45806 | P9: 2 | Q9: 35 | R9: 70 | S9: =R9*Dashboard!$D$19+R9*Cost_Estimation!$G$15+(Cost_Estimation!$G$22*Cost_Estimation!$E$20*Cost_Estimation!$E$27+Cost_Estimation!$E$23*Cost_Estimation!$E$22*Cost_Estimation!$E$27+Cost_Estimation!$G$22*Cost_Estimation!$E$21*Cost_Estimation!$E$27)/60*Cost_Estimation!$E$24 + R9*Cost_Estimation!$G$22*Cost_Estimation!$E$17*Cost_Estimation!$E$19/52*3 -> 253.0218312 | T9: =SQRT(2*(Dashboard!$D$8)^2/(Q9*P9))*(TINV(Dashboard!$D$10,P9-1)+TINV(2*(1-Dashboard!$D$11),P9-1)) -> 372.2456394
B10: 2 | C10: 480 | D10: 960 | E10: =D10*Dashboard!$D$19+D10*Cost_Estimation!$G$15+(Cost_Estimation!$G$22*Cost_Estimation!$E$20*Cost_Estimation!$E$27+Cost_Estimation!$E$23*Cost_Estimation!$E$22*Cost_Estimation!$E$27+Cost_Estimation!$G$22*Cost_Estimation!$E$21*Cost_Estimation!$E$27)/60*Cost_Estimation!$E$24 + D10*Cost_Estimation!$G$22*Cost_Estimation!$E$17*Cost_Estimation!$E$19/52*3 -> 1805.047698 | F10: =SQRT(2*(Dashboard!$D$8)^2/(C10*B10))*(TINV(Dashboard!$D$10,B10-1)+TINV(2*(1-Dashboard!$D$11),B10-1)) -> 100.517811 | P10: 2 | Q10: 40 | R10: 80 | S10: =R10*Dashboard!$D$19+R10*Cost_Estimation!$G$15+(Cost_Estimation!$G$22*Cost_Estimation!$E$20*Cost_Estimation!$E$27+Cost_Estimation!$E$23*Cost_Estimation!$E$22*Cost_Estimation!$E$27+Cost_Estimation!$G$22*Cost_Estimation!$E$21*Cost_Estimation!$E$27)/60*Cost_Estimation!$E$24 + R10*Cost_Estimation!$G$22*Cost_Estimation!$E$17*Cost_Estimation!$E$19/52*3 -> 270.4603241 | T10: =SQRT(2*(Dashboard!$D$8)^2/(Q10*P10))*(TINV(Dashboard!$D$10,P10-1)+TINV(2*(1-Dashboard!$D$11),P10-1)) -> 348.2039116
B11: 2 | C11: 540 | D11: 1080 | E11: =D11*Dashboard!$D$19+D11*Cost_Estimation!$G$15+(Cost_Estimation!$G$22*Cost_Estimation!$E$20*Cost_Estimation!$E$27+Cost_Estimation!$E$23*Cost_Estimation!$E$22*Cost_Estimation!$E$27+Cost_Estimation!$G$22*Cost_Estimation!$E$21*Cost_Estimation!$E$27)/60*Cost_Estimation!$E$24 + D11*Cost_Estimation!$G$22*Cost_Estimation!$E$17*Cost_Estimation!$E$19/52*3 -> 2014.309613 | F11: =SQRT(2*(Dashboard!$D$8)^2/(C11*B11))*(TINV(Dashboard!$D$10,B11-1)+TINV(2*(1-Dashboard!$D$11),B11-1)) -> 94.76910108 | P11: 2 | Q11: 45 | R11: 90 | S11: =R11*Dashboard!$D$19+R11*Cost_Estimation!$G$15+(Cost_Estimation!$G$22*Cost_Estimation!$E$20*Cost_Estimation!$E$27+Cost_Estimation!$E$23*Cost_Estimation!$E$22*Cost_Estimation!$E$27+Cost_Estimation!$G$22*Cost_Estimation!$E$21*Cost_Estimation!$E$27)/60*Cost_Estimation!$E$24 + R11*Cost_Estimation!$G$22*Cost_Estimation!$E$17*Cost_Estimation!$E$19/52*3 -> 287.8988169 | T11: =SQRT(2*(Dashboard!$D$8)^2/(Q11*P11))*(TINV(Dashboard!$D$10,P11-1)+TINV(2*(1-Dashboard!$D$11),P11-1)) -> 328.2897961
B12: 2 | C12: 600 | D12: 1200 | E12: =D12*Dashboard!$D$19+D12*Cost_Estimation!$G$15+(Cost_Estimation!$G$22*Cost_Estimation!$E$20*Cost_Estimation!$E$27+Cost_Estimation!$E$23*Cost_Estimation!$E$22*Cost_Estimation!$E$27+Cost_Estimation!$G$22*Cost_Estimation!$E$21*Cost_Estimation!$E$27)/60*Cost_Estimation!$E$24 + D12*Cost_Estimation!$G$22*Cost_Estimation!$E$17*Cost_Estimation!$E$19/52*3 -> 2223.571528 | F12: =SQRT(2*(Dashboard!$D$8)^2/(C12*B12))*(TINV(Dashboard!$D$10,B12-1)+TINV(2*(1-Dashboard!$D$11),B12-1)) -> 89.90586337 | P12: 2 | Q12: 50 | R12: 100 | S12: =R12*Dashboard!$D$19+R12*Cost_Estimation!$G$15+(Cost_Estimation!$G$22*Cost_Estimation!$E$20*Cost_Estimation!$E$27+Cost_Estimation!$E$23*Cost_Estimation!$E$22*Cost_Estimation!$E$27+Cost_Estimation!$G$22*Cost_Estimation!$E$21*Cost_Estimation!$E$27)/60*Cost_Estimation!$E$24 + R12*Cost_Estimation!$G$22*Cost_Estimation!$E$17*Cost_Estimation!$E$19/52*3 -> 305.3373098 | T12: =SQRT(2*(Dashboard!$D$8)^2/(Q12*P12))*(TINV(Dashboard!$D$10,P12-1)+TINV(2*(1-Dashboard!$D$11),P12-1)) -> 311.4430465
B13: 2 | C13: 660 | D13: 1320 | E13: =D13*Dashboard!$D$19+D13*Cost_Estimation!$G$15+(Cost_Estimation!$G$22*Cost_Estimation!$E$20*Cost_Estimation!$E$27+Cost_Estimation!$E$23*Cost_Estimation!$E$22*Cost_Estimation!$E$27+Cost_Estimation!$G$22*Cost_Estimation!$E$21*Cost_Estimation!$E$27)/60*Cost_Estimation!$E$24 + D13*Cost_Estimation!$G$22*Cost_Estimation!$E$17*Cost_Estimation!$E$19/52*3 -> 2432.833442 | F13: =SQRT(2*(Dashboard!$D$8)^2/(C13*B13))*(TINV(Dashboard!$D$10,B13-1)+TINV(2*(1-Dashboard!$D$11),B13-1)) -> 85.72187728 | P13: 2 | Q13: 55 | R13: 110 | S13: =R13*Dashboard!$D$19+R13*Cost_Estimation!$G$15+(Cost_Estimation!$G$22*Cost_Estimation!$E$20*Cost_Estimation!$E$27+Cost_Estimation!$E$23*Cost_Estimation!$E$22*Cost_Estimation!$E$27+Cost_Estimation!$G$22*Cost_Estimation!$E$21*Cost_Estimation!$E$27)/60*Cost_Estimation!$E$24 + R13*Cost_Estimation!$G$22*Cost_Estimation!$E$17*Cost_Estimation!$E$19/52*3 -> 322.7758027 | T13: =SQRT(2*(Dashboard!$D$8)^2/(Q13*P13))*(TINV(Dashboard!$D$10,P13-1)+TINV(2*(1-Dashboard!$D$11),P13-1)) -> 296.9492935
B14: 2 | C14: 720 | D14: 1440 | E14: =D14*Dashboard!$D$19+D14*Cost_Estimation!$G$15+(Cost_Estimation!$G$22*Cost_Estimation!$E$20*Cost_Estimation!$E$27+Cost_Estimation!$E$23*Cost_Estimation!$E$22*Cost_Estimation!$E$27+Cost_Estimation!$G$22*Cost_Estimation!$E$21*Cost_Estimation!$E$27)/60*Cost_Estimation!$E$24 + D14*Cost_Estimation!$G$22*Cost_Estimation!$E$17*Cost_Estimation!$E$19/52*3 -> 2642.095357 | F14: =SQRT(2*(Dashboard!$D$8)^2/(C14*B14))*(TINV(Dashboard!$D$10,B14-1)+TINV(2*(1-Dashboard!$D$11),B14-1)) -> 82.07244903 | P14: 2 | Q14: 60 | R14: 120 | S14: =R14*Dashboard!$D$19+R14*Cost_Estimation!$G$15+(Cost_Estimation!$G$22*Cost_Estimation!$E$20*Cost_Estimation!$E$27+Cost_Estimation!$E$23*Cost_Estimation!$E$22*Cost_Estimation!$E$27+Cost_Estimation!$G$22*Cost_Estimation!$E$21*Cost_Estimation!$E$27)/60*Cost_Estimation!$E$24 + R14*Cost_Estimation!$G$22*Cost_Estimation!$E$17*Cost_Estimation!$E$19/52*3 -> 340.2142956 | T14: =SQRT(2*(Dashboard!$D$8)^2/(Q14*P14))*(TINV(Dashboard!$D$10,P14-1)+TINV(2*(1-Dashboard!$D$11),P14-1)) -> 284.3073032
B15: 2 | C15: 780 | D15: 1560 | E15: =D15*Dashboard!$D$19+D15*Cost_Estimation!$G$15+(Cost_Estimation!$G$22*Cost_Estimation!$E$20*Cost_Estimation!$E$27+Cost_Estimation!$E$23*Cost_Estimation!$E$22*Cost_Estimation!$E$27+Cost_Estimation!$G$22*Cost_Estimation!$E$21*Cost_Estimation!$E$27)/60*Cost_Estimation!$E$24 + D15*Cost_Estimation!$G$22*Cost_Estimation!$E$17*Cost_Estimation!$E$19/52*3 -> 2851.357271 | F15: =SQRT(2*(Dashboard!$D$8)^2/(C15*B15))*(TINV(Dashboard!$D$10,B15-1)+TINV(2*(1-Dashboard!$D$11),B15-1)) -> 78.85265845 | P15: 2 | Q15: 65 | R15: 130 | S15: =R15*Dashboard!$D$19+R15*Cost_Estimation!$G$15+(Cost_Estimation!$G$22*Cost_Estimation!$E$20*Cost_Estimation!$E$27+Cost_Estimation!$E$23*Cost_Estimation!$E$22*Cost_Estimation!$E$27+Cost_Estimation!$G$22*Cost_Estimation!$E$21*Cost_Estimation!$E$27)/60*Cost_Estimation!$E$24 + R15*Cost_Estimation!$G$22*Cost_Estimation!$E$17*Cost_Estimation!$E$19/52*3 -> 357.6527885 | T15: =SQRT(2*(Dashboard!$D$8)^2/(Q15*P15))*(TINV(Dashboard!$D$10,P15-1)+TINV(2*(1-Dashboard!$D$11),P15-1)) -> 273.1536215
B16: 2 | C16: 840 | D16: 1680 | E16: =D16*Dashboard!$D$19+D16*Cost_Estimation!$G$15+(Cost_Estimation!$G$22*Cost_Estimation!$E$20*Cost_Estimation!$E$27+Cost_Estimation!$E$23*Cost_Estimation!$E$22*Cost_Estimation!$E$27+Cost_Estimation!$G$22*Cost_Estimation!$E$21*Cost_Estimation!$E$27)/60*Cost_Estimation!$E$24 + D16*Cost_Estimation!$G$22*Cost_Estimation!$E$17*Cost_Estimation!$E$19/52*3 -> 3060.619186 | F16: =SQRT(2*(Dashboard!$D$8)^2/(C16*B16))*(TINV(Dashboard!$D$10,B16-1)+TINV(2*(1-Dashboard!$D$11),B16-1)) -> 75.98432295 | P16: 2 | Q16: 70 | R16: 140 | S16: =R16*Dashboard!$D$19+R16*Cost_Estimation!$G$15+(Cost_Estimation!$G$22*Cost_Estimation!$E$20*Cost_Estimation!$E$27+Cost_Estimation!$E$23*Cost_Estimation!$E$22*Cost_Estimation!$E$27+Cost_Estimation!$G$22*Cost_Estimation!$E$21*Cost_Estimation!$E$27)/60*Cost_Estimation!$E$24 + R16*Cost_Estimation!$G$22*Cost_Estimation!$E$17*Cost_Estimation!$E$19/52*3 -> 375.0912814 | T16: =SQRT(2*(Dashboard!$D$8)^2/(Q16*P16))*(TINV(Dashboard!$D$10,P16-1)+TINV(2*(1-Dashboard!$D$11),P16-1)) -> 263.2174159
B17: 2 | C17: 900 | D17: 1800 | E17: =D17*Dashboard!$D$19+D17*Cost_Estimation!$G$15+(Cost_Estimation!$G$22*Cost_Estimation!$E$20*Cost_Estimation!$E$27+Cost_Estimation!$E$23*Cost_Estimation!$E$22*Cost_Estimation!$E$27+Cost_Estimation!$G$22*Cost_Estimation!$E$21*Cost_Estimation!$E$27)/60*Cost_Estimation!$E$24 + D17*Cost_Estimation!$G$22*Cost_Estimation!$E$17*Cost_Estimation!$E$19/52*3 -> 3269.881101 | F17: =SQRT(2*(Dashboard!$D$8)^2/(C17*B17))*(TINV(Dashboard!$D$10,B17-1)+TINV(2*(1-Dashboard!$D$11),B17-1)) -> 73.40783005 | P17: 2 | Q17: 75 | R17: 150 | S17: =R17*Dashboard!$D$19+R17*Cost_Estimation!$G$15+(Cost_Estimation!$G$22*Cost_Estimation!$E$20*Cost_Estimation!$E$27+Cost_Estimation!$E$23*Cost_Estimation!$E$22*Cost_Estimation!$E$27+Cost_Estimation!$G$22*Cost_Estimation!$E$21*Cost_Estimation!$E$27)/60*Cost_Estimation!$E$24 + R17*Cost_Estimation!$G$22*Cost_Estimation!$E$17*Cost_Estimation!$E$19/52*3 -> 392.5297743 | T17: =SQRT(2*(Dashboard!$D$8)^2/(Q17*P17))*(TINV(Dashboard!$D$10,P17-1)+TINV(2*(1-Dashboard!$D$11),P17-1)) -> 254.2921826
B18: 2 | C18: 960 | D18: 1920 | E18: =D18*Dashboard!$D$19+D18*Cost_Estimation!$G$15+(Cost_Estimation!$G$22*Cost_Estimation!$E$20*Cost_Estimation!$E$27+Cost_Estimation!$E$23*Cost_Estimation!$E$22*Cost_Estimation!$E$27+Cost_Estimation!$G$22*Cost_Estimation!$E$21*Cost_Estimation!$E$27)/60*Cost_Estimation!$E$24 + D18*Cost_Estimation!$G$22*Cost_Estimation!$E$17*Cost_Estimation!$E$19/52*3 -> 3479.143015 | F18: =SQRT(2*(Dashboard!$D$8)^2/(C18*B18))*(TINV(Dashboard!$D$10,B18-1)+TINV(2*(1-Dashboard!$D$11),B18-1)) -> 71.07682581 | P18: 2 | Q18: 80 | R18: 160 | S18: =R18*Dashboard!$D$19+R18*Cost_Estimation!$G$15+(Cost_Estimation!$G$22*Cost_Estimation!$E$20*Cost_Estimation!$E$27+Cost_Estimation!$E$23*Cost_Estimation!$E$22*Cost_Estimation!$E$27+Cost_Estimation!$G$22*Cost_Estimation!$E$21*Cost_Estimation!$E$27)/60*Cost_Estimation!$E$24 + R18*Cost_Estimation!$G$22*Cost_Estimation!$E$17*Cost_Estimation!$E$19/52*3 -> 409.9682672 | T18: =SQRT(2*(Dashboard!$D$8)^2/(Q18*P18))*(TINV(Dashboard!$D$10,P18-1)+TINV(2*(1-Dashboard!$D$11),P18-1)) -> 246.2173471
B20: 3 | C20: 40 | D20: 120 | E20: =D20*Dashboard!$D$19+D20*Cost_Estimation!$G$15+(Cost_Estimation!$G$22*Cost_Estimation!$E$20*Cost_Estimation!$E$27+Cost_Estimation!$E$23*Cost_Estimation!$E$22*Cost_Estimation!$E$27+Cost_Estimation!$G$22*Cost_Estimation!$E$21*Cost_Estimation!$E$27)/60*Cost_Estimation!$E$24 + D20*Cost_Estimation!$G$22*Cost_Estimation!$E$17*Cost_Estimation!$E$19/52*3 -> 340.2142956 | F20: =SQRT(2*(Dashboard!$D$8)^2/(C20*B20))*(TINV(Dashboard!$D$10,B20-1)+TINV(2*(1-Dashboard!$D$11),B20-1)) -> 108.2776243 | P20: 3 | Q20: 5 | R20: =P20*Q20 -> 15 | S20: =R20*Dashboard!$D$19+R20*Cost_Estimation!$G$15+(Cost_Estimation!$G$22*Cost_Estimation!$E$20*Cost_Estimation!$E$27+Cost_Estimation!$E$23*Cost_Estimation!$E$22*Cost_Estimation!$E$27+Cost_Estimation!$G$22*Cost_Estimation!$E$21*Cost_Estimation!$E$27)/60*Cost_Estimation!$E$24 + R20*Cost_Estimation!$G$22*Cost_Estimation!$E$17*Cost_Estimation!$E$19/52*3 -> 157.1101203 | T20: =SQRT(2*(Dashboard!$D$8)^2/(Q20*P20))*(TINV(Dashboard!$D$10,P20-1)+TINV(2*(1-Dashboard!$D$11),P20-1)) -> 306.2553696
B21: 3 | C21: 80 | D21: 240 | E21: =D21*Dashboard!$D$19+D21*Cost_Estimation!$G$15+(Cost_Estimation!$G$22*Cost_Estimation!$E$20*Cost_Estimation!$E$27+Cost_Estimation!$E$23*Cost_Estimation!$E$22*Cost_Estimation!$E$27+Cost_Estimation!$G$22*Cost_Estimation!$E$21*Cost_Estimation!$E$27)/60*Cost_Estimation!$E$24 + D21*Cost_Estimation!$G$22*Cost_Estimation!$E$17*Cost_Estimation!$E$19/52*3 -> 549.4762103 | F21: =SQRT(2*(Dashboard!$D$8)^2/(C21*B21))*(TINV(Dashboard!$D$10,B21-1)+TINV(2*(1-Dashboard!$D$11),B21-1)) -> 76.56384241 | P21: 3 | Q21: 10 | R21: 30 | S21: =R21*Dashboard!$D$19+R21*Cost_Estimation!$G$15+(Cost_Estimation!$G$22*Cost_Estimation!$E$20*Cost_Estimation!$E$27+Cost_Estimation!$E$23*Cost_Estimation!$E$22*Cost_Estimation!$E$27+Cost_Estimation!$G$22*Cost_Estimation!$E$21*Cost_Estimation!$E$27)/60*Cost_Estimation!$E$24 + R21*Cost_Estimation!$G$22*Cost_Estimation!$E$17*Cost_Estimation!$E$19/52*3 -> 183.2678596 | T21: =SQRT(2*(Dashboard!$D$8)^2/(Q21*P21))*(TINV(Dashboard!$D$10,P21-1)+TINV(2*(1-Dashboard!$D$11),P21-1)) -> 216.5552486
B22: 3 | C22: 120 | D22: 360 | E22: =D22*Dashboard!$D$19+D22*Cost_Estimation!$G$15+(Cost_Estimation!$G$22*Cost_Estimation!$E$20*Cost_Estimation!$E$27+Cost_Estimation!$E$23*Cost_Estimation!$E$22*Cost_Estimation!$E$27+Cost_Estimation!$G$22*Cost_Estimation!$E$21*Cost_Estimation!$E$27)/60*Cost_Estimation!$E$24 + D22*Cost_Estimation!$G$22*Cost_Estimation!$E$17*Cost_Estimation!$E$19/52*3 -> 758.7381249 | F22: =SQRT(2*(Dashboard!$D$8)^2/(C22*B22))*(TINV(Dashboard!$D$10,B22-1)+TINV(2*(1-Dashboard!$D$11),B22-1)) -> 62.51411555 | P22: 3 | Q22: 15 | R22: 45 | S22: =R22*Dashboard!$D$19+R22*Cost_Estimation!$G$15+(Cost_Estimation!$G$22*Cost_Estimation!$E$20*Cost_Estimation!$E$27+Cost_Estimation!$E$23*Cost_Estimation!$E$22*Cost_Estimation!$E$27+Cost_Estimation!$G$22*Cost_Estimation!$E$21*Cost_Estimation!$E$27)/60*Cost_Estimation!$E$24 + R22*Cost_Estimation!$G$22*Cost_Estimation!$E$17*Cost_Estimation!$E$19/52*3 -> 209.4255989 | T22: =SQRT(2*(Dashboard!$D$8)^2/(Q22*P22))*(TINV(Dashboard!$D$10,P22-1)+TINV(2*(1-Dashboard!$D$11),P22-1)) -> 176.8166201
B23: 3 | C23: 160 | D23: 480 | E23: =D23*Dashboard!$D$19+D23*Cost_Estimation!$G$15+(Cost_Estimation!$G$22*Cost_Estimation!$E$20*Cost_Estimation!$E$27+Cost_Estimation!$E$23*Cost_Estimation!$E$22*Cost_Estimation!$E$27+Cost_Estimation!$G$22*Cost_Estimation!$E$21*Cost_Estimation!$E$27)/60*Cost_Estimation!$E$24 + D23*Cost_Estimation!$G$22*Cost_Estimation!$E$17*Cost_Estimation!$E$19/52*3 -> 968.0000396 | F23: =SQRT(2*(Dashboard!$D$8)^2/(C23*B23))*(TINV(Dashboard!$D$10,B23-1)+TINV(2*(1-Dashboard!$D$11),B23-1)) -> 54.13881216 | P23: 3 | Q23: 20 | R23: 60 | S23: =R23*Dashboard!$D$19+R23*Cost_Estimation!$G$15+(Cost_Estimation!$G$22*Cost_Estimation!$E$20*Cost_Estimation!$E$27+Cost_Estimation!$E$23*Cost_Estimation!$E$22*Cost_Estimation!$E$27+Cost_Estimation!$G$22*Cost_Estimation!$E$21*Cost_Estimation!$E$27)/60*Cost_Estimation!$E$24 + R23*Cost_Estimation!$G$22*Cost_Estimation!$E$17*Cost_Estimation!$E$19/52*3 -> 235.5833383 | T23: =SQRT(2*(Dashboard!$D$8)^2/(Q23*P23))*(TINV(Dashboard!$D$10,P23-1)+TINV(2*(1-Dashboard!$D$11),P23-1)) -> 153.1276848
B24: 3 | C24: 200 | D24: 600 | E24: =D24*Dashboard!$D$19+D24*Cost_Estimation!$G$15+(Cost_Estimation!$G$22*Cost_Estimation!$E$20*Cost_Estimation!$E$27+Cost_Estimation!$E$23*Cost_Estimation!$E$22*Cost_Estimation!$E$27+Cost_Estimation!$G$22*Cost_Estimation!$E$21*Cost_Estimation!$E$27)/60*Cost_Estimation!$E$24 + D24*Cost_Estimation!$G$22*Cost_Estimation!$E$17*Cost_Estimation!$E$19/52*3 -> 1177.261954 | F24: =SQRT(2*(Dashboard!$D$8)^2/(C24*B24))*(TINV(Dashboard!$D$10,B24-1)+TINV(2*(1-Dashboard!$D$11),B24-1)) -> 48.42322569 | P24: 3 | Q24: 25 | R24: 75 | S24: =R24*Dashboard!$D$19+R24*Cost_Estimation!$G$15+(Cost_Estimation!$G$22*Cost_Estimation!$E$20*Cost_Estimation!$E$27+Cost_Estimation!$E$23*Cost_Estimation!$E$22*Cost_Estimation!$E$27+Cost_Estimation!$G$22*Cost_Estimation!$E$21*Cost_Estimation!$E$27)/60*Cost_Estimation!$E$24 + R24*Cost_Estimation!$G$22*Cost_Estimation!$E$17*Cost_Estimation!$E$19/52*3 -> 261.7410776 | T24: =SQRT(2*(Dashboard!$D$8)^2/(Q24*P24))*(TINV(Dashboard!$D$10,P24-1)+TINV(2*(1-Dashboard!$D$11),P24-1)) -> 136.961565
B25: 3 | C25: 240 | D25: 720 | E25: =D25*Dashboard!$D$19+D25*Cost_Estimation!$G$15+(Cost_Estimation!$G$22*Cost_Estimation!$E$20*Cost_Estimation!$E$27+Cost_Estimation!$E$23*Cost_Estimation!$E$22*Cost_Estimation!$E$27+Cost_Estimation!$G$22*Cost_Estimation!$E$21*Cost_Estimation!$E$27)/60*Cost_Estimation!$E$24 + D25*Cost_Estimation!$G$22*Cost_Estimation!$E$17*Cost_Estimation!$E$19/52*3 -> 1386.523869 | F25: =SQRT(2*(Dashboard!$D$8)^2/(C25*B25))*(TINV(Dashboard!$D$10,B25-1)+TINV(2*(1-Dashboard!$D$11),B25-1)) -> 44.20415503 | P25: 3 | Q25: 30 | R25: 90 | S25: =R25*Dashboard!$D$19+R25*Cost_Estimation!$G$15+(Cost_Estimation!$G$22*Cost_Estimation!$E$20*Cost_Estimation!$E$27+Cost_Estimation!$E$23*Cost_Estimation!$E$22*Cost_Estimation!$E$27+Cost_Estimation!$G$22*Cost_Estimation!$E$21*Cost_Estimation!$E$27)/60*Cost_Estimation!$E$24 + R25*Cost_Estimation!$G$22*Cost_Estimation!$E$17*Cost_Estimation!$E$19/52*3 -> 287.8988169 | T25: =SQRT(2*(Dashboard!$D$8)^2/(Q25*P25))*(TINV(Dashboard!$D$10,P25-1)+TINV(2*(1-Dashboard!$D$11),P25-1)) -> 125.0282311
B26: 3 | C26: 280 | D26: 840 | E26: =D26*Dashboard!$D$19+D26*Cost_Estimation!$G$15+(Cost_Estimation!$G$22*Cost_Estimation!$E$20*Cost_Estimation!$E$27+Cost_Estimation!$E$23*Cost_Estimation!$E$22*Cost_Estimation!$E$27+Cost_Estimation!$G$22*Cost_Estimation!$E$21*Cost_Estimation!$E$27)/60*Cost_Estimation!$E$24 + D26*Cost_Estimation!$G$22*Cost_Estimation!$E$17*Cost_Estimation!$E$19/52*3 -> 1595.785784 | F26: =SQRT(2*(Dashboard!$D$8)^2/(C26*B26))*(TINV(Dashboard!$D$10,B26-1)+TINV(2*(1-Dashboard!$D$11),B26-1)) -> 40.92509522 | P26: 3 | Q26: 35 | R26: 105 | S26: =R26*Dashboard!$D$19+R26*Cost_Estimation!$G$15+(Cost_Estimation!$G$22*Cost_Estimation!$E$20*Cost_Estimation!$E$27+Cost_Estimation!$E$23*Cost_Estimation!$E$22*Cost_Estimation!$E$27+Cost_Estimation!$G$22*Cost_Estimation!$E$21*Cost_Estimation!$E$27)/60*Cost_Estimation!$E$24 + R26*Cost_Estimation!$G$22*Cost_Estimation!$E$17*Cost_Estimation!$E$19/52*3 -> 314.0565563 | T26: =SQRT(2*(Dashboard!$D$8)^2/(Q26*P26))*(TINV(Dashboard!$D$10,P26-1)+TINV(2*(1-Dashboard!$D$11),P26-1)) -> 115.7536494
B27: 3 | C27: 320 | D27: 960 | E27: =D27*Dashboard!$D$19+D27*Cost_Estimation!$G$15+(Cost_Estimation!$G$22*Cost_Estimation!$E$20*Cost_Estimation!$E$27+Cost_Estimation!$E$23*Cost_Estimation!$E$22*Cost_Estimation!$E$27+Cost_Estimation!$G$22*Cost_Estimation!$E$21*Cost_Estimation!$E$27)/60*Cost_Estimation!$E$24 + D27*Cost_Estimation!$G$22*Cost_Estimation!$E$17*Cost_Estimation!$E$19/52*3 -> 1805.047698 | F27: =SQRT(2*(Dashboard!$D$8)^2/(C27*B27))*(TINV(Dashboard!$D$10,B27-1)+TINV(2*(1-Dashboard!$D$11),B27-1)) -> 38.2819212 | P27: 3 | Q27: 40 | R27: 120 | S27: =R27*Dashboard!$D$19+R27*Cost_Estimation!$G$15+(Cost_Estimation!$G$22*Cost_Estimation!$E$20*Cost_Estimation!$E$27+Cost_Estimation!$E$23*Cost_Estimation!$E$22*Cost_Estimation!$E$27+Cost_Estimation!$G$22*Cost_Estimation!$E$21*Cost_Estimation!$E$27)/60*Cost_Estimation!$E$24 + R27*Cost_Estimation!$G$22*Cost_Estimation!$E$17*Cost_Estimation!$E$19/52*3 -> 340.2142956 | T27: =SQRT(2*(Dashboard!$D$8)^2/(Q27*P27))*(TINV(Dashboard!$D$10,P27-1)+TINV(2*(1-Dashboard!$D$11),P27-1)) -> 108.2776243
B28: 3 | C28: 360 | D28: 1080 | E28: =D28*Dashboard!$D$19+D28*Cost_Estimation!$G$15+(Cost_Estimation!$G$22*Cost_Estimation!$E$20*Cost_Estimation!$E$27+Cost_Estimation!$E$23*Cost_Estimation!$E$22*Cost_Estimation!$E$27+Cost_Estimation!$G$22*Cost_Estimation!$E$21*Cost_Estimation!$E$27)/60*Cost_Estimation!$E$24 + D28*Cost_Estimation!$G$22*Cost_Estimation!$E$17*Cost_Estimation!$E$19/52*3 -> 2014.309613 | F28: =SQRT(2*(Dashboard!$D$8)^2/(C28*B28))*(TINV(Dashboard!$D$10,B28-1)+TINV(2*(1-Dashboard!$D$11),B28-1)) -> 36.09254144 | P28: 3 | Q28: 45 | R28: 135 | S28: =R28*Dashboard!$D$19+R28*Cost_Estimation!$G$15+(Cost_Estimation!$G$22*Cost_Estimation!$E$20*Cost_Estimation!$E$27+Cost_Estimation!$E$23*Cost_Estimation!$E$22*Cost_Estimation!$E$27+Cost_Estimation!$G$22*Cost_Estimation!$E$21*Cost_Estimation!$E$27)/60*Cost_Estimation!$E$24 + R28*Cost_Estimation!$G$22*Cost_Estimation!$E$17*Cost_Estimation!$E$19/52*3 -> 366.3720349 | T28: =SQRT(2*(Dashboard!$D$8)^2/(Q28*P28))*(TINV(Dashboard!$D$10,P28-1)+TINV(2*(1-Dashboard!$D$11),P28-1)) -> 102.0851232
B29: 3 | C29: 400 | D29: 1200 | E29: =D29*Dashboard!$D$19+D29*Cost_Estimation!$G$15+(Cost_Estimation!$G$22*Cost_Estimation!$E$20*Cost_Estimation!$E$27+Cost_Estimation!$E$23*Cost_Estimation!$E$22*Cost_Estimation!$E$27+Cost_Estimation!$G$22*Cost_Estimation!$E$21*Cost_Estimation!$E$27)/60*Cost_Estimation!$E$24 + D29*Cost_Estimation!$G$22*Cost_Estimation!$E$17*Cost_Estimation!$E$19/52*3 -> 2223.571528 | F29: =SQRT(2*(Dashboard!$D$8)^2/(C29*B29))*(TINV(Dashboard!$D$10,B29-1)+TINV(2*(1-Dashboard!$D$11),B29-1)) -> 34.24039125 | P29: 3 | Q29: 50 | R29: 150 | S29: =R29*Dashboard!$D$19+R29*Cost_Estimation!$G$15+(Cost_Estimation!$G$22*Cost_Estimation!$E$20*Cost_Estimation!$E$27+Cost_Estimation!$E$23*Cost_Estimation!$E$22*Cost_Estimation!$E$27+Cost_Estimation!$G$22*Cost_Estimation!$E$21*Cost_Estimation!$E$27)/60*Cost_Estimation!$E$24 + R29*Cost_Estimation!$G$22*Cost_Estimation!$E$17*Cost_Estimation!$E$19/52*3 -> 392.5297743 | T29: =SQRT(2*(Dashboard!$D$8)^2/(Q29*P29))*(TINV(Dashboard!$D$10,P29-1)+TINV(2*(1-Dashboard!$D$11),P29-1)) -> 96.84645137
B30: 3 | C30: 440 | D30: 1320 | E30: =D30*Dashboard!$D$19+D30*Cost_Estimation!$G$15+(Cost_Estimation!$G$22*Cost_Estimation!$E$20*Cost_Estimation!$E$27+Cost_Estimation!$E$23*Cost_Estimation!$E$22*Cost_Estimation!$E$27+Cost_Estimation!$G$22*Cost_Estimation!$E$21*Cost_Estimation!$E$27)/60*Cost_Estimation!$E$24 + D30*Cost_Estimation!$G$22*Cost_Estimation!$E$17*Cost_Estimation!$E$19/52*3 -> 2432.833442 | F30: =SQRT(2*(Dashboard!$D$8)^2/(C30*B30))*(TINV(Dashboard!$D$10,B30-1)+TINV(2*(1-Dashboard!$D$11),B30-1)) -> 32.6469321 | P30: 3 | Q30: 55 | R30: 165 | S30: =R30*Dashboard!$D$19+R30*Cost_Estimation!$G$15+(Cost_Estimation!$G$22*Cost_Estimation!$E$20*Cost_Estimation!$E$27+Cost_Estimation!$E$23*Cost_Estimation!$E$22*Cost_Estimation!$E$27+Cost_Estimation!$G$22*Cost_Estimation!$E$21*Cost_Estimation!$E$27)/60*Cost_Estimation!$E$24 + R30*Cost_Estimation!$G$22*Cost_Estimation!$E$17*Cost_Estimation!$E$19/52*3 -> 418.6875136 | T30: =SQRT(2*(Dashboard!$D$8)^2/(Q30*P30))*(TINV(Dashboard!$D$10,P30-1)+TINV(2*(1-Dashboard!$D$11),P30-1)) -> 92.33946828
B31: 3 | C31: 480 | D31: 1440 | E31: =D31*Dashboard!$D$19+D31*Cost_Estimation!$G$15+(Cost_Estimation!$G$22*Cost_Estimation!$E$20*Cost_Estimation!$E$27+Cost_Estimation!$E$23*Cost_Estimation!$E$22*Cost_Estimation!$E$27+Cost_Estimation!$G$22*Cost_Estimation!$E$21*Cost_Estimation!$E$27)/60*Cost_Estimation!$E$24 + D31*Cost_Estimation!$G$22*Cost_Estimation!$E$17*Cost_Estimation!$E$19/52*3 -> 2642.095357 | F31: =SQRT(2*(Dashboard!$D$8)^2/(C31*B31))*(TINV(Dashboard!$D$10,B31-1)+TINV(2*(1-Dashboard!$D$11),B31-1)) -> 31.25705778 | P31: 3 | Q31: 60 | R31: 180 | S31: =R31*Dashboard!$D$19+R31*Cost_Estimation!$G$15+(Cost_Estimation!$G$22*Cost_Estimation!$E$20*Cost_Estimation!$E$27+Cost_Estimation!$E$23*Cost_Estimation!$E$22*Cost_Estimation!$E$27+Cost_Estimation!$G$22*Cost_Estimation!$E$21*Cost_Estimation!$E$27)/60*Cost_Estimation!$E$24 + R31*Cost_Estimation!$G$22*Cost_Estimation!$E$17*Cost_Estimation!$E$19/52*3 -> 444.8452529 | T31: =SQRT(2*(Dashboard!$D$8)^2/(Q31*P31))*(TINV(Dashboard!$D$10,P31-1)+TINV(2*(1-Dashboard!$D$11),P31-1)) -> 88.40831005
B32: 3 | C32: 520 | D32: 1560 | E32: =D32*Dashboard!$D$19+D32*Cost_Estimation!$G$15+(Cost_Estimation!$G$22*Cost_Estimation!$E$20*Cost_Estimation!$E$27+Cost_Estimation!$E$23*Cost_Estimation!$E$22*Cost_Estimation!$E$27+Cost_Estimation!$G$22*Cost_Estimation!$E$21*Cost_Estimation!$E$27)/60*Cost_Estimation!$E$24 + D32*Cost_Estimation!$G$22*Cost_Estimation!$E$17*Cost_Estimation!$E$19/52*3 -> 2851.357271 | F32: =SQRT(2*(Dashboard!$D$8)^2/(C32*B32))*(TINV(Dashboard!$D$10,B32-1)+TINV(2*(1-Dashboard!$D$11),B32-1)) -> 30.03080973 | P32: 3 | Q32: 65 | R32: 195 | S32: =R32*Dashboard!$D$19+R32*Cost_Estimation!$G$15+(Cost_Estimation!$G$22*Cost_Estimation!$E$20*Cost_Estimation!$E$27+Cost_Estimation!$E$23*Cost_Estimation!$E$22*Cost_Estimation!$E$27+Cost_Estimation!$G$22*Cost_Estimation!$E$21*Cost_Estimation!$E$27)/60*Cost_Estimation!$E$24 + R32*Cost_Estimation!$G$22*Cost_Estimation!$E$17*Cost_Estimation!$E$19/52*3 -> 471.0029923 | T32: =SQRT(2*(Dashboard!$D$8)^2/(Q32*P32))*(TINV(Dashboard!$D$10,P32-1)+TINV(2*(1-Dashboard!$D$11),P32-1)) -> 84.93995682
B33: 3 | C33: 560 | D33: 1680 | E33: =D33*Dashboard!$D$19+D33*Cost_Estimation!$G$15+(Cost_Estimation!$G$22*Cost_Estimation!$E$20*Cost_Estimation!$E$27+Cost_Estimation!$E$23*Cost_Estimation!$E$22*Cost_Estimation!$E$27+Cost_Estimation!$G$22*Cost_Estimation!$E$21*Cost_Estimation!$E$27)/60*Cost_Estimation!$E$24 + D33*Cost_Estimation!$G$22*Cost_Estimation!$E$17*Cost_Estimation!$E$19/52*3 -> 3060.619186 | F33: =SQRT(2*(Dashboard!$D$8)^2/(C33*B33))*(TINV(Dashboard!$D$10,B33-1)+TINV(2*(1-Dashboard!$D$11),B33-1)) -> 28.93841235 | P33: 3 | Q33: 70 | R33: 210 | S33: =R33*Dashboard!$D$19+R33*Cost_Estimation!$G$15+(Cost_Estimation!$G$22*Cost_Estimation!$E$20*Cost_Estimation!$E$27+Cost_Estimation!$E$23*Cost_Estimation!$E$22*Cost_Estimation!$E$27+Cost_Estimation!$G$22*Cost_Estimation!$E$21*Cost_Estimation!$E$27)/60*Cost_Estimation!$E$24 + R33*Cost_Estimation!$G$22*Cost_Estimation!$E$17*Cost_Estimation!$E$19/52*3 -> 497.1607316 | T33: =SQRT(2*(Dashboard!$D$8)^2/(Q33*P33))*(TINV(Dashboard!$D$10,P33-1)+TINV(2*(1-Dashboard!$D$11),P33-1)) -> 81.85019043
B34: 3 | C34: 600 | D34: 1800 | E34: =D34*Dashboard!$D$19+D34*Cost_Estimation!$G$15+(Cost_Estimation!$G$22*Cost_Estimation!$E$20*Cost_Estimation!$E$27+Cost_Estimation!$E$23*Cost_Estimation!$E$22*Cost_Estimation!$E$27+Cost_Estimation!$G$22*Cost_Estimation!$E$21*Cost_Estimation!$E$27)/60*Cost_Estimation!$E$24 + D34*Cost_Estimation!$G$22*Cost_Estimation!$E$17*Cost_Estimation!$E$19/52*3 -> 3269.881101 | F34: =SQRT(2*(Dashboard!$D$8)^2/(C34*B34))*(TINV(Dashboard!$D$10,B34-1)+TINV(2*(1-Dashboard!$D$11),B34-1)) -> 27.95716238 | P34: 3 | Q34: 75 | R34: 225 | S34: =R34*Dashboard!$D$19+R34*Cost_Estimation!$G$15+(Cost_Estimation!$G$22*Cost_Estimation!$E$20*Cost_Estimation!$E$27+Cost_Estimation!$E$23*Cost_Estimation!$E$22*Cost_Estimation!$E$27+Cost_Estimation!$G$22*Cost_Estimation!$E$21*Cost_Estimation!$E$27)/60*Cost_Estimation!$E$24 + R34*Cost_Estimation!$G$22*Cost_Estimation!$E$17*Cost_Estimation!$E$19/52*3 -> 523.3184709 | T34: =SQRT(2*(Dashboard!$D$8)^2/(Q34*P34))*(TINV(Dashboard!$D$10,P34-1)+TINV(2*(1-Dashboard!$D$11),P34-1)) -> 79.07479642
B35: 3 | C35: 640 | D35: 1920 | E35: =D35*Dashboard!$D$19+D35*Cost_Estimation!$G$15+(Cost_Estimation!$G$22*Cost_Estimation!$E$20*Cost_Estimation!$E$27+Cost_Estimation!$E$23*Cost_Estimation!$E$22*Cost_Estimation!$E$27+Cost_Estimation!$G$22*Cost_Estimation!$E$21*Cost_Estimation!$E$27)/60*Cost_Estimation!$E$24 + D35*Cost_Estimation!$G$22*Cost_Estimation!$E$17*Cost_Estimation!$E$19/52*3 -> 3479.143015 | F35: =SQRT(2*(Dashboard!$D$8)^2/(C35*B35))*(TINV(Dashboard!$D$10,B35-1)+TINV(2*(1-Dashboard!$D$11),B35-1)) -> 27.06940608 | P35: 3 | Q35: 80 | R35: 240 | S35: =R35*Dashboard!$D$19+R35*Cost_Estimation!$G$15+(Cost_Estimation!$G$22*Cost_Estimation!$E$20*Cost_Estimation!$E$27+Cost_Estimation!$E$23*Cost_Estimation!$E$22*Cost_Estimation!$E$27+Cost_Estimation!$G$22*Cost_Estimation!$E$21*Cost_Estimation!$E$27)/60*Cost_Estimation!$E$24 + R35*Cost_Estimation!$G$22*Cost_Estimation!$E$17*Cost_Estimation!$E$19/52*3 -> 549.4762103 | T35: =SQRT(2*(Dashboard!$D$8)^2/(Q35*P35))*(TINV(Dashboard!$D$10,P35-1)+TINV(2*(1-Dashboard!$D$11),P35-1)) -> 76.56384241
B37: 4 | C37: 30 | D37: 120 | E37: =D37*Dashboard!$D$19+D37*Cost_Estimation!$G$15+(Cost_Estimation!$G$22*Cost_Estimation!$E$20*Cost_Estimation!$E$27+Cost_Estimation!$E$23*Cost_Estimation!$E$22*Cost_Estimation!$E$27+Cost_Estimation!$G$22*Cost_Estimation!$E$21*Cost_Estimation!$E$27)/60*Cost_Estimation!$E$24 + D37*Cost_Estimation!$G$22*Cost_Estimation!$E$17*Cost_Estimation!$E$19/52*3 -> 340.2142956 | F37: =SQRT(2*(Dashboard!$D$8)^2/(C37*B37))*(TINV(Dashboard!$D$10,B37-1)+TINV(2*(1-Dashboard!$D$11),B37-1)) -> 84.00300173 | P37: 4 | Q37: 5 | R37: =P37*Q37 -> 20 | S37: =R37*Dashboard!$D$19+R37*Cost_Estimation!$G$15+(Cost_Estimation!$G$22*Cost_Estimation!$E$20*Cost_Estimation!$E$27+Cost_Estimation!$E$23*Cost_Estimation!$E$22*Cost_Estimation!$E$27+Cost_Estimation!$G$22*Cost_Estimation!$E$21*Cost_Estimation!$E$27)/60*Cost_Estimation!$E$24 + R37*Cost_Estimation!$G$22*Cost_Estimation!$E$17*Cost_Estimation!$E$19/52*3 -> 165.8293667 | T37: =SQRT(2*(Dashboard!$D$8)^2/(Q37*P37))*(TINV(Dashboard!$D$10,P37-1)+TINV(2*(1-Dashboard!$D$11),P37-1)) -> 205.7644911
B38: 4 | C38: 60 | D38: 240 | E38: =D38*Dashboard!$D$19+D38*Cost_Estimation!$G$15+(Cost_Estimation!$G$22*Cost_Estimation!$E$20*Cost_Estimation!$E$27+Cost_Estimation!$E$23*Cost_Estimation!$E$22*Cost_Estimation!$E$27+Cost_Estimation!$G$22*Cost_Estimation!$E$21*Cost_Estimation!$E$27)/60*Cost_Estimation!$E$24 + D38*Cost_Estimation!$G$22*Cost_Estimation!$E$17*Cost_Estimation!$E$19/52*3 -> 549.4762103 | F38: =SQRT(2*(Dashboard!$D$8)^2/(C38*B38))*(TINV(Dashboard!$D$10,B38-1)+TINV(2*(1-Dashboard!$D$11),B38-1)) -> 59.39909216 | P38: 4 | Q38: 10 | R38: 40 | S38: =R38*Dashboard!$D$19+R38*Cost_Estimation!$G$15+(Cost_Estimation!$G$22*Cost_Estimation!$E$20*Cost_Estimation!$E$27+Cost_Estimation!$E$23*Cost_Estimation!$E$22*Cost_Estimation!$E$27+Cost_Estimation!$G$22*Cost_Estimation!$E$21*Cost_Estimation!$E$27)/60*Cost_Estimation!$E$24 + R38*Cost_Estimation!$G$22*Cost_Estimation!$E$17*Cost_Estimation!$E$19/52*3 -> 200.7063525 | T38: =SQRT(2*(Dashboard!$D$8)^2/(Q38*P38))*(TINV(Dashboard!$D$10,P38-1)+TINV(2*(1-Dashboard!$D$11),P38-1)) -> 145.497467
B39: 4 | C39: 90 | D39: 360 | E39: =D39*Dashboard!$D$19+D39*Cost_Estimation!$G$15+(Cost_Estimation!$G$22*Cost_Estimation!$E$20*Cost_Estimation!$E$27+Cost_Estimation!$E$23*Cost_Estimation!$E$22*Cost_Estimation!$E$27+Cost_Estimation!$G$22*Cost_Estimation!$E$21*Cost_Estimation!$E$27)/60*Cost_Estimation!$E$24 + D39*Cost_Estimation!$G$22*Cost_Estimation!$E$17*Cost_Estimation!$E$19/52*3 -> 758.7381249 | F39: =SQRT(2*(Dashboard!$D$8)^2/(C39*B39))*(TINV(Dashboard!$D$10,B39-1)+TINV(2*(1-Dashboard!$D$11),B39-1)) -> 48.49915566 | P39: 4 | Q39: 15 | R39: 60 | S39: =R39*Dashboard!$D$19+R39*Cost_Estimation!$G$15+(Cost_Estimation!$G$22*Cost_Estimation!$E$20*Cost_Estimation!$E$27+Cost_Estimation!$E$23*Cost_Estimation!$E$22*Cost_Estimation!$E$27+Cost_Estimation!$G$22*Cost_Estimation!$E$21*Cost_Estimation!$E$27)/60*Cost_Estimation!$E$24 + R39*Cost_Estimation!$G$22*Cost_Estimation!$E$17*Cost_Estimation!$E$19/52*3 -> 235.5833383 | T39: =SQRT(2*(Dashboard!$D$8)^2/(Q39*P39))*(TINV(Dashboard!$D$10,P39-1)+TINV(2*(1-Dashboard!$D$11),P39-1)) -> 118.7981843
B40: 4 | C40: 120 | D40: 480 | E40: =D40*Dashboard!$D$19+D40*Cost_Estimation!$G$15+(Cost_Estimation!$G$22*Cost_Estimation!$E$20*Cost_Estimation!$E$27+Cost_Estimation!$E$23*Cost_Estimation!$E$22*Cost_Estimation!$E$27+Cost_Estimation!$G$22*Cost_Estimation!$E$21*Cost_Estimation!$E$27)/60*Cost_Estimation!$E$24 + D40*Cost_Estimation!$G$22*Cost_Estimation!$E$17*Cost_Estimation!$E$19/52*3 -> 968.0000396 | F40: =SQRT(2*(Dashboard!$D$8)^2/(C40*B40))*(TINV(Dashboard!$D$10,B40-1)+TINV(2*(1-Dashboard!$D$11),B40-1)) -> 42.00150086 | P40: 4 | Q40: 20 | R40: 80 | S40: =R40*Dashboard!$D$19+R40*Cost_Estimation!$G$15+(Cost_Estimation!$G$22*Cost_Estimation!$E$20*Cost_Estimation!$E$27+Cost_Estimation!$E$23*Cost_Estimation!$E$22*Cost_Estimation!$E$27+Cost_Estimation!$G$22*Cost_Estimation!$E$21*Cost_Estimation!$E$27)/60*Cost_Estimation!$E$24 + R40*Cost_Estimation!$G$22*Cost_Estimation!$E$17*Cost_Estimation!$E$19/52*3 -> 270.4603241 | T40: =SQRT(2*(Dashboard!$D$8)^2/(Q40*P40))*(TINV(Dashboard!$D$10,P40-1)+TINV(2*(1-Dashboard!$D$11),P40-1)) -> 102.8822455
B41: 4 | C41: 150 | D41: 600 | E41: =D41*Dashboard!$D$19+D41*Cost_Estimation!$G$15+(Cost_Estimation!$G$22*Cost_Estimation!$E$20*Cost_Estimation!$E$27+Cost_Estimation!$E$23*Cost_Estimation!$E$22*Cost_Estimation!$E$27+Cost_Estimation!$G$22*Cost_Estimation!$E$21*Cost_Estimation!$E$27)/60*Cost_Estimation!$E$24 + D41*Cost_Estimation!$G$22*Cost_Estimation!$E$17*Cost_Estimation!$E$19/52*3 -> 1177.261954 | F41: =SQRT(2*(Dashboard!$D$8)^2/(C41*B41))*(TINV(Dashboard!$D$10,B41-1)+TINV(2*(1-Dashboard!$D$11),B41-1)) -> 37.56728443 | P41: 4 | Q41: 25 | R41: 100 | S41: =R41*Dashboard!$D$19+R41*Cost_Estimation!$G$15+(Cost_Estimation!$G$22*Cost_Estimation!$E$20*Cost_Estimation!$E$27+Cost_Estimation!$E$23*Cost_Estimation!$E$22*Cost_Estimation!$E$27+Cost_Estimation!$G$22*Cost_Estimation!$E$21*Cost_Estimation!$E$27)/60*Cost_Estimation!$E$24 + R41*Cost_Estimation!$G$22*Cost_Estimation!$E$17*Cost_Estimation!$E$19/52*3 -> 305.3373098 | T41: =SQRT(2*(Dashboard!$D$8)^2/(Q41*P41))*(TINV(Dashboard!$D$10,P41-1)+TINV(2*(1-Dashboard!$D$11),P41-1)) -> 92.02067789
B42: 4 | C42: 180 | D42: 720 | E42: =D42*Dashboard!$D$19+D42*Cost_Estimation!$G$15+(Cost_Estimation!$G$22*Cost_Estimation!$E$20*Cost_Estimation!$E$27+Cost_Estimation!$E$23*Cost_Estimation!$E$22*Cost_Estimation!$E$27+Cost_Estimation!$G$22*Cost_Estimation!$E$21*Cost_Estimation!$E$27)/60*Cost_Estimation!$E$24 + D42*Cost_Estimation!$G$22*Cost_Estimation!$E$17*Cost_Estimation!$E$19/52*3 -> 1386.523869 | F42: =SQRT(2*(Dashboard!$D$8)^2/(C42*B42))*(TINV(Dashboard!$D$10,B42-1)+TINV(2*(1-Dashboard!$D$11),B42-1)) -> 34.29408185 | P42: 4 | Q42: 30 | R42: 120 | S42: =R42*Dashboard!$D$19+R42*Cost_Estimation!$G$15+(Cost_Estimation!$G$22*Cost_Estimation!$E$20*Cost_Estimation!$E$27+Cost_Estimation!$E$23*Cost_Estimation!$E$22*Cost_Estimation!$E$27+Cost_Estimation!$G$22*Cost_Estimation!$E$21*Cost_Estimation!$E$27)/60*Cost_Estimation!$E$24 + R42*Cost_Estimation!$G$22*Cost_Estimation!$E$17*Cost_Estimation!$E$19/52*3 -> 340.2142956 | T42: =SQRT(2*(Dashboard!$D$8)^2/(Q42*P42))*(TINV(Dashboard!$D$10,P42-1)+TINV(2*(1-Dashboard!$D$11),P42-1)) -> 84.00300173
B43: 4 | C43: 210 | D43: 840 | E43: =D43*Dashboard!$D$19+D43*Cost_Estimation!$G$15+(Cost_Estimation!$G$22*Cost_Estimation!$E$20*Cost_Estimation!$E$27+Cost_Estimation!$E$23*Cost_Estimation!$E$22*Cost_Estimation!$E$27+Cost_Estimation!$G$22*Cost_Estimation!$E$21*Cost_Estimation!$E$27)/60*Cost_Estimation!$E$24 + D43*Cost_Estimation!$G$22*Cost_Estimation!$E$17*Cost_Estimation!$E$19/52*3 -> 1595.785784 | F43: =SQRT(2*(Dashboard!$D$8)^2/(C43*B43))*(TINV(Dashboard!$D$10,B43-1)+TINV(2*(1-Dashboard!$D$11),B43-1)) -> 31.75015028 | P43: 4 | Q43: 35 | R43: 140 | S43: =R43*Dashboard!$D$19+R43*Cost_Estimation!$G$15+(Cost_Estimation!$G$22*Cost_Estimation!$E$20*Cost_Estimation!$E$27+Cost_Estimation!$E$23*Cost_Estimation!$E$22*Cost_Estimation!$E$27+Cost_Estimation!$G$22*Cost_Estimation!$E$21*Cost_Estimation!$E$27)/60*Cost_Estimation!$E$24 + R43*Cost_Estimation!$G$22*Cost_Estimation!$E$17*Cost_Estimation!$E$19/52*3 -> 375.0912814 | T43: =SQRT(2*(Dashboard!$D$8)^2/(Q43*P43))*(TINV(Dashboard!$D$10,P43-1)+TINV(2*(1-Dashboard!$D$11),P43-1)) -> 77.77166744
B44: 4 | C44: 240 | D44: 960 | E44: =D44*Dashboard!$D$19+D44*Cost_Estimation!$G$15+(Cost_Estimation!$G$22*Cost_Estimation!$E$20*Cost_Estimation!$E$27+Cost_Estimation!$E$23*Cost_Estimation!$E$22*Cost_Estimation!$E$27+Cost_Estimation!$G$22*Cost_Estimation!$E$21*Cost_Estimation!$E$27)/60*Cost_Estimation!$E$24 + D44*Cost_Estimation!$G$22*Cost_Estimation!$E$17*Cost_Estimation!$E$19/52*3 -> 1805.047698 | F44: =SQRT(2*(Dashboard!$D$8)^2/(C44*B44))*(TINV(Dashboard!$D$10,B44-1)+TINV(2*(1-Dashboard!$D$11),B44-1)) -> 29.69954608 | P44: 4 | Q44: 40 | R44: 160 | S44: =R44*Dashboard!$D$19+R44*Cost_Estimation!$G$15+(Cost_Estimation!$G$22*Cost_Estimation!$E$20*Cost_Estimation!$E$27+Cost_Estimation!$E$23*Cost_Estimation!$E$22*Cost_Estimation!$E$27+Cost_Estimation!$G$22*Cost_Estimation!$E$21*Cost_Estimation!$E$27)/60*Cost_Estimation!$E$24 + R44*Cost_Estimation!$G$22*Cost_Estimation!$E$17*Cost_Estimation!$E$19/52*3 -> 409.9682672 | T44: =SQRT(2*(Dashboard!$D$8)^2/(Q44*P44))*(TINV(Dashboard!$D$10,P44-1)+TINV(2*(1-Dashboard!$D$11),P44-1)) -> 72.74873349
B45: 4 | C45: 270 | D45: 1080 | E45: =D45*Dashboard!$D$19+D45*Cost_Estimation!$G$15+(Cost_Estimation!$G$22*Cost_Estimation!$E$20*Cost_Estimation!$E$27+Cost_Estimation!$E$23*Cost_Estimation!$E$22*Cost_Estimation!$E$27+Cost_Estimation!$G$22*Cost_Estimation!$E$21*Cost_Estimation!$E$27)/60*Cost_Estimation!$E$24 + D45*Cost_Estimation!$G$22*Cost_Estimation!$E$17*Cost_Estimation!$E$19/52*3 -> 2014.309613 | F45: =SQRT(2*(Dashboard!$D$8)^2/(C45*B45))*(TINV(Dashboard!$D$10,B45-1)+TINV(2*(1-Dashboard!$D$11),B45-1)) -> 28.00100058 | P45: 4 | Q45: 45 | R45: 180 | S45: =R45*Dashboard!$D$19+R45*Cost_Estimation!$G$15+(Cost_Estimation!$G$22*Cost_Estimation!$E$20*Cost_Estimation!$E$27+Cost_Estimation!$E$23*Cost_Estimation!$E$22*Cost_Estimation!$E$27+Cost_Estimation!$G$22*Cost_Estimation!$E$21*Cost_Estimation!$E$27)/60*Cost_Estimation!$E$24 + R45*Cost_Estimation!$G$22*Cost_Estimation!$E$17*Cost_Estimation!$E$19/52*3 -> 444.8452529 | T45: =SQRT(2*(Dashboard!$D$8)^2/(Q45*P45))*(TINV(Dashboard!$D$10,P45-1)+TINV(2*(1-Dashboard!$D$11),P45-1)) -> 68.5881637
B46: 4 | C46: 300 | D46: 1200 | E46: =D46*Dashboard!$D$19+D46*Cost_Estimation!$G$15+(Cost_Estimation!$G$22*Cost_Estimation!$E$20*Cost_Estimation!$E$27+Cost_Estimation!$E$23*Cost_Estimation!$E$22*Cost_Estimation!$E$27+Cost_Estimation!$G$22*Cost_Estimation!$E$21*Cost_Estimation!$E$27)/60*Cost_Estimation!$E$24 + D46*Cost_Estimation!$G$22*Cost_Estimation!$E$17*Cost_Estimation!$E$19/52*3 -> 2223.571528 | F46: =SQRT(2*(Dashboard!$D$8)^2/(C46*B46))*(TINV(Dashboard!$D$10,B46-1)+TINV(2*(1-Dashboard!$D$11),B46-1)) -> 26.56408157 | P46: 4 | Q46: 50 | R46: 200 | S46: =R46*Dashboard!$D$19+R46*Cost_Estimation!$G$15+(Cost_Estimation!$G$22*Cost_Estimation!$E$20*Cost_Estimation!$E$27+Cost_Estimation!$E$23*Cost_Estimation!$E$22*Cost_Estimation!$E$27+Cost_Estimation!$G$22*Cost_Estimation!$E$21*Cost_Estimation!$E$27)/60*Cost_Estimation!$E$24 + R46*Cost_Estimation!$G$22*Cost_Estimation!$E$17*Cost_Estimation!$E$19/52*3 -> 479.7222387 | T46: =SQRT(2*(Dashboard!$D$8)^2/(Q46*P46))*(TINV(Dashboard!$D$10,P46-1)+TINV(2*(1-Dashboard!$D$11),P46-1)) -> 65.06844534
B47: 4 | C47: 330 | D47: 1320 | E47: =D47*Dashboard!$D$19+D47*Cost_Estimation!$G$15+(Cost_Estimation!$G$22*Cost_Estimation!$E$20*Cost_Estimation!$E$27+Cost_Estimation!$E$23*Cost_Estimation!$E$22*Cost_Estimation!$E$27+Cost_Estimation!$G$22*Cost_Estimation!$E$21*Cost_Estimation!$E$27)/60*Cost_Estimation!$E$24 + D47*Cost_Estimation!$G$22*Cost_Estimation!$E$17*Cost_Estimation!$E$19/52*3 -> 2432.833442 | F47: =SQRT(2*(Dashboard!$D$8)^2/(C47*B47))*(TINV(Dashboard!$D$10,B47-1)+TINV(2*(1-Dashboard!$D$11),B47-1)) -> 25.327858 | P47: 4 | Q47: 55 | R47: 220 | S47: =R47*Dashboard!$D$19+R47*Cost_Estimation!$G$15+(Cost_Estimation!$G$22*Cost_Estimation!$E$20*Cost_Estimation!$E$27+Cost_Estimation!$E$23*Cost_Estimation!$E$22*Cost_Estimation!$E$27+Cost_Estimation!$G$22*Cost_Estimation!$E$21*Cost_Estimation!$E$27)/60*Cost_Estimation!$E$24 + R47*Cost_Estimation!$G$22*Cost_Estimation!$E$17*Cost_Estimation!$E$19/52*3 -> 514.5992245 | T47: =SQRT(2*(Dashboard!$D$8)^2/(Q47*P47))*(TINV(Dashboard!$D$10,P47-1)+TINV(2*(1-Dashboard!$D$11),P47-1)) -> 62.04032837
B48: 4 | C48: 360 | D48: 1440 | E48: =D48*Dashboard!$D$19+D48*Cost_Estimation!$G$15+(Cost_Estimation!$G$22*Cost_Estimation!$E$20*Cost_Estimation!$E$27+Cost_Estimation!$E$23*Cost_Estimation!$E$22*Cost_Estimation!$E$27+Cost_Estimation!$G$22*Cost_Estimation!$E$21*Cost_Estimation!$E$27)/60*Cost_Estimation!$E$24 + D48*Cost_Estimation!$G$22*Cost_Estimation!$E$17*Cost_Estimation!$E$19/52*3 -> 2642.095357 | F48: =SQRT(2*(Dashboard!$D$8)^2/(C48*B48))*(TINV(Dashboard!$D$10,B48-1)+TINV(2*(1-Dashboard!$D$11),B48-1)) -> 24.24957783 | P48: 4 | Q48: 60 | R48: 240 | S48: =R48*Dashboard!$D$19+R48*Cost_Estimation!$G$15+(Cost_Estimation!$G$22*Cost_Estimation!$E$20*Cost_Estimation!$E$27+Cost_Estimation!$E$23*Cost_Estimation!$E$22*Cost_Estimation!$E$27+Cost_Estimation!$G$22*Cost_Estimation!$E$21*Cost_Estimation!$E$27)/60*Cost_Estimation!$E$24 + R48*Cost_Estimation!$G$22*Cost_Estimation!$E$17*Cost_Estimation!$E$19/52*3 -> 549.4762103 | T48: =SQRT(2*(Dashboard!$D$8)^2/(Q48*P48))*(TINV(Dashboard!$D$10,P48-1)+TINV(2*(1-Dashboard!$D$11),P48-1)) -> 59.39909216
B49: 4 | C49: 390 | D49: 1560 | E49: =D49*Dashboard!$D$19+D49*Cost_Estimation!$G$15+(Cost_Estimation!$G$22*Cost_Estimation!$E$20*Cost_Estimation!$E$27+Cost_Estimation!$E$23*Cost_Estimation!$E$22*Cost_Estimation!$E$27+Cost_Estimation!$G$22*Cost_Estimation!$E$21*Cost_Estimation!$E$27)/60*Cost_Estimation!$E$24 + D49*Cost_Estimation!$G$22*Cost_Estimation!$E$17*Cost_Estimation!$E$19/52*3 -> 2851.357271 | F49: =SQRT(2*(Dashboard!$D$8)^2/(C49*B49))*(TINV(Dashboard!$D$10,B49-1)+TINV(2*(1-Dashboard!$D$11),B49-1)) -> 23.29824077 | P49: 4 | Q49: 65 | R49: 260 | S49: =R49*Dashboard!$D$19+R49*Cost_Estimation!$G$15+(Cost_Estimation!$G$22*Cost_Estimation!$E$20*Cost_Estimation!$E$27+Cost_Estimation!$E$23*Cost_Estimation!$E$22*Cost_Estimation!$E$27+Cost_Estimation!$G$22*Cost_Estimation!$E$21*Cost_Estimation!$E$27)/60*Cost_Estimation!$E$24 + R49*Cost_Estimation!$G$22*Cost_Estimation!$E$17*Cost_Estimation!$E$19/52*3 -> 584.353196 | T49: =SQRT(2*(Dashboard!$D$8)^2/(Q49*P49))*(TINV(Dashboard!$D$10,P49-1)+TINV(2*(1-Dashboard!$D$11),P49-1)) -> 57.06880179
B50: 4 | C50: 420 | D50: 1680 | E50: =D50*Dashboard!$D$19+D50*Cost_Estimation!$G$15+(Cost_Estimation!$G$22*Cost_Estimation!$E$20*Cost_Estimation!$E$27+Cost_Estimation!$E$23*Cost_Estimation!$E$22*Cost_Estimation!$E$27+Cost_Estimation!$G$22*Cost_Estimation!$E$21*Cost_Estimation!$E$27)/60*Cost_Estimation!$E$24 + D50*Cost_Estimation!$G$22*Cost_Estimation!$E$17*Cost_Estimation!$E$19/52*3 -> 3060.619186 | F50: =SQRT(2*(Dashboard!$D$8)^2/(C50*B50))*(TINV(Dashboard!$D$10,B50-1)+TINV(2*(1-Dashboard!$D$11),B50-1)) -> 22.45074657 | P50: 4 | Q50: 70 | R50: 280 | S50: =R50*Dashboard!$D$19+R50*Cost_Estimation!$G$15+(Cost_Estimation!$G$22*Cost_Estimation!$E$20*Cost_Estimation!$E$27+Cost_Estimation!$E$23*Cost_Estimation!$E$22*Cost_Estimation!$E$27+Cost_Estimation!$G$22*Cost_Estimation!$E$21*Cost_Estimation!$E$27)/60*Cost_Estimation!$E$24 + R50*Cost_Estimation!$G$22*Cost_Estimation!$E$17*Cost_Estimation!$E$19/52*3 -> 619.2301818 | T50: =SQRT(2*(Dashboard!$D$8)^2/(Q50*P50))*(TINV(Dashboard!$D$10,P50-1)+TINV(2*(1-Dashboard!$D$11),P50-1)) -> 54.99287343
B51: 4 | C51: 450 | D51: 1800 | E51: =D51*Dashboard!$D$19+D51*Cost_Estimation!$G$15+(Cost_Estimation!$G$22*Cost_Estimation!$E$20*Cost_Estimation!$E$27+Cost_Estimation!$E$23*Cost_Estimation!$E$22*Cost_Estimation!$E$27+Cost_Estimation!$G$22*Cost_Estimation!$E$21*Cost_Estimation!$E$27)/60*Cost_Estimation!$E$24 + D51*Cost_Estimation!$G$22*Cost_Estimation!$E$17*Cost_Estimation!$E$19/52*3 -> 3269.881101 | F51: =SQRT(2*(Dashboard!$D$8)^2/(C51*B51))*(TINV(Dashboard!$D$10,B51-1)+TINV(2*(1-Dashboard!$D$11),B51-1)) -> 21.68948178 | P51: 4 | Q51: 75 | R51: 300 | S51: =R51*Dashboard!$D$19+R51*Cost_Estimation!$G$15+(Cost_Estimation!$G$22*Cost_Estimation!$E$20*Cost_Estimation!$E$27+Cost_Estimation!$E$23*Cost_Estimation!$E$22*Cost_Estimation!$E$27+Cost_Estimation!$G$22*Cost_Estimation!$E$21*Cost_Estimation!$E$27)/60*Cost_Estimation!$E$24 + R51*Cost_Estimation!$G$22*Cost_Estimation!$E$17*Cost_Estimation!$E$19/52*3 -> 654.1071676 | T51: =SQRT(2*(Dashboard!$D$8)^2/(Q51*P51))*(TINV(Dashboard!$D$10,P51-1)+TINV(2*(1-Dashboard!$D$11),P51-1)) -> 53.12816315
B52: 4 | C52: 480 | D52: 1920 | E52: =D52*Dashboard!$D$19+D52*Cost_Estimation!$G$15+(Cost_Estimation!$G$22*Cost_Estimation!$E$20*Cost_Estimation!$E$27+Cost_Estimation!$E$23*Cost_Estimation!$E$22*Cost_Estimation!$E$27+Cost_Estimation!$G$22*Cost_Estimation!$E$21*Cost_Estimation!$E$27)/60*Cost_Estimation!$E$24 + D52*Cost_Estimation!$G$22*Cost_Estimation!$E$17*Cost_Estimation!$E$19/52*3 -> 3479.143015 | F52: =SQRT(2*(Dashboard!$D$8)^2/(C52*B52))*(TINV(Dashboard!$D$10,B52-1)+TINV(2*(1-Dashboard!$D$11),B52-1)) -> 21.00075043 | P52: 4 | Q52: 80 | R52: 320 | S52: =R52*Dashboard!$D$19+R52*Cost_Estimation!$G$15+(Cost_Estimation!$G$22*Cost_Estimation!$E$20*Cost_Estimation!$E$27+Cost_Estimation!$E$23*Cost_Estimation!$E$22*Cost_Estimation!$E$27+Cost_Estimation!$G$22*Cost_Estimation!$E$21*Cost_Estimation!$E$27)/60*Cost_Estimation!$E$24 + R52*Cost_Estimation!$G$22*Cost_Estimation!$E$17*Cost_Estimation!$E$19/52*3 -> 688.9841534 | T52: =SQRT(2*(Dashboard!$D$8)^2/(Q52*P52))*(TINV(Dashboard!$D$10,P52-1)+TINV(2*(1-Dashboard!$D$11),P52-1)) -> 51.44112277
B54: 5 | C54: 24 | D54: 120 | E54: =D54*Dashboard!$D$19+D54*Cost_Estimation!$G$15+(Cost_Estimation!$G$22*Cost_Estimation!$E$20*Cost_Estimation!$E$27+Cost_Estimation!$E$23*Cost_Estimation!$E$22*Cost_Estimation!$E$27+Cost_Estimation!$G$22*Cost_Estimation!$E$21*Cost_Estimation!$E$27)/60*Cost_Estimation!$E$24 + D54*Cost_Estimation!$G$22*Cost_Estimation!$E$17*Cost_Estimation!$E$19/52*3 -> 340.2142956 | F54: =SQRT(2*(Dashboard!$D$8)^2/(C54*B54))*(TINV(Dashboard!$D$10,B54-1)+TINV(2*(1-Dashboard!$D$11),B54-1)) -> 75.04919001 | P54: 5 | Q54: 5 | R54: =P54*Q54 -> 25 | S54: =R54*Dashboard!$D$19+R54*Cost_Estimation!$G$15+(Cost_Estimation!$G$22*Cost_Estimation!$E$20*Cost_Estimation!$E$27+Cost_Estimation!$E$23*Cost_Estimation!$E$22*Cost_Estimation!$E$27+Cost_Estimation!$G$22*Cost_Estimation!$E$21*Cost_Estimation!$E$27)/60*Cost_Estimation!$E$24 + R54*Cost_Estimation!$G$22*Cost_Estimation!$E$17*Cost_Estimation!$E$19/52*3 -> 174.5486132 | T54: =SQRT(2*(Dashboard!$D$8)^2/(Q54*P54))*(TINV(Dashboard!$D$10,P54-1)+TINV(2*(1-Dashboard!$D$11),P54-1)) -> 164.4245372
B55: 5 | C55: 48 | D55: 240 | E55: =D55*Dashboard!$D$19+D55*Cost_Estimation!$G$15+(Cost_Estimation!$G$22*Cost_Estimation!$E$20*Cost_Estimation!$E$27+Cost_Estimation!$E$23*Cost_Estimation!$E$22*Cost_Estimation!$E$27+Cost_Estimation!$G$22*Cost_Estimation!$E$21*Cost_Estimation!$E$27)/60*Cost_Estimation!$E$24 + D55*Cost_Estimation!$G$22*Cost_Estimation!$E$17*Cost_Estimation!$E$19/52*3 -> 549.4762103 | F55: =SQRT(2*(Dashboard!$D$8)^2/(C55*B55))*(TINV(Dashboard!$D$10,B55-1)+TINV(2*(1-Dashboard!$D$11),B55-1)) -> 53.06779118 | P55: 5 | Q55: 10 | R55: 50 | S55: =R55*Dashboard!$D$19+R55*Cost_Estimation!$G$15+(Cost_Estimation!$G$22*Cost_Estimation!$E$20*Cost_Estimation!$E$27+Cost_Estimation!$E$23*Cost_Estimation!$E$22*Cost_Estimation!$E$27+Cost_Estimation!$G$22*Cost_Estimation!$E$21*Cost_Estimation!$E$27)/60*Cost_Estimation!$E$24 + R55*Cost_Estimation!$G$22*Cost_Estimation!$E$17*Cost_Estimation!$E$19/52*3 -> 218.1448454 | T55: =SQRT(2*(Dashboard!$D$8)^2/(Q55*P55))*(TINV(Dashboard!$D$10,P55-1)+TINV(2*(1-Dashboard!$D$11),P55-1)) -> 116.2657052
B56: 5 | C56: 72 | D56: 360 | E56: =D56*Dashboard!$D$19+D56*Cost_Estimation!$G$15+(Cost_Estimation!$G$22*Cost_Estimation!$E$20*Cost_Estimation!$E$27+Cost_Estimation!$E$23*Cost_Estimation!$E$22*Cost_Estimation!$E$27+Cost_Estimation!$G$22*Cost_Estimation!$E$21*Cost_Estimation!$E$27)/60*Cost_Estimation!$E$24 + D56*Cost_Estimation!$G$22*Cost_Estimation!$E$17*Cost_Estimation!$E$19/52*3 -> 758.7381249 | F56: =SQRT(2*(Dashboard!$D$8)^2/(C56*B56))*(TINV(Dashboard!$D$10,B56-1)+TINV(2*(1-Dashboard!$D$11),B56-1)) -> 43.32967006 | P56: 5 | Q56: 15 | R56: 75 | S56: =R56*Dashboard!$D$19+R56*Cost_Estimation!$G$15+(Cost_Estimation!$G$22*Cost_Estimation!$E$20*Cost_Estimation!$E$27+Cost_Estimation!$E$23*Cost_Estimation!$E$22*Cost_Estimation!$E$27+Cost_Estimation!$G$22*Cost_Estimation!$E$21*Cost_Estimation!$E$27)/60*Cost_Estimation!$E$24 + R56*Cost_Estimation!$G$22*Cost_Estimation!$E$17*Cost_Estimation!$E$19/52*3 -> 261.7410776 | T56: =SQRT(2*(Dashboard!$D$8)^2/(Q56*P56))*(TINV(Dashboard!$D$10,P56-1)+TINV(2*(1-Dashboard!$D$11),P56-1)) -> 94.9305508
B57: 5 | C57: 96 | D57: 480 | E57: =D57*Dashboard!$D$19+D57*Cost_Estimation!$G$15+(Cost_Estimation!$G$22*Cost_Estimation!$E$20*Cost_Estimation!$E$27+Cost_Estimation!$E$23*Cost_Estimation!$E$22*Cost_Estimation!$E$27+Cost_Estimation!$G$22*Cost_Estimation!$E$21*Cost_Estimation!$E$27)/60*Cost_Estimation!$E$24 + D57*Cost_Estimation!$G$22*Cost_Estimation!$E$17*Cost_Estimation!$E$19/52*3 -> 968.0000396 | F57: =SQRT(2*(Dashboard!$D$8)^2/(C57*B57))*(TINV(Dashboard!$D$10,B57-1)+TINV(2*(1-Dashboard!$D$11),B57-1)) -> 37.52459501 | P57: 5 | Q57: 20 | R57: 100 | S57: =R57*Dashboard!$D$19+R57*Cost_Estimation!$G$15+(Cost_Estimation!$G$22*Cost_Estimation!$E$20*Cost_Estimation!$E$27+Cost_Estimation!$E$23*Cost_Estimation!$E$22*Cost_Estimation!$E$27+Cost_Estimation!$G$22*Cost_Estimation!$E$21*Cost_Estimation!$E$27)/60*Cost_Estimation!$E$24 + R57*Cost_Estimation!$G$22*Cost_Estimation!$E$17*Cost_Estimation!$E$19/52*3 -> 305.3373098 | T57: =SQRT(2*(Dashboard!$D$8)^2/(Q57*P57))*(TINV(Dashboard!$D$10,P57-1)+TINV(2*(1-Dashboard!$D$11),P57-1)) -> 82.21226859
B58: 5 | C58: 120 | D58: 600 | E58: =D58*Dashboard!$D$19+D58*Cost_Estimation!$G$15+(Cost_Estimation!$G$22*Cost_Estimation!$E$20*Cost_Estimation!$E$27+Cost_Estimation!$E$23*Cost_Estimation!$E$22*Cost_Estimation!$E$27+Cost_Estimation!$G$22*Cost_Estimation!$E$21*Cost_Estimation!$E$27)/60*Cost_Estimation!$E$24 + D58*Cost_Estimation!$G$22*Cost_Estimation!$E$17*Cost_Estimation!$E$19/52*3 -> 1177.261954 | F58: =SQRT(2*(Dashboard!$D$8)^2/(C58*B58))*(TINV(Dashboard!$D$10,B58-1)+TINV(2*(1-Dashboard!$D$11),B58-1)) -> 33.56301811 | P58: 5 | Q58: 25 | R58: 125 | S58: =R58*Dashboard!$D$19+R58*Cost_Estimation!$G$15+(Cost_Estimation!$G$22*Cost_Estimation!$E$20*Cost_Estimation!$E$27+Cost_Estimation!$E$23*Cost_Estimation!$E$22*Cost_Estimation!$E$27+Cost_Estimation!$G$22*Cost_Estimation!$E$21*Cost_Estimation!$E$27)/60*Cost_Estimation!$E$24 + R58*Cost_Estimation!$G$22*Cost_Estimation!$E$17*Cost_Estimation!$E$19/52*3 -> 348.9335421 | T58: =SQRT(2*(Dashboard!$D$8)^2/(Q58*P58))*(TINV(Dashboard!$D$10,P58-1)+TINV(2*(1-Dashboard!$D$11),P58-1)) -> 73.53288846
B59: 5 | C59: 144 | D59: 720 | E59: =D59*Dashboard!$D$19+D59*Cost_Estimation!$G$15+(Cost_Estimation!$G$22*Cost_Estimation!$E$20*Cost_Estimation!$E$27+Cost_Estimation!$E$23*Cost_Estimation!$E$22*Cost_Estimation!$E$27+Cost_Estimation!$G$22*Cost_Estimation!$E$21*Cost_Estimation!$E$27)/60*Cost_Estimation!$E$24 + D59*Cost_Estimation!$G$22*Cost_Estimation!$E$17*Cost_Estimation!$E$19/52*3 -> 1386.523869 | F59: =SQRT(2*(Dashboard!$D$8)^2/(C59*B59))*(TINV(Dashboard!$D$10,B59-1)+TINV(2*(1-Dashboard!$D$11),B59-1)) -> 30.63870352 | P59: 5 | Q59: 30 | R59: 150 | S59: =R59*Dashboard!$D$19+R59*Cost_Estimation!$G$15+(Cost_Estimation!$G$22*Cost_Estimation!$E$20*Cost_Estimation!$E$27+Cost_Estimation!$E$23*Cost_Estimation!$E$22*Cost_Estimation!$E$27+Cost_Estimation!$G$22*Cost_Estimation!$E$21*Cost_Estimation!$E$27)/60*Cost_Estimation!$E$24 + R59*Cost_Estimation!$G$22*Cost_Estimation!$E$17*Cost_Estimation!$E$19/52*3 -> 392.5297743 | T59: =SQRT(2*(Dashboard!$D$8)^2/(Q59*P59))*(TINV(Dashboard!$D$10,P59-1)+TINV(2*(1-Dashboard!$D$11),P59-1)) -> 67.12603621
B60: 5 | C60: 168 | D60: 840 | E60: =D60*Dashboard!$D$19+D60*Cost_Estimation!$G$15+(Cost_Estimation!$G$22*Cost_Estimation!$E$20*Cost_Estimation!$E$27+Cost_Estimation!$E$23*Cost_Estimation!$E$22*Cost_Estimation!$E$27+Cost_Estimation!$G$22*Cost_Estimation!$E$21*Cost_Estimation!$E$27)/60*Cost_Estimation!$E$24 + D60*Cost_Estimation!$G$22*Cost_Estimation!$E$17*Cost_Estimation!$E$19/52*3 -> 1595.785784 | F60: =SQRT(2*(Dashboard!$D$8)^2/(C60*B60))*(TINV(Dashboard!$D$10,B60-1)+TINV(2*(1-Dashboard!$D$11),B60-1)) -> 28.36592755 | P60: 5 | Q60: 35 | R60: 175 | S60: =R60*Dashboard!$D$19+R60*Cost_Estimation!$G$15+(Cost_Estimation!$G$22*Cost_Estimation!$E$20*Cost_Estimation!$E$27+Cost_Estimation!$E$23*Cost_Estimation!$E$22*Cost_Estimation!$E$27+Cost_Estimation!$G$22*Cost_Estimation!$E$21*Cost_Estimation!$E$27)/60*Cost_Estimation!$E$24 + R60*Cost_Estimation!$G$22*Cost_Estimation!$E$17*Cost_Estimation!$E$19/52*3 -> 436.1260065 | T60: =SQRT(2*(Dashboard!$D$8)^2/(Q60*P60))*(TINV(Dashboard!$D$10,P60-1)+TINV(2*(1-Dashboard!$D$11),P60-1)) -> 62.14663354
B61: 5 | C61: 192 | D61: 960 | E61: =D61*Dashboard!$D$19+D61*Cost_Estimation!$G$15+(Cost_Estimation!$G$22*Cost_Estimation!$E$20*Cost_Estimation!$E$27+Cost_Estimation!$E$23*Cost_Estimation!$E$22*Cost_Estimation!$E$27+Cost_Estimation!$G$22*Cost_Estimation!$E$21*Cost_Estimation!$E$27)/60*Cost_Estimation!$E$24 + D61*Cost_Estimation!$G$22*Cost_Estimation!$E$17*Cost_Estimation!$E$19/52*3 -> 1805.047698 | F61: =SQRT(2*(Dashboard!$D$8)^2/(C61*B61))*(TINV(Dashboard!$D$10,B61-1)+TINV(2*(1-Dashboard!$D$11),B61-1)) -> 26.53389559 | P61: 5 | Q61: 40 | R61: 200 | S61: =R61*Dashboard!$D$19+R61*Cost_Estimation!$G$15+(Cost_Estimation!$G$22*Cost_Estimation!$E$20*Cost_Estimation!$E$27+Cost_Estimation!$E$23*Cost_Estimation!$E$22*Cost_Estimation!$E$27+Cost_Estimation!$G$22*Cost_Estimation!$E$21*Cost_Estimation!$E$27)/60*Cost_Estimation!$E$24 + R61*Cost_Estimation!$G$22*Cost_Estimation!$E$17*Cost_Estimation!$E$19/52*3 -> 479.7222387 | T61: =SQRT(2*(Dashboard!$D$8)^2/(Q61*P61))*(TINV(Dashboard!$D$10,P61-1)+TINV(2*(1-Dashboard!$D$11),P61-1)) -> 58.13285261
B62: 5 | C62: 216 | D62: 1080 | E62: =D62*Dashboard!$D$19+D62*Cost_Estimation!$G$15+(Cost_Estimation!$G$22*Cost_Estimation!$E$20*Cost_Estimation!$E$27+Cost_Estimation!$E$23*Cost_Estimation!$E$22*Cost_Estimation!$E$27+Cost_Estimation!$G$22*Cost_Estimation!$E$21*Cost_Estimation!$E$27)/60*Cost_Estimation!$E$24 + D62*Cost_Estimation!$G$22*Cost_Estimation!$E$17*Cost_Estimation!$E$19/52*3 -> 2014.309613 | F62: =SQRT(2*(Dashboard!$D$8)^2/(C62*B62))*(TINV(Dashboard!$D$10,B62-1)+TINV(2*(1-Dashboard!$D$11),B62-1)) -> 25.01639667 | P62: 5 | Q62: 45 | R62: 225 | S62: =R62*Dashboard!$D$19+R62*Cost_Estimation!$G$15+(Cost_Estimation!$G$22*Cost_Estimation!$E$20*Cost_Estimation!$E$27+Cost_Estimation!$E$23*Cost_Estimation!$E$22*Cost_Estimation!$E$27+Cost_Estimation!$G$22*Cost_Estimation!$E$21*Cost_Estimation!$E$27)/60*Cost_Estimation!$E$24 + R62*Cost_Estimation!$G$22*Cost_Estimation!$E$17*Cost_Estimation!$E$19/52*3 -> 523.3184709 | T62: =SQRT(2*(Dashboard!$D$8)^2/(Q62*P62))*(TINV(Dashboard!$D$10,P62-1)+TINV(2*(1-Dashboard!$D$11),P62-1)) -> 54.80817906
B63: 5 | C63: 240 | D63: 1200 | E63: =D63*Dashboard!$D$19+D63*Cost_Estimation!$G$15+(Cost_Estimation!$G$22*Cost_Estimation!$E$20*Cost_Estimation!$E$27+Cost_Estimation!$E$23*Cost_Estimation!$E$22*Cost_Estimation!$E$27+Cost_Estimation!$G$22*Cost_Estimation!$E$21*Cost_Estimation!$E$27)/60*Cost_Estimation!$E$24 + D63*Cost_Estimation!$G$22*Cost_Estimation!$E$17*Cost_Estimation!$E$19/52*3 -> 2223.571528 | F63: =SQRT(2*(Dashboard!$D$8)^2/(C63*B63))*(TINV(Dashboard!$D$10,B63-1)+TINV(2*(1-Dashboard!$D$11),B63-1)) -> 23.7326377 | P63: 5 | Q63: 50 | R63: 250 | S63: =R63*Dashboard!$D$19+R63*Cost_Estimation!$G$15+(Cost_Estimation!$G$22*Cost_Estimation!$E$20*Cost_Estimation!$E$27+Cost_Estimation!$E$23*Cost_Estimation!$E$22*Cost_Estimation!$E$27+Cost_Estimation!$G$22*Cost_Estimation!$E$21*Cost_Estimation!$E$27)/60*Cost_Estimation!$E$24 + R63*Cost_Estimation!$G$22*Cost_Estimation!$E$17*Cost_Estimation!$E$19/52*3 -> 566.9147032 | T63: =SQRT(2*(Dashboard!$D$8)^2/(Q63*P63))*(TINV(Dashboard!$D$10,P63-1)+TINV(2*(1-Dashboard!$D$11),P63-1)) -> 51.99560407
B64: 5 | C64: 264 | D64: 1320 | E64: =D64*Dashboard!$D$19+D64*Cost_Estimation!$G$15+(Cost_Estimation!$G$22*Cost_Estimation!$E$20*Cost_Estimation!$E$27+Cost_Estimation!$E$23*Cost_Estimation!$E$22*Cost_Estimation!$E$27+Cost_Estimation!$G$22*Cost_Estimation!$E$21*Cost_Estimation!$E$27)/60*Cost_Estimation!$E$24 + D64*Cost_Estimation!$G$22*Cost_Estimation!$E$17*Cost_Estimation!$E$19/52*3 -> 2432.833442 | F64: =SQRT(2*(Dashboard!$D$8)^2/(C64*B64))*(TINV(Dashboard!$D$10,B64-1)+TINV(2*(1-Dashboard!$D$11),B64-1)) -> 22.62818219 | P64: 5 | Q64: 55 | R64: 275 | S64: =R64*Dashboard!$D$19+R64*Cost_Estimation!$G$15+(Cost_Estimation!$G$22*Cost_Estimation!$E$20*Cost_Estimation!$E$27+Cost_Estimation!$E$23*Cost_Estimation!$E$22*Cost_Estimation!$E$27+Cost_Estimation!$G$22*Cost_Estimation!$E$21*Cost_Estimation!$E$27)/60*Cost_Estimation!$E$24 + R64*Cost_Estimation!$G$22*Cost_Estimation!$E$17*Cost_Estimation!$E$19/52*3 -> 610.5109354 | T64: =SQRT(2*(Dashboard!$D$8)^2/(Q64*P64))*(TINV(Dashboard!$D$10,P64-1)+TINV(2*(1-Dashboard!$D$11),P64-1)) -> 49.57586328
B65: 5 | C65: 288 | D65: 1440 | E65: =D65*Dashboard!$D$19+D65*Cost_Estimation!$G$15+(Cost_Estimation!$G$22*Cost_Estimation!$E$20*Cost_Estimation!$E$27+Cost_Estimation!$E$23*Cost_Estimation!$E$22*Cost_Estimation!$E$27+Cost_Estimation!$G$22*Cost_Estimation!$E$21*Cost_Estimation!$E$27)/60*Cost_Estimation!$E$24 + D65*Cost_Estimation!$G$22*Cost_Estimation!$E$17*Cost_Estimation!$E$19/52*3 -> 2642.095357 | F65: =SQRT(2*(Dashboard!$D$8)^2/(C65*B65))*(TINV(Dashboard!$D$10,B65-1)+TINV(2*(1-Dashboard!$D$11),B65-1)) -> 21.66483503 | P65: 5 | Q65: 60 | R65: 300 | S65: =R65*Dashboard!$D$19+R65*Cost_Estimation!$G$15+(Cost_Estimation!$G$22*Cost_Estimation!$E$20*Cost_Estimation!$E$27+Cost_Estimation!$E$23*Cost_Estimation!$E$22*Cost_Estimation!$E$27+Cost_Estimation!$G$22*Cost_Estimation!$E$21*Cost_Estimation!$E$27)/60*Cost_Estimation!$E$24 + R65*Cost_Estimation!$G$22*Cost_Estimation!$E$17*Cost_Estimation!$E$19/52*3 -> 654.1071676 | T65: =SQRT(2*(Dashboard!$D$8)^2/(Q65*P65))*(TINV(Dashboard!$D$10,P65-1)+TINV(2*(1-Dashboard!$D$11),P65-1)) -> 47.4652754
B66: 5 | C66: 312 | D66: 1560 | E66: =D66*Dashboard!$D$19+D66*Cost_Estimation!$G$15+(Cost_Estimation!$G$22*Cost_Estimation!$E$20*Cost_Estimation!$E$27+Cost_Estimation!$E$23*Cost_Estimation!$E$22*Cost_Estimation!$E$27+Cost_Estimation!$G$22*Cost_Estimation!$E$21*Cost_Estimation!$E$27)/60*Cost_Estimation!$E$24 + D66*Cost_Estimation!$G$22*Cost_Estimation!$E$17*Cost_Estimation!$E$19/52*3 -> 2851.357271 | F66: =SQRT(2*(Dashboard!$D$8)^2/(C66*B66))*(TINV(Dashboard!$D$10,B66-1)+TINV(2*(1-Dashboard!$D$11),B66-1)) -> 20.81490021 | P66: 5 | Q66: 65 | R66: 325 | S66: =R66*Dashboard!$D$19+R66*Cost_Estimation!$G$15+(Cost_Estimation!$G$22*Cost_Estimation!$E$20*Cost_Estimation!$E$27+Cost_Estimation!$E$23*Cost_Estimation!$E$22*Cost_Estimation!$E$27+Cost_Estimation!$G$22*Cost_Estimation!$E$21*Cost_Estimation!$E$27)/60*Cost_Estimation!$E$24 + R66*Cost_Estimation!$G$22*Cost_Estimation!$E$17*Cost_Estimation!$E$19/52*3 -> 697.7033998 | T66: =SQRT(2*(Dashboard!$D$8)^2/(Q66*P66))*(TINV(Dashboard!$D$10,P66-1)+TINV(2*(1-Dashboard!$D$11),P66-1)) -> 45.60316152
B67: 5 | C67: 336 | D67: 1680 | E67: =D67*Dashboard!$D$19+D67*Cost_Estimation!$G$15+(Cost_Estimation!$G$22*Cost_Estimation!$E$20*Cost_Estimation!$E$27+Cost_Estimation!$E$23*Cost_Estimation!$E$22*Cost_Estimation!$E$27+Cost_Estimation!$G$22*Cost_Estimation!$E$21*Cost_Estimation!$E$27)/60*Cost_Estimation!$E$24 + D67*Cost_Estimation!$G$22*Cost_Estimation!$E$17*Cost_Estimation!$E$19/52*3 -> 3060.619186 | F67: =SQRT(2*(Dashboard!$D$8)^2/(C67*B67))*(TINV(Dashboard!$D$10,B67-1)+TINV(2*(1-Dashboard!$D$11),B67-1)) -> 20.05773973 | P67: 5 | Q67: 70 | R67: 350 | S67: =R67*Dashboard!$D$19+R67*Cost_Estimation!$G$15+(Cost_Estimation!$G$22*Cost_Estimation!$E$20*Cost_Estimation!$E$27+Cost_Estimation!$E$23*Cost_Estimation!$E$22*Cost_Estimation!$E$27+Cost_Estimation!$G$22*Cost_Estimation!$E$21*Cost_Estimation!$E$27)/60*Cost_Estimation!$E$24 + R67*Cost_Estimation!$G$22*Cost_Estimation!$E$17*Cost_Estimation!$E$19/52*3 -> 741.299632 | T67: =SQRT(2*(Dashboard!$D$8)^2/(Q67*P67))*(TINV(Dashboard!$D$10,P67-1)+TINV(2*(1-Dashboard!$D$11),P67-1)) -> 43.94430601
B68: 5 | C68: 360 | D68: =B68*C68 -> 1800 | E68: =D68*Dashboard!$D$19+D68*Cost_Estimation!$G$15+(Cost_Estimation!$G$22*Cost_Estimation!$E$20*Cost_Estimation!$E$27+Cost_Estimation!$E$23*Cost_Estimation!$E$22*Cost_Estimation!$E$27+Cost_Estimation!$G$22*Cost_Estimation!$E$21*Cost_Estimation!$E$27)/60*Cost_Estimation!$E$24 + D68*Cost_Estimation!$G$22*Cost_Estimation!$E$17*Cost_Estimation!$E$19/52*3 -> 3269.881101 | F68: =SQRT(2*(Dashboard!$D$8)^2/(C68*B68))*(TINV(Dashboard!$D$10,B68-1)+TINV(2*(1-Dashboard!$D$11),B68-1)) -> 19.37761754 | P68: 5 | Q68: 75 | R68: 375 | S68: =R68*Dashboard!$D$19+R68*Cost_Estimation!$G$15+(Cost_Estimation!$G$22*Cost_Estimation!$E$20*Cost_Estimation!$E$27+Cost_Estimation!$E$23*Cost_Estimation!$E$22*Cost_Estimation!$E$27+Cost_Estimation!$G$22*Cost_Estimation!$E$21*Cost_Estimation!$E$27)/60*Cost_Estimation!$E$24 + R68*Cost_Estimation!$G$22*Cost_Estimation!$E$17*Cost_Estimation!$E$19/52*3 -> 784.8958643 | T68: =SQRT(2*(Dashboard!$D$8)^2/(Q68*P68))*(TINV(Dashboard!$D$10,P68-1)+TINV(2*(1-Dashboard!$D$11),P68-1)) -> 42.45423294
B69: 5 | C69: 384 | D69: 1920 | E69: =D69*Dashboard!$D$19+D69*Cost_Estimation!$G$15+(Cost_Estimation!$G$22*Cost_Estimation!$E$20*Cost_Estimation!$E$27+Cost_Estimation!$E$23*Cost_Estimation!$E$22*Cost_Estimation!$E$27+Cost_Estimation!$G$22*Cost_Estimation!$E$21*Cost_Estimation!$E$27)/60*Cost_Estimation!$E$24 + D69*Cost_Estimation!$G$22*Cost_Estimation!$E$17*Cost_Estimation!$E$19/52*3 -> 3479.143015 | F69: =SQRT(2*(Dashboard!$D$8)^2/(C69*B69))*(TINV(Dashboard!$D$10,B69-1)+TINV(2*(1-Dashboard!$D$11),B69-1)) -> 18.7622975 | P69: 5 | Q69: 80 | R69: 400 | S69: =R69*Dashboard!$D$19+R69*Cost_Estimation!$G$15+(Cost_Estimation!$G$22*Cost_Estimation!$E$20*Cost_Estimation!$E$27+Cost_Estimation!$E$23*Cost_Estimation!$E$22*Cost_Estimation!$E$27+Cost_Estimation!$G$22*Cost_Estimation!$E$21*Cost_Estimation!$E$27)/60*Cost_Estimation!$E$24 + R69*Cost_Estimation!$G$22*Cost_Estimation!$E$17*Cost_Estimation!$E$19/52*3 -> 828.4920965 | T69: =SQRT(2*(Dashboard!$D$8)^2/(Q69*P69))*(TINV(Dashboard!$D$10,P69-1)+TINV(2*(1-Dashboard!$D$11),P69-1)) -> 41.10613429
B71: 6 | C71: 20 | D71: 120 | E71: =D71*Dashboard!$D$19+D71*Cost_Estimation!$G$15+(Cost_Estimation!$G$22*Cost_Estimation!$E$20*Cost_Estimation!$E$27+Cost_Estimation!$E$23*Cost_Estimation!$E$22*Cost_Estimation!$E$27+Cost_Estimation!$G$22*Cost_Estimation!$E$21*Cost_Estimation!$E$27)/60*Cost_Estimation!$E$24 + D71*Cost_Estimation!$G$22*Cost_Estimation!$E$17*Cost_Estimation!$E$19/52*3 -> 340.2142956 | F71: =SQRT(2*(Dashboard!$D$8)^2/(C71*B71))*(TINV(Dashboard!$D$10,B71-1)+TINV(2*(1-Dashboard!$D$11),B71-1)) -> 70.46064946 | P71: 6 | Q71: 5 | R71: =P71*Q71 -> 30 | S71: =R71*Dashboard!$D$19+R71*Cost_Estimation!$G$15+(Cost_Estimation!$G$22*Cost_Estimation!$E$20*Cost_Estimation!$E$27+Cost_Estimation!$E$23*Cost_Estimation!$E$22*Cost_Estimation!$E$27+Cost_Estimation!$G$22*Cost_Estimation!$E$21*Cost_Estimation!$E$27)/60*Cost_Estimation!$E$24 + R71*Cost_Estimation!$G$22*Cost_Estimation!$E$17*Cost_Estimation!$E$19/52*3 -> 183.2678596 | T71: =SQRT(2*(Dashboard!$D$8)^2/(Q71*P71))*(TINV(Dashboard!$D$10,P71-1)+TINV(2*(1-Dashboard!$D$11),P71-1)) -> 140.9212989
B72: 6 | C72: 40 | D72: 240 | E72: =D72*Dashboard!$D$19+D72*Cost_Estimation!$G$15+(Cost_Estimation!$G$22*Cost_Estimation!$E$20*Cost_Estimation!$E$27+Cost_Estimation!$E$23*Cost_Estimation!$E$22*Cost_Estimation!$E$27+Cost_Estimation!$G$22*Cost_Estimation!$E$21*Cost_Estimation!$E$27)/60*Cost_Estimation!$E$24 + D72*Cost_Estimation!$G$22*Cost_Estimation!$E$17*Cost_Estimation!$E$19/52*3 -> 549.4762103 | F72: =SQRT(2*(Dashboard!$D$8)^2/(C72*B72))*(TINV(Dashboard!$D$10,B72-1)+TINV(2*(1-Dashboard!$D$11),B72-1)) -> 49.82320304 | P72: 6 | Q72: 10 | R72: 60 | S72: =R72*Dashboard!$D$19+R72*Cost_Estimation!$G$15+(Cost_Estimation!$G$22*Cost_Estimation!$E$20*Cost_Estimation!$E$27+Cost_Estimation!$E$23*Cost_Estimation!$E$22*Cost_Estimation!$E$27+Cost_Estimation!$G$22*Cost_Estimation!$E$21*Cost_Estimation!$E$27)/60*Cost_Estimation!$E$24 + R72*Cost_Estimation!$G$22*Cost_Estimation!$E$17*Cost_Estimation!$E$19/52*3 -> 235.5833383 | T72: =SQRT(2*(Dashboard!$D$8)^2/(Q72*P72))*(TINV(Dashboard!$D$10,P72-1)+TINV(2*(1-Dashboard!$D$11),P72-1)) -> 99.64640607
B73: 6 | C73: 60 | D73: 360 | E73: =D73*Dashboard!$D$19+D73*Cost_Estimation!$G$15+(Cost_Estimation!$G$22*Cost_Estimation!$E$20*Cost_Estimation!$E$27+Cost_Estimation!$E$23*Cost_Estimation!$E$22*Cost_Estimation!$E$27+Cost_Estimation!$G$22*Cost_Estimation!$E$21*Cost_Estimation!$E$27)/60*Cost_Estimation!$E$24 + D73*Cost_Estimation!$G$22*Cost_Estimation!$E$17*Cost_Estimation!$E$19/52*3 -> 758.7381249 | F73: =SQRT(2*(Dashboard!$D$8)^2/(C73*B73))*(TINV(Dashboard!$D$10,B73-1)+TINV(2*(1-Dashboard!$D$11),B73-1)) -> 40.68047493 | P73: 6 | Q73: 15 | R73: 90 | S73: =R73*Dashboard!$D$19+R73*Cost_Estimation!$G$15+(Cost_Estimation!$G$22*Cost_Estimation!$E$20*Cost_Estimation!$E$27+Cost_Estimation!$E$23*Cost_Estimation!$E$22*Cost_Estimation!$E$27+Cost_Estimation!$G$22*Cost_Estimation!$E$21*Cost_Estimation!$E$27)/60*Cost_Estimation!$E$24 + R73*Cost_Estimation!$G$22*Cost_Estimation!$E$17*Cost_Estimation!$E$19/52*3 -> 287.8988169 | T73: =SQRT(2*(Dashboard!$D$8)^2/(Q73*P73))*(TINV(Dashboard!$D$10,P73-1)+TINV(2*(1-Dashboard!$D$11),P73-1)) -> 81.36094986
B74: 6 | C74: 80 | D74: 480 | E74: =D74*Dashboard!$D$19+D74*Cost_Estimation!$G$15+(Cost_Estimation!$G$22*Cost_Estimation!$E$20*Cost_Estimation!$E$27+Cost_Estimation!$E$23*Cost_Estimation!$E$22*Cost_Estimation!$E$27+Cost_Estimation!$G$22*Cost_Estimation!$E$21*Cost_Estimation!$E$27)/60*Cost_Estimation!$E$24 + D74*Cost_Estimation!$G$22*Cost_Estimation!$E$17*Cost_Estimation!$E$19/52*3 -> 968.0000396 | F74: =SQRT(2*(Dashboard!$D$8)^2/(C74*B74))*(TINV(Dashboard!$D$10,B74-1)+TINV(2*(1-Dashboard!$D$11),B74-1)) -> 35.23032473 | P74: 6 | Q74: 20 | R74: 120 | S74: =R74*Dashboard!$D$19+R74*Cost_Estimation!$G$15+(Cost_Estimation!$G$22*Cost_Estimation!$E$20*Cost_Estimation!$E$27+Cost_Estimation!$E$23*Cost_Estimation!$E$22*Cost_Estimation!$E$27+Cost_Estimation!$G$22*Cost_Estimation!$E$21*Cost_Estimation!$E$27)/60*Cost_Estimation!$E$24 + R74*Cost_Estimation!$G$22*Cost_Estimation!$E$17*Cost_Estimation!$E$19/52*3 -> 340.2142956 | T74: =SQRT(2*(Dashboard!$D$8)^2/(Q74*P74))*(TINV(Dashboard!$D$10,P74-1)+TINV(2*(1-Dashboard!$D$11),P74-1)) -> 70.46064946
B75: 6 | C75: 100 | D75: 600 | E75: =D75*Dashboard!$D$19+D75*Cost_Estimation!$G$15+(Cost_Estimation!$G$22*Cost_Estimation!$E$20*Cost_Estimation!$E$27+Cost_Estimation!$E$23*Cost_Estimation!$E$22*Cost_Estimation!$E$27+Cost_Estimation!$G$22*Cost_Estimation!$E$21*Cost_Estimation!$E$27)/60*Cost_Estimation!$E$24 + D75*Cost_Estimation!$G$22*Cost_Estimation!$E$17*Cost_Estimation!$E$19/52*3 -> 1177.261954 | F75: =SQRT(2*(Dashboard!$D$8)^2/(C75*B75))*(TINV(Dashboard!$D$10,B75-1)+TINV(2*(1-Dashboard!$D$11),B75-1)) -> 31.51096038 | P75: 6 | Q75: 25 | R75: 150 | S75: =R75*Dashboard!$D$19+R75*Cost_Estimation!$G$15+(Cost_Estimation!$G$22*Cost_Estimation!$E$20*Cost_Estimation!$E$27+Cost_Estimation!$E$23*Cost_Estimation!$E$22*Cost_Estimation!$E$27+Cost_Estimation!$G$22*Cost_Estimation!$E$21*Cost_Estimation!$E$27)/60*Cost_Estimation!$E$24 + R75*Cost_Estimation!$G$22*Cost_Estimation!$E$17*Cost_Estimation!$E$19/52*3 -> 392.5297743 | T75: =SQRT(2*(Dashboard!$D$8)^2/(Q75*P75))*(TINV(Dashboard!$D$10,P75-1)+TINV(2*(1-Dashboard!$D$11),P75-1)) -> 63.02192077
B76: 6 | C76: 120 | D76: 720 | E76: =D76*Dashboard!$D$19+D76*Cost_Estimation!$G$15+(Cost_Estimation!$G$22*Cost_Estimation!$E$20*Cost_Estimation!$E$27+Cost_Estimation!$E$23*Cost_Estimation!$E$22*Cost_Estimation!$E$27+Cost_Estimation!$G$22*Cost_Estimation!$E$21*Cost_Estimation!$E$27)/60*Cost_Estimation!$E$24 + D76*Cost_Estimation!$G$22*Cost_Estimation!$E$17*Cost_Estimation!$E$19/52*3 -> 1386.523869 | F76: =SQRT(2*(Dashboard!$D$8)^2/(C76*B76))*(TINV(Dashboard!$D$10,B76-1)+TINV(2*(1-Dashboard!$D$11),B76-1)) -> 28.76543969 | P76: 6 | Q76: 30 | R76: 180 | S76: =R76*Dashboard!$D$19+R76*Cost_Estimation!$G$15+(Cost_Estimation!$G$22*Cost_Estimation!$E$20*Cost_Estimation!$E$27+Cost_Estimation!$E$23*Cost_Estimation!$E$22*Cost_Estimation!$E$27+Cost_Estimation!$G$22*Cost_Estimation!$E$21*Cost_Estimation!$E$27)/60*Cost_Estimation!$E$24 + R76*Cost_Estimation!$G$22*Cost_Estimation!$E$17*Cost_Estimation!$E$19/52*3 -> 444.8452529 | T76: =SQRT(2*(Dashboard!$D$8)^2/(Q76*P76))*(TINV(Dashboard!$D$10,P76-1)+TINV(2*(1-Dashboard!$D$11),P76-1)) -> 57.53087937
B77: 6 | C77: 140 | D77: 840 | E77: =D77*Dashboard!$D$19+D77*Cost_Estimation!$G$15+(Cost_Estimation!$G$22*Cost_Estimation!$E$20*Cost_Estimation!$E$27+Cost_Estimation!$E$23*Cost_Estimation!$E$22*Cost_Estimation!$E$27+Cost_Estimation!$G$22*Cost_Estimation!$E$21*Cost_Estimation!$E$27)/60*Cost_Estimation!$E$24 + D77*Cost_Estimation!$G$22*Cost_Estimation!$E$17*Cost_Estimation!$E$19/52*3 -> 1595.785784 | F77: =SQRT(2*(Dashboard!$D$8)^2/(C77*B77))*(TINV(Dashboard!$D$10,B77-1)+TINV(2*(1-Dashboard!$D$11),B77-1)) -> 26.63162224 | P77: 6 | Q77: 35 | R77: 210 | S77: =R77*Dashboard!$D$19+R77*Cost_Estimation!$G$15+(Cost_Estimation!$G$22*Cost_Estimation!$E$20*Cost_Estimation!$E$27+Cost_Estimation!$E$23*Cost_Estimation!$E$22*Cost_Estimation!$E$27+Cost_Estimation!$G$22*Cost_Estimation!$E$21*Cost_Estimation!$E$27)/60*Cost_Estimation!$E$24 + R77*Cost_Estimation!$G$22*Cost_Estimation!$E$17*Cost_Estimation!$E$19/52*3 -> 497.1607316 | T77: =SQRT(2*(Dashboard!$D$8)^2/(Q77*P77))*(TINV(Dashboard!$D$10,P77-1)+TINV(2*(1-Dashboard!$D$11),P77-1)) -> 53.26324448
B78: 6 | C78: 160 | D78: 960 | E78: =D78*Dashboard!$D$19+D78*Cost_Estimation!$G$15+(Cost_Estimation!$G$22*Cost_Estimation!$E$20*Cost_Estimation!$E$27+Cost_Estimation!$E$23*Cost_Estimation!$E$22*Cost_Estimation!$E$27+Cost_Estimation!$G$22*Cost_Estimation!$E$21*Cost_Estimation!$E$27)/60*Cost_Estimation!$E$24 + D78*Cost_Estimation!$G$22*Cost_Estimation!$E$17*Cost_Estimation!$E$19/52*3 -> 1805.047698 | F78: =SQRT(2*(Dashboard!$D$8)^2/(C78*B78))*(TINV(Dashboard!$D$10,B78-1)+TINV(2*(1-Dashboard!$D$11),B78-1)) -> 24.91160152 | P78: 6 | Q78: 40 | R78: 240 | S78: =R78*Dashboard!$D$19+R78*Cost_Estimation!$G$15+(Cost_Estimation!$G$22*Cost_Estimation!$E$20*Cost_Estimation!$E$27+Cost_Estimation!$E$23*Cost_Estimation!$E$22*Cost_Estimation!$E$27+Cost_Estimation!$G$22*Cost_Estimation!$E$21*Cost_Estimation!$E$27)/60*Cost_Estimation!$E$24 + R78*Cost_Estimation!$G$22*Cost_Estimation!$E$17*Cost_Estimation!$E$19/52*3 -> 549.4762103 | T78: =SQRT(2*(Dashboard!$D$8)^2/(Q78*P78))*(TINV(Dashboard!$D$10,P78-1)+TINV(2*(1-Dashboard!$D$11),P78-1)) -> 49.82320304
B79: 6 | C79: 180 | D79: 1080 | E79: =D79*Dashboard!$D$19+D79*Cost_Estimation!$G$15+(Cost_Estimation!$G$22*Cost_Estimation!$E$20*Cost_Estimation!$E$27+Cost_Estimation!$E$23*Cost_Estimation!$E$22*Cost_Estimation!$E$27+Cost_Estimation!$G$22*Cost_Estimation!$E$21*Cost_Estimation!$E$27)/60*Cost_Estimation!$E$24 + D79*Cost_Estimation!$G$22*Cost_Estimation!$E$17*Cost_Estimation!$E$19/52*3 -> 2014.309613 | F79: =SQRT(2*(Dashboard!$D$8)^2/(C79*B79))*(TINV(Dashboard!$D$10,B79-1)+TINV(2*(1-Dashboard!$D$11),B79-1)) -> 23.48688315 | P79: 6 | Q79: 45 | R79: 270 | S79: =R79*Dashboard!$D$19+R79*Cost_Estimation!$G$15+(Cost_Estimation!$G$22*Cost_Estimation!$E$20*Cost_Estimation!$E$27+Cost_Estimation!$E$23*Cost_Estimation!$E$22*Cost_Estimation!$E$27+Cost_Estimation!$G$22*Cost_Estimation!$E$21*Cost_Estimation!$E$27)/60*Cost_Estimation!$E$24 + R79*Cost_Estimation!$G$22*Cost_Estimation!$E$17*Cost_Estimation!$E$19/52*3 -> 601.7916889 | T79: =SQRT(2*(Dashboard!$D$8)^2/(Q79*P79))*(TINV(Dashboard!$D$10,P79-1)+TINV(2*(1-Dashboard!$D$11),P79-1)) -> 46.9737663
B80: 6 | C80: 200 | D80: 1200 | E80: =D80*Dashboard!$D$19+D80*Cost_Estimation!$G$15+(Cost_Estimation!$G$22*Cost_Estimation!$E$20*Cost_Estimation!$E$27+Cost_Estimation!$E$23*Cost_Estimation!$E$22*Cost_Estimation!$E$27+Cost_Estimation!$G$22*Cost_Estimation!$E$21*Cost_Estimation!$E$27)/60*Cost_Estimation!$E$24 + D80*Cost_Estimation!$G$22*Cost_Estimation!$E$17*Cost_Estimation!$E$19/52*3 -> 2223.571528 | F80: =SQRT(2*(Dashboard!$D$8)^2/(C80*B80))*(TINV(Dashboard!$D$10,B80-1)+TINV(2*(1-Dashboard!$D$11),B80-1)) -> 22.28161377 | P80: 6 | Q80: 50 | R80: 300 | S80: =R80*Dashboard!$D$19+R80*Cost_Estimation!$G$15+(Cost_Estimation!$G$22*Cost_Estimation!$E$20*Cost_Estimation!$E$27+Cost_Estimation!$E$23*Cost_Estimation!$E$22*Cost_Estimation!$E$27+Cost_Estimation!$G$22*Cost_Estimation!$E$21*Cost_Estimation!$E$27)/60*Cost_Estimation!$E$24 + R80*Cost_Estimation!$G$22*Cost_Estimation!$E$17*Cost_Estimation!$E$19/52*3 -> 654.1071676 | T80: =SQRT(2*(Dashboard!$D$8)^2/(Q80*P80))*(TINV(Dashboard!$D$10,P80-1)+TINV(2*(1-Dashboard!$D$11),P80-1)) -> 44.56322754
B81: 6 | C81: 220 | D81: 1320 | E81: =D81*Dashboard!$D$19+D81*Cost_Estimation!$G$15+(Cost_Estimation!$G$22*Cost_Estimation!$E$20*Cost_Estimation!$E$27+Cost_Estimation!$E$23*Cost_Estimation!$E$22*Cost_Estimation!$E$27+Cost_Estimation!$G$22*Cost_Estimation!$E$21*Cost_Estimation!$E$27)/60*Cost_Estimation!$E$24 + D81*Cost_Estimation!$G$22*Cost_Estimation!$E$17*Cost_Estimation!$E$19/52*3 -> 2432.833442 | F81: =SQRT(2*(Dashboard!$D$8)^2/(C81*B81))*(TINV(Dashboard!$D$10,B81-1)+TINV(2*(1-Dashboard!$D$11),B81-1)) -> 21.24468516 | P81: 6 | Q81: 55 | R81: 330 | S81: =R81*Dashboard!$D$19+R81*Cost_Estimation!$G$15+(Cost_Estimation!$G$22*Cost_Estimation!$E$20*Cost_Estimation!$E$27+Cost_Estimation!$E$23*Cost_Estimation!$E$22*Cost_Estimation!$E$27+Cost_Estimation!$G$22*Cost_Estimation!$E$21*Cost_Estimation!$E$27)/60*Cost_Estimation!$E$24 + R81*Cost_Estimation!$G$22*Cost_Estimation!$E$17*Cost_Estimation!$E$19/52*3 -> 706.4226463 | T81: =SQRT(2*(Dashboard!$D$8)^2/(Q81*P81))*(TINV(Dashboard!$D$10,P81-1)+TINV(2*(1-Dashboard!$D$11),P81-1)) -> 42.48937031
B82: 6 | C82: 240 | D82: 1440 | E82: =D82*Dashboard!$D$19+D82*Cost_Estimation!$G$15+(Cost_Estimation!$G$22*Cost_Estimation!$E$20*Cost_Estimation!$E$27+Cost_Estimation!$E$23*Cost_Estimation!$E$22*Cost_Estimation!$E$27+Cost_Estimation!$G$22*Cost_Estimation!$E$21*Cost_Estimation!$E$27)/60*Cost_Estimation!$E$24 + D82*Cost_Estimation!$G$22*Cost_Estimation!$E$17*Cost_Estimation!$E$19/52*3 -> 2642.095357 | F82: =SQRT(2*(Dashboard!$D$8)^2/(C82*B82))*(TINV(Dashboard!$D$10,B82-1)+TINV(2*(1-Dashboard!$D$11),B82-1)) -> 20.34023747 | P82: 6 | Q82: 60 | R82: 360 | S82: =R82*Dashboard!$D$19+R82*Cost_Estimation!$G$15+(Cost_Estimation!$G$22*Cost_Estimation!$E$20*Cost_Estimation!$E$27+Cost_Estimation!$E$23*Cost_Estimation!$E$22*Cost_Estimation!$E$27+Cost_Estimation!$G$22*Cost_Estimation!$E$21*Cost_Estimation!$E$27)/60*Cost_Estimation!$E$24 + R82*Cost_Estimation!$G$22*Cost_Estimation!$E$17*Cost_Estimation!$E$19/52*3 -> 758.7381249 | T82: =SQRT(2*(Dashboard!$D$8)^2/(Q82*P82))*(TINV(Dashboard!$D$10,P82-1)+TINV(2*(1-Dashboard!$D$11),P82-1)) -> 40.68047493
B83: 6 | C83: 260 | D83: 1560 | E83: =D83*Dashboard!$D$19+D83*Cost_Estimation!$G$15+(Cost_Estimation!$G$22*Cost_Estimation!$E$20*Cost_Estimation!$E$27+Cost_Estimation!$E$23*Cost_Estimation!$E$22*Cost_Estimation!$E$27+Cost_Estimation!$G$22*Cost_Estimation!$E$21*Cost_Estimation!$E$27)/60*Cost_Estimation!$E$24 + D83*Cost_Estimation!$G$22*Cost_Estimation!$E$17*Cost_Estimation!$E$19/52*3 -> 2851.357271 | F83: =SQRT(2*(Dashboard!$D$8)^2/(C83*B83))*(TINV(Dashboard!$D$10,B83-1)+TINV(2*(1-Dashboard!$D$11),B83-1)) -> 19.54226804 | P83: 6 | Q83: 65 | R83: 390 | S83: =R83*Dashboard!$D$19+R83*Cost_Estimation!$G$15+(Cost_Estimation!$G$22*Cost_Estimation!$E$20*Cost_Estimation!$E$27+Cost_Estimation!$E$23*Cost_Estimation!$E$22*Cost_Estimation!$E$27+Cost_Estimation!$G$22*Cost_Estimation!$E$21*Cost_Estimation!$E$27)/60*Cost_Estimation!$E$24 + R83*Cost_Estimation!$G$22*Cost_Estimation!$E$17*Cost_Estimation!$E$19/52*3 -> 811.0536036 | T83: =SQRT(2*(Dashboard!$D$8)^2/(Q83*P83))*(TINV(Dashboard!$D$10,P83-1)+TINV(2*(1-Dashboard!$D$11),P83-1)) -> 39.08453608
B84: 6 | C84: 280 | D84: 1680 | E84: =D84*Dashboard!$D$19+D84*Cost_Estimation!$G$15+(Cost_Estimation!$G$22*Cost_Estimation!$E$20*Cost_Estimation!$E$27+Cost_Estimation!$E$23*Cost_Estimation!$E$22*Cost_Estimation!$E$27+Cost_Estimation!$G$22*Cost_Estimation!$E$21*Cost_Estimation!$E$27)/60*Cost_Estimation!$E$24 + D84*Cost_Estimation!$G$22*Cost_Estimation!$E$17*Cost_Estimation!$E$19/52*3 -> 3060.619186 | F84: =SQRT(2*(Dashboard!$D$8)^2/(C84*B84))*(TINV(Dashboard!$D$10,B84-1)+TINV(2*(1-Dashboard!$D$11),B84-1)) -> 18.83140068 | P84: 6 | Q84: 70 | R84: 420 | S84: =R84*Dashboard!$D$19+R84*Cost_Estimation!$G$15+(Cost_Estimation!$G$22*Cost_Estimation!$E$20*Cost_Estimation!$E$27+Cost_Estimation!$E$23*Cost_Estimation!$E$22*Cost_Estimation!$E$27+Cost_Estimation!$G$22*Cost_Estimation!$E$21*Cost_Estimation!$E$27)/60*Cost_Estimation!$E$24 + R84*Cost_Estimation!$G$22*Cost_Estimation!$E$17*Cost_Estimation!$E$19/52*3 -> 863.3690823 | T84: =SQRT(2*(Dashboard!$D$8)^2/(Q84*P84))*(TINV(Dashboard!$D$10,P84-1)+TINV(2*(1-Dashboard!$D$11),P84-1)) -> 37.66280136
B85: 6 | C85: 300 | D85: 1800 | E85: =D85*Dashboard!$D$19+D85*Cost_Estimation!$G$15+(Cost_Estimation!$G$22*Cost_Estimation!$E$20*Cost_Estimation!$E$27+Cost_Estimation!$E$23*Cost_Estimation!$E$22*Cost_Estimation!$E$27+Cost_Estimation!$G$22*Cost_Estimation!$E$21*Cost_Estimation!$E$27)/60*Cost_Estimation!$E$24 + D85*Cost_Estimation!$G$22*Cost_Estimation!$E$17*Cost_Estimation!$E$19/52*3 -> 3269.881101 | F85: =SQRT(2*(Dashboard!$D$8)^2/(C85*B85))*(TINV(Dashboard!$D$10,B85-1)+TINV(2*(1-Dashboard!$D$11),B85-1)) -> 18.19286146 | P85: 6 | Q85: 75 | R85: 450 | S85: =R85*Dashboard!$D$19+R85*Cost_Estimation!$G$15+(Cost_Estimation!$G$22*Cost_Estimation!$E$20*Cost_Estimation!$E$27+Cost_Estimation!$E$23*Cost_Estimation!$E$22*Cost_Estimation!$E$27+Cost_Estimation!$G$22*Cost_Estimation!$E$21*Cost_Estimation!$E$27)/60*Cost_Estimation!$E$24 + R85*Cost_Estimation!$G$22*Cost_Estimation!$E$17*Cost_Estimation!$E$19/52*3 -> 915.6845609 | T85: =SQRT(2*(Dashboard!$D$8)^2/(Q85*P85))*(TINV(Dashboard!$D$10,P85-1)+TINV(2*(1-Dashboard!$D$11),P85-1)) -> 36.38572292
B86: 6 | C86: 320 | D86: 1920 | E86: =D86*Dashboard!$D$19+D86*Cost_Estimation!$G$15+(Cost_Estimation!$G$22*Cost_Estimation!$E$20*Cost_Estimation!$E$27+Cost_Estimation!$E$23*Cost_Estimation!$E$22*Cost_Estimation!$E$27+Cost_Estimation!$G$22*Cost_Estimation!$E$21*Cost_Estimation!$E$27)/60*Cost_Estimation!$E$24 + D86*Cost_Estimation!$G$22*Cost_Estimation!$E$17*Cost_Estimation!$E$19/52*3 -> 3479.143015 | F86: =SQRT(2*(Dashboard!$D$8)^2/(C86*B86))*(TINV(Dashboard!$D$10,B86-1)+TINV(2*(1-Dashboard!$D$11),B86-1)) -> 17.61516236 | P86: 6 | Q86: 80 | R86: 480 | S86: =R86*Dashboard!$D$19+R86*Cost_Estimation!$G$15+(Cost_Estimation!$G$22*Cost_Estimation!$E$20*Cost_Estimation!$E$27+Cost_Estimation!$E$23*Cost_Estimation!$E$22*Cost_Estimation!$E$27+Cost_Estimation!$G$22*Cost_Estimation!$E$21*Cost_Estimation!$E$27)/60*Cost_Estimation!$E$24 + R86*Cost_Estimation!$G$22*Cost_Estimation!$E$17*Cost_Estimation!$E$19/52*3 -> 968.0000396 | T86: =SQRT(2*(Dashboard!$D$8)^2/(Q86*P86))*(TINV(Dashboard!$D$10,P86-1)+TINV(2*(1-Dashboard!$D$11),P86-1)) -> 35.23032473
B88: 12 | C88: 10 | D88: 120 | E88: =D88*Dashboard!$D$19+D88*Cost_Estimation!$G$15+(Cost_Estimation!$G$22*Cost_Estimation!$E$20*Cost_Estimation!$E$27+Cost_Estimation!$E$23*Cost_Estimation!$E$22*Cost_Estimation!$E$27+Cost_Estimation!$G$22*Cost_Estimation!$E$21*Cost_Estimation!$E$27)/60*Cost_Estimation!$E$24 + D88*Cost_Estimation!$G$22*Cost_Estimation!$E$17*Cost_Estimation!$E$19/52*3 -> 340.2142956 | F88: =SQRT(2*(Dashboard!$D$8)^2/(C88*B88))*(TINV(Dashboard!$D$10,B88-1)+TINV(2*(1-Dashboard!$D$11),B88-1)) -> 62.11044488 | P88: 12 | Q88: 5 | R88: =P88*Q88 -> 60 | S88: =R88*Dashboard!$D$19+R88*Cost_Estimation!$G$15+(Cost_Estimation!$G$22*Cost_Estimation!$E$20*Cost_Estimation!$E$27+Cost_Estimation!$E$23*Cost_Estimation!$E$22*Cost_Estimation!$E$27+Cost_Estimation!$G$22*Cost_Estimation!$E$21*Cost_Estimation!$E$27)/60*Cost_Estimation!$E$24 + R88*Cost_Estimation!$G$22*Cost_Estimation!$E$17*Cost_Estimation!$E$19/52*3 -> 235.5833383 | T88: =SQRT(2*(Dashboard!$D$8)^2/(Q88*P88))*(TINV(Dashboard!$D$10,P88-1)+TINV(2*(1-Dashboard!$D$11),P88-1)) -> 87.83743352
B89: 12 | C89: 20 | D89: 240 | E89: =D89*Dashboard!$D$19+D89*Cost_Estimation!$G$15+(Cost_Estimation!$G$22*Cost_Estimation!$E$20*Cost_Estimation!$E$27+Cost_Estimation!$E$23*Cost_Estimation!$E$22*Cost_Estimation!$E$27+Cost_Estimation!$G$22*Cost_Estimation!$E$21*Cost_Estimation!$E$27)/60*Cost_Estimation!$E$24 + D89*Cost_Estimation!$G$22*Cost_Estimation!$E$17*Cost_Estimation!$E$19/52*3 -> 549.4762103 | F89: =SQRT(2*(Dashboard!$D$8)^2/(C89*B89))*(TINV(Dashboard!$D$10,B89-1)+TINV(2*(1-Dashboard!$D$11),B89-1)) -> 43.91871676 | P89: 12 | Q89: 10 | R89: 120 | S89: =R89*Dashboard!$D$19+R89*Cost_Estimation!$G$15+(Cost_Estimation!$G$22*Cost_Estimation!$E$20*Cost_Estimation!$E$27+Cost_Estimation!$E$23*Cost_Estimation!$E$22*Cost_Estimation!$E$27+Cost_Estimation!$G$22*Cost_Estimation!$E$21*Cost_Estimation!$E$27)/60*Cost_Estimation!$E$24 + R89*Cost_Estimation!$G$22*Cost_Estimation!$E$17*Cost_Estimation!$E$19/52*3 -> 340.2142956 | T89: =SQRT(2*(Dashboard!$D$8)^2/(Q89*P89))*(TINV(Dashboard!$D$10,P89-1)+TINV(2*(1-Dashboard!$D$11),P89-1)) -> 62.11044488
B90: 12 | C90: 30 | D90: 360 | E90: =D90*Dashboard!$D$19+D90*Cost_Estimation!$G$15+(Cost_Estimation!$G$22*Cost_Estimation!$E$20*Cost_Estimation!$E$27+Cost_Estimation!$E$23*Cost_Estimation!$E$22*Cost_Estimation!$E$27+Cost_Estimation!$G$22*Cost_Estimation!$E$21*Cost_Estimation!$E$27)/60*Cost_Estimation!$E$24 + D90*Cost_Estimation!$G$22*Cost_Estimation!$E$17*Cost_Estimation!$E$19/52*3 -> 758.7381249 | F90: =SQRT(2*(Dashboard!$D$8)^2/(C90*B90))*(TINV(Dashboard!$D$10,B90-1)+TINV(2*(1-Dashboard!$D$11),B90-1)) -> 35.85948207 | P90: 12 | Q90: 15 | R90: 180 | S90: =R90*Dashboard!$D$19+R90*Cost_Estimation!$G$15+(Cost_Estimation!$G$22*Cost_Estimation!$E$20*Cost_Estimation!$E$27+Cost_Estimation!$E$23*Cost_Estimation!$E$22*Cost_Estimation!$E$27+Cost_Estimation!$G$22*Cost_Estimation!$E$21*Cost_Estimation!$E$27)/60*Cost_Estimation!$E$24 + R90*Cost_Estimation!$G$22*Cost_Estimation!$E$17*Cost_Estimation!$E$19/52*3 -> 444.8452529 | T90: =SQRT(2*(Dashboard!$D$8)^2/(Q90*P90))*(TINV(Dashboard!$D$10,P90-1)+TINV(2*(1-Dashboard!$D$11),P90-1)) -> 50.71296589
B91: 12 | C91: 40 | D91: 480 | E91: =D91*Dashboard!$D$19+D91*Cost_Estimation!$G$15+(Cost_Estimation!$G$22*Cost_Estimation!$E$20*Cost_Estimation!$E$27+Cost_Estimation!$E$23*Cost_Estimation!$E$22*Cost_Estimation!$E$27+Cost_Estimation!$G$22*Cost_Estimation!$E$21*Cost_Estimation!$E$27)/60*Cost_Estimation!$E$24 + D91*Cost_Estimation!$G$22*Cost_Estimation!$E$17*Cost_Estimation!$E$19/52*3 -> 968.0000396 | F91: =SQRT(2*(Dashboard!$D$8)^2/(C91*B91))*(TINV(Dashboard!$D$10,B91-1)+TINV(2*(1-Dashboard!$D$11),B91-1)) -> 31.05522244 | P91: 12 | Q91: 20 | R91: 240 | S91: =R91*Dashboard!$D$19+R91*Cost_Estimation!$G$15+(Cost_Estimation!$G$22*Cost_Estimation!$E$20*Cost_Estimation!$E$27+Cost_Estimation!$E$23*Cost_Estimation!$E$22*Cost_Estimation!$E$27+Cost_Estimation!$G$22*Cost_Estimation!$E$21*Cost_Estimation!$E$27)/60*Cost_Estimation!$E$24 + R91*Cost_Estimation!$G$22*Cost_Estimation!$E$17*Cost_Estimation!$E$19/52*3 -> 549.4762103 | T91: =SQRT(2*(Dashboard!$D$8)^2/(Q91*P91))*(TINV(Dashboard!$D$10,P91-1)+TINV(2*(1-Dashboard!$D$11),P91-1)) -> 43.91871676
B92: 12 | C92: 50 | D92: 600 | E92: =D92*Dashboard!$D$19+D92*Cost_Estimation!$G$15+(Cost_Estimation!$G$22*Cost_Estimation!$E$20*Cost_Estimation!$E$27+Cost_Estimation!$E$23*Cost_Estimation!$E$22*Cost_Estimation!$E$27+Cost_Estimation!$G$22*Cost_Estimation!$E$21*Cost_Estimation!$E$27)/60*Cost_Estimation!$E$24 + D92*Cost_Estimation!$G$22*Cost_Estimation!$E$17*Cost_Estimation!$E$19/52*3 -> 1177.261954 | F92: =SQRT(2*(Dashboard!$D$8)^2/(C92*B92))*(TINV(Dashboard!$D$10,B92-1)+TINV(2*(1-Dashboard!$D$11),B92-1)) -> 27.77663537 | P92: 12 | Q92: 25 | R92: 300 | S92: =R92*Dashboard!$D$19+R92*Cost_Estimation!$G$15+(Cost_Estimation!$G$22*Cost_Estimation!$E$20*Cost_Estimation!$E$27+Cost_Estimation!$E$23*Cost_Estimation!$E$22*Cost_Estimation!$E$27+Cost_Estimation!$G$22*Cost_Estimation!$E$21*Cost_Estimation!$E$27)/60*Cost_Estimation!$E$24 + R92*Cost_Estimation!$G$22*Cost_Estimation!$E$17*Cost_Estimation!$E$19/52*3 -> 654.1071676 | T92: =SQRT(2*(Dashboard!$D$8)^2/(Q92*P92))*(TINV(Dashboard!$D$10,P92-1)+TINV(2*(1-Dashboard!$D$11),P92-1)) -> 39.28209446
B93: 12 | C93: 60 | D93: 720 | E93: =D93*Dashboard!$D$19+D93*Cost_Estimation!$G$15+(Cost_Estimation!$G$22*Cost_Estimation!$E$20*Cost_Estimation!$E$27+Cost_Estimation!$E$23*Cost_Estimation!$E$22*Cost_Estimation!$E$27+Cost_Estimation!$G$22*Cost_Estimation!$E$21*Cost_Estimation!$E$27)/60*Cost_Estimation!$E$24 + D93*Cost_Estimation!$G$22*Cost_Estimation!$E$17*Cost_Estimation!$E$19/52*3 -> 1386.523869 | F93: =SQRT(2*(Dashboard!$D$8)^2/(C93*B93))*(TINV(Dashboard!$D$10,B93-1)+TINV(2*(1-Dashboard!$D$11),B93-1)) -> 25.35648294 | P93: 12 | Q93: 30 | R93: 360 | S93: =R93*Dashboard!$D$19+R93*Cost_Estimation!$G$15+(Cost_Estimation!$G$22*Cost_Estimation!$E$20*Cost_Estimation!$E$27+Cost_Estimation!$E$23*Cost_Estimation!$E$22*Cost_Estimation!$E$27+Cost_Estimation!$G$22*Cost_Estimation!$E$21*Cost_Estimation!$E$27)/60*Cost_Estimation!$E$24 + R93*Cost_Estimation!$G$22*Cost_Estimation!$E$17*Cost_Estimation!$E$19/52*3 -> 758.7381249 | T93: =SQRT(2*(Dashboard!$D$8)^2/(Q93*P93))*(TINV(Dashboard!$D$10,P93-1)+TINV(2*(1-Dashboard!$D$11),P93-1)) -> 35.85948207
B94: 12 | C94: 70 | D94: 840 | E94: =D94*Dashboard!$D$19+D94*Cost_Estimation!$G$15+(Cost_Estimation!$G$22*Cost_Estimation!$E$20*Cost_Estimation!$E$27+Cost_Estimation!$E$23*Cost_Estimation!$E$22*Cost_Estimation!$E$27+Cost_Estimation!$G$22*Cost_Estimation!$E$21*Cost_Estimation!$E$27)/60*Cost_Estimation!$E$24 + D94*Cost_Estimation!$G$22*Cost_Estimation!$E$17*Cost_Estimation!$E$19/52*3 -> 1595.785784 | F94: =SQRT(2*(Dashboard!$D$8)^2/(C94*B94))*(TINV(Dashboard!$D$10,B94-1)+TINV(2*(1-Dashboard!$D$11),B94-1)) -> 23.47554157 | P94: 12 | Q94: 35 | R94: 420 | S94: =R94*Dashboard!$D$19+R94*Cost_Estimation!$G$15+(Cost_Estimation!$G$22*Cost_Estimation!$E$20*Cost_Estimation!$E$27+Cost_Estimation!$E$23*Cost_Estimation!$E$22*Cost_Estimation!$E$27+Cost_Estimation!$G$22*Cost_Estimation!$E$21*Cost_Estimation!$E$27)/60*Cost_Estimation!$E$24 + R94*Cost_Estimation!$G$22*Cost_Estimation!$E$17*Cost_Estimation!$E$19/52*3 -> 863.3690823 | T94: =SQRT(2*(Dashboard!$D$8)^2/(Q94*P94))*(TINV(Dashboard!$D$10,P94-1)+TINV(2*(1-Dashboard!$D$11),P94-1)) -> 33.19942927
B95: 12 | C95: 80 | D95: 960 | E95: =D95*Dashboard!$D$19+D95*Cost_Estimation!$G$15+(Cost_Estimation!$G$22*Cost_Estimation!$E$20*Cost_Estimation!$E$27+Cost_Estimation!$E$23*Cost_Estimation!$E$22*Cost_Estimation!$E$27+Cost_Estimation!$G$22*Cost_Estimation!$E$21*Cost_Estimation!$E$27)/60*Cost_Estimation!$E$24 + D95*Cost_Estimation!$G$22*Cost_Estimation!$E$17*Cost_Estimation!$E$19/52*3 -> 1805.047698 | F95: =SQRT(2*(Dashboard!$D$8)^2/(C95*B95))*(TINV(Dashboard!$D$10,B95-1)+TINV(2*(1-Dashboard!$D$11),B95-1)) -> 21.95935838 | P95: 12 | Q95: 40 | R95: 480 | S95: =R95*Dashboard!$D$19+R95*Cost_Estimation!$G$15+(Cost_Estimation!$G$22*Cost_Estimation!$E$20*Cost_Estimation!$E$27+Cost_Estimation!$E$23*Cost_Estimation!$E$22*Cost_Estimation!$E$27+Cost_Estimation!$G$22*Cost_Estimation!$E$21*Cost_Estimation!$E$27)/60*Cost_Estimation!$E$24 + R95*Cost_Estimation!$G$22*Cost_Estimation!$E$17*Cost_Estimation!$E$19/52*3 -> 968.0000396 | T95: =SQRT(2*(Dashboard!$D$8)^2/(Q95*P95))*(TINV(Dashboard!$D$10,P95-1)+TINV(2*(1-Dashboard!$D$11),P95-1)) -> 31.05522244
B96: 12 | C96: 90 | D96: 1080 | E96: =D96*Dashboard!$D$19+D96*Cost_Estimation!$G$15+(Cost_Estimation!$G$22*Cost_Estimation!$E$20*Cost_Estimation!$E$27+Cost_Estimation!$E$23*Cost_Estimation!$E$22*Cost_Estimation!$E$27+Cost_Estimation!$G$22*Cost_Estimation!$E$21*Cost_Estimation!$E$27)/60*Cost_Estimation!$E$24 + D96*Cost_Estimation!$G$22*Cost_Estimation!$E$17*Cost_Estimation!$E$19/52*3 -> 2014.309613 | F96: =SQRT(2*(Dashboard!$D$8)^2/(C96*B96))*(TINV(Dashboard!$D$10,B96-1)+TINV(2*(1-Dashboard!$D$11),B96-1)) -> 20.70348163 | P96: 12 | Q96: 45 | R96: 540 | S96: =R96*Dashboard!$D$19+R96*Cost_Estimation!$G$15+(Cost_Estimation!$G$22*Cost_Estimation!$E$20*Cost_Estimation!$E$27+Cost_Estimation!$E$23*Cost_Estimation!$E$22*Cost_Estimation!$E$27+Cost_Estimation!$G$22*Cost_Estimation!$E$21*Cost_Estimation!$E$27)/60*Cost_Estimation!$E$24 + R96*Cost_Estimation!$G$22*Cost_Estimation!$E$17*Cost_Estimation!$E$19/52*3 -> 1072.630997 | T96: =SQRT(2*(Dashboard!$D$8)^2/(Q96*P96))*(TINV(Dashboard!$D$10,P96-1)+TINV(2*(1-Dashboard!$D$11),P96-1)) -> 29.27914451
B97: 12 | C97: 100 | D97: 1200 | E97: =D97*Dashboard!$D$19+D97*Cost_Estimation!$G$15+(Cost_Estimation!$G$22*Cost_Estimation!$E$20*Cost_Estimation!$E$27+Cost_Estimation!$E$23*Cost_Estimation!$E$22*Cost_Estimation!$E$27+Cost_Estimation!$G$22*Cost_Estimation!$E$21*Cost_Estimation!$E$27)/60*Cost_Estimation!$E$24 + D97*Cost_Estimation!$G$22*Cost_Estimation!$E$17*Cost_Estimation!$E$19/52*3 -> 2223.571528 | F97: =SQRT(2*(Dashboard!$D$8)^2/(C97*B97))*(TINV(Dashboard!$D$10,B97-1)+TINV(2*(1-Dashboard!$D$11),B97-1)) -> 19.64104723 | P97: 12 | Q97: 50 | R97: 600 | S97: =R97*Dashboard!$D$19+R97*Cost_Estimation!$G$15+(Cost_Estimation!$G$22*Cost_Estimation!$E$20*Cost_Estimation!$E$27+Cost_Estimation!$E$23*Cost_Estimation!$E$22*Cost_Estimation!$E$27+Cost_Estimation!$G$22*Cost_Estimation!$E$21*Cost_Estimation!$E$27)/60*Cost_Estimation!$E$24 + R97*Cost_Estimation!$G$22*Cost_Estimation!$E$17*Cost_Estimation!$E$19/52*3 -> 1177.261954 | T97: =SQRT(2*(Dashboard!$D$8)^2/(Q97*P97))*(TINV(Dashboard!$D$10,P97-1)+TINV(2*(1-Dashboard!$D$11),P97-1)) -> 27.77663537
B98: 12 | C98: 110 | D98: 1320 | E98: =D98*Dashboard!$D$19+D98*Cost_Estimation!$G$15+(Cost_Estimation!$G$22*Cost_Estimation!$E$20*Cost_Estimation!$E$27+Cost_Estimation!$E$23*Cost_Estimation!$E$22*Cost_Estimation!$E$27+Cost_Estimation!$G$22*Cost_Estimation!$E$21*Cost_Estimation!$E$27)/60*Cost_Estimation!$E$24 + D98*Cost_Estimation!$G$22*Cost_Estimation!$E$17*Cost_Estimation!$E$19/52*3 -> 2432.833442 | F98: =SQRT(2*(Dashboard!$D$8)^2/(C98*B98))*(TINV(Dashboard!$D$10,B98-1)+TINV(2*(1-Dashboard!$D$11),B98-1)) -> 18.72700375 | P98: 12 | Q98: 55 | R98: 660 | S98: =R98*Dashboard!$D$19+R98*Cost_Estimation!$G$15+(Cost_Estimation!$G$22*Cost_Estimation!$E$20*Cost_Estimation!$E$27+Cost_Estimation!$E$23*Cost_Estimation!$E$22*Cost_Estimation!$E$27+Cost_Estimation!$G$22*Cost_Estimation!$E$21*Cost_Estimation!$E$27)/60*Cost_Estimation!$E$24 + R98*Cost_Estimation!$G$22*Cost_Estimation!$E$17*Cost_Estimation!$E$19/52*3 -> 1281.892912 | T98: =SQRT(2*(Dashboard!$D$8)^2/(Q98*P98))*(TINV(Dashboard!$D$10,P98-1)+TINV(2*(1-Dashboard!$D$11),P98-1)) -> 26.48398268
B99: 12 | C99: 120 | D99: 1440 | E99: =D99*Dashboard!$D$19+D99*Cost_Estimation!$G$15+(Cost_Estimation!$G$22*Cost_Estimation!$E$20*Cost_Estimation!$E$27+Cost_Estimation!$E$23*Cost_Estimation!$E$22*Cost_Estimation!$E$27+Cost_Estimation!$G$22*Cost_Estimation!$E$21*Cost_Estimation!$E$27)/60*Cost_Estimation!$E$24 + D99*Cost_Estimation!$G$22*Cost_Estimation!$E$17*Cost_Estimation!$E$19/52*3 -> 2642.095357 | F99: =SQRT(2*(Dashboard!$D$8)^2/(C99*B99))*(TINV(Dashboard!$D$10,B99-1)+TINV(2*(1-Dashboard!$D$11),B99-1)) -> 17.92974104 | P99: 12 | Q99: 60 | R99: 720 | S99: =R99*Dashboard!$D$19+R99*Cost_Estimation!$G$15+(Cost_Estimation!$G$22*Cost_Estimation!$E$20*Cost_Estimation!$E$27+Cost_Estimation!$E$23*Cost_Estimation!$E$22*Cost_Estimation!$E$27+Cost_Estimation!$G$22*Cost_Estimation!$E$21*Cost_Estimation!$E$27)/60*Cost_Estimation!$E$24 + R99*Cost_Estimation!$G$22*Cost_Estimation!$E$17*Cost_Estimation!$E$19/52*3 -> 1386.523869 | T99: =SQRT(2*(Dashboard!$D$8)^2/(Q99*P99))*(TINV(Dashboard!$D$10,P99-1)+TINV(2*(1-Dashboard!$D$11),P99-1)) -> 25.35648294
B100: 12 | C100: 130 | D100: 1560 | E100: =D100*Dashboard!$D$19+D100*Cost_Estimation!$G$15+(Cost_Estimation!$G$22*Cost_Estimation!$E$20*Cost_Estimation!$E$27+Cost_Estimation!$E$23*Cost_Estimation!$E$22*Cost_Estimation!$E$27+Cost_Estimation!$G$22*Cost_Estimation!$E$21*Cost_Estimation!$E$27)/60*Cost_Estimation!$E$24 + D100*Cost_Estimation!$G$22*Cost_Estimation!$E$17*Cost_Estimation!$E$19/52*3 -> 2851.357271 | F100: =SQRT(2*(Dashboard!$D$8)^2/(C100*B100))*(TINV(Dashboard!$D$10,B100-1)+TINV(2*(1-Dashboard!$D$11),B100-1)) -> 17.22633798 | P100: 12 | Q100: 65 | R100: 780 | S100: =R100*Dashboard!$D$19+R100*Cost_Estimation!$G$15+(Cost_Estimation!$G$22*Cost_Estimation!$E$20*Cost_Estimation!$E$27+Cost_Estimation!$E$23*Cost_Estimation!$E$22*Cost_Estimation!$E$27+Cost_Estimation!$G$22*Cost_Estimation!$E$21*Cost_Estimation!$E$27)/60*Cost_Estimation!$E$24 + R100*Cost_Estimation!$G$22*Cost_Estimation!$E$17*Cost_Estimation!$E$19/52*3 -> 1491.154826 | T100: =SQRT(2*(Dashboard!$D$8)^2/(Q100*P100))*(TINV(Dashboard!$D$10,P100-1)+TINV(2*(1-Dashboard!$D$11),P100-1)) -> 24.3617208
B101: 12 | C101: 140 | D101: 1680 | E101: =D101*Dashboard!$D$19+D101*Cost_Estimation!$G$15+(Cost_Estimation!$G$22*Cost_Estimation!$E$20*Cost_Estimation!$E$27+Cost_Estimation!$E$23*Cost_Estimation!$E$22*Cost_Estimation!$E$27+Cost_Estimation!$G$22*Cost_Estimation!$E$21*Cost_Estimation!$E$27)/60*Cost_Estimation!$E$24 + D101*Cost_Estimation!$G$22*Cost_Estimation!$E$17*Cost_Estimation!$E$19/52*3 -> 3060.619186 | F101: =SQRT(2*(Dashboard!$D$8)^2/(C101*B101))*(TINV(Dashboard!$D$10,B101-1)+TINV(2*(1-Dashboard!$D$11),B101-1)) -> 16.59971463 | P101: 12 | Q101: 70 | R101: 840 | S101: =R101*Dashboard!$D$19+R101*Cost_Estimation!$G$15+(Cost_Estimation!$G$22*Cost_Estimation!$E$20*Cost_Estimation!$E$27+Cost_Estimation!$E$23*Cost_Estimation!$E$22*Cost_Estimation!$E$27+Cost_Estimation!$G$22*Cost_Estimation!$E$21*Cost_Estimation!$E$27)/60*Cost_Estimation!$E$24 + R101*Cost_Estimation!$G$22*Cost_Estimation!$E$17*Cost_Estimation!$E$19/52*3 -> 1595.785784 | T101: =SQRT(2*(Dashboard!$D$8)^2/(Q101*P101))*(TINV(Dashboard!$D$10,P101-1)+TINV(2*(1-Dashboard!$D$11),P101-1)) -> 23.47554157
B102: 12 | C102: 150 | D102: 1800 | E102: =D102*Dashboard!$D$19+D102*Cost_Estimation!$G$15+(Cost_Estimation!$G$22*Cost_Estimation!$E$20*Cost_Estimation!$E$27+Cost_Estimation!$E$23*Cost_Estimation!$E$22*Cost_Estimation!$E$27+Cost_Estimation!$G$22*Cost_Estimation!$E$21*Cost_Estimation!$E$27)/60*Cost_Estimation!$E$24 + D102*Cost_Estimation!$G$22*Cost_Estimation!$E$17*Cost_Estimation!$E$19/52*3 -> 3269.881101 | F102: =SQRT(2*(Dashboard!$D$8)^2/(C102*B102))*(TINV(Dashboard!$D$10,B102-1)+TINV(2*(1-Dashboard!$D$11),B102-1)) -> 16.03684791 | P102: 12 | Q102: 75 | R102: 900 | S102: =R102*Dashboard!$D$19+R102*Cost_Estimation!$G$15+(Cost_Estimation!$G$22*Cost_Estimation!$E$20*Cost_Estimation!$E$27+Cost_Estimation!$E$23*Cost_Estimation!$E$22*Cost_Estimation!$E$27+Cost_Estimation!$G$22*Cost_Estimation!$E$21*Cost_Estimation!$E$27)/60*Cost_Estimation!$E$24 + R102*Cost_Estimation!$G$22*Cost_Estimation!$E$17*Cost_Estimation!$E$19/52*3 -> 1700.416741 | T102: =SQRT(2*(Dashboard!$D$8)^2/(Q102*P102))*(TINV(Dashboard!$D$10,P102-1)+TINV(2*(1-Dashboard!$D$11),P102-1)) -> 22.67952781
B103: 12 | C103: 160 | D103: 1920 | E103: =D103*Dashboard!$D$19+D103*Cost_Estimation!$G$15+(Cost_Estimation!$G$22*Cost_Estimation!$E$20*Cost_Estimation!$E$27+Cost_Estimation!$E$23*Cost_Estimation!$E$22*Cost_Estimation!$E$27+Cost_Estimation!$G$22*Cost_Estimation!$E$21*Cost_Estimation!$E$27)/60*Cost_Estimation!$E$24 + D103*Cost_Estimation!$G$22*Cost_Estimation!$E$17*Cost_Estimation!$E$19/52*3 -> 3479.143015 | F103: =SQRT(2*(Dashboard!$D$8)^2/(C103*B103))*(TINV(Dashboard!$D$10,B103-1)+TINV(2*(1-Dashboard!$D$11),B103-1)) -> 15.52761122 | P103: 12 | Q103: 80 | R103: 960 | S103: =R103*Dashboard!$D$19+R103*Cost_Estimation!$G$15+(Cost_Estimation!$G$22*Cost_Estimation!$E$20*Cost_Estimation!$E$27+Cost_Estimation!$E$23*Cost_Estimation!$E$22*Cost_Estimation!$E$27+Cost_Estimation!$G$22*Cost_Estimation!$E$21*Cost_Estimation!$E$27)/60*Cost_Estimation!$E$24 + R103*Cost_Estimation!$G$22*Cost_Estimation!$E$17*Cost_Estimation!$E$19/52*3 -> 1805.047698 | T103: =SQRT(2*(Dashboard!$D$8)^2/(Q103*P103))*(TINV(Dashboard!$D$10,P103-1)+TINV(2*(1-Dashboard!$D$11),P103-1)) -> 21.95935838
